Workbook

Sheet Pres & Prop Rev (hidden)
J3: ANN. MINIMUM
A4: WORK PAPER | D4: GEN SERVICE | E4: LRG GEN SVC | F4: EX LRG GEN SVC | G4: INTERRUPTIBLE | H4: TRANSPORT | I4: TRANSPORT | J4: TRANSPORT
A5: REFERENCE | C5: TOTAL | D5: SCHEDULE 101 | E5: SCH. 111&112 | F5: SCH. 121&122 | G5: SCH. 131&132 | H5: SCHEDULE 146 | I5: SCHEDULE 148 | J5: SCH 148 - WSU | Q5: Print Header for all printed pages on this worksheet:
B6: PRESENT BILL DETERMINANTS | M6: Calculate all revenue exhibits using ____ rates: | Q6: ="AVISTA UTILITIES WASHINGTON GAS PRO FORMA REVENUE UNDER PRESENT AND PROPOSED "&O9&" RATES 12 MONTHS ENDED DECEMBER 31, 2011" -> AVISTA UTILITIES WASHINGTON GAS PRO FORMA REVENUE UNDER PRESENT AND PROPOSED BASE TARIFF RATES 12 MONTHS ENDED DECEMBER 31, 2011
B7: THERMS | L7: 1) | M7: BASE TARIFF
A8: PDE-G-7 | B8: BLOCK 1 | D8: ='Bill Determ'!B7 -> 123192356 | E8: ='Bill Determ'!B17 -> 5231053 | F8: ='Bill Determ'!B26 -> 156000 | G8: ='Bill Determ'!B30 -> 120000 | H8: ='Bill Determ'!B34 -> 7725697.27 | I8: ='Bill Determ'!B40 -> 20176537 | J8: ='Bill Determ'!B46 -> 9679278 | M8: or | O8: 1
A9: PDE-G-7 | B9: BLOCK 2 | E9: ='Bill Determ'!C17 -> 14581420 | F9: ='Bill Determ'!C26 -> 156000 | G9: ='Bill Determ'!C30 -> 175338 | H9: ='Bill Determ'!C34 -> 7336427.73 | I9: ='Bill Determ'!B41 -> 7301077 | L9: 2) | M9: BILLING | O9: =CHOOSE(Base1_Billing2,M7,M9) -> BASE TARIFF
A10: PDE-G-7 | B10: BLOCK 3 | E10: ='Bill Determ'!D17 -> 27796563 | F10: ='Bill Determ'!D26 -> 2638873 | G10: ='Bill Determ'!D30 -> 211422 | H10: ='Bill Determ'!D34 -> 11915987 | I10: ='Bill Determ'!B42 -> 1613790 | O10: =CHOOSE(Base1_Billing2,"Base","Billing") -> Base
A11: PDE-G-7 | B11: BLOCK 4 | F11: ='Bill Determ'!E26 -> 1825796 | G11: ='Bill Determ'!E30 -> 136145 | H11: ='Bill Determ'!E34 -> 2350212 | I11: ='Bill Determ'!B43 -> 5924708
A12: PDE-G-7 | B12: BLOCK 5 | F12: ='Bill Determ'!F26 -> 1360194 | H12: ='Bill Determ'!F34 -> 120325 | I12: ='Bill Determ'!B37 -> 986014
B14: SUBTOTAL | C14: =SUM(D14:J14) -> 252711213 | D14: =SUM(D8:D12) -> 123192356 | E14: 47609036 | F14: 6136863 | G14: 642905 | H14: =SUM(H8:H12) -> 29448649 | I14: =SUM(I8:I12) -> 36002126 | J14: 9679278
B15: LOAD ADJUSTMENT
B17: SUBTOTAL | C17: =SUM(D17:J17) -> 252711213 | D17: =D14+D15 -> 123192356 | E17: 47609036 | F17: 6136863 | G17: 642905 | H17: =H14+H15 -> 29448649 | I17: 36002126 | J17: 9679278
A18: PDE-G-7 | B18: ADJUSTMENT TO ACTUAL | C18: =SUM(D18:J18) -> -254858 | E18: ='Bill Determ'!E22 -> -254858
B20: TOTAL BEFORE ADJUSTMENT | C20: =SUM(D20:J20) -> 252456355 | D20: =D17+D18 -> 123192356 | E20: 47354178 | F20: 6136863 | G20: 642905 | H20: =H17+I18 -> 29448649 | I20: =I17+I18 -> 36002126 | J20: 9679278
A21: PDE-G-3 | B21: WEATHER & UNBILLED REV. ADJ. | C21: =SUM(D21:J21) -> -5824190 | D21: =D134+D137 -> -4167750 | E21: =E134+E137 -> -1784575 | F21: 128135 | G21: 0 | H21: =H134+H137 -> 0 | I21: 0 | J21: 0
B23: TOTAL PROFORMA THERMS | C23: =IF(ROUND(SUM(C20:C21),3)<>ROUND(SUM(D23:J23),3),#VALUE!,SUM(D23:J23)) -> 246632165 | D23: =SUM(D20:D21) -> 119024606 | E23: 45569603 | F23: 6264998 | G23: 642905 | H23: =SUM(H20:H21) -> 29448649 | I23: 36002126 | J23: 9679278
A25: PDE-G-7 | B25: TOTAL BILLS | D25: ='Bill Determ'!C7 -> 1748256 | G25: ='Bill Determ'!G30 -> 12 | H25: ='Bill Determ'!H34 -> 444 | I25: ='Bill Determ'!C44 -> 48 | J25: ='Bill Determ'!C46 -> 12
A26: PDE-G-7 | B26: TOTAL MINIMUM BILLS | E26: ='Bill Determ'!F21 -> 28783 | F26: ='Bill Determ'!H26 -> 312
B29: PROPOSED BILL DETERMINANTS
B30: THERMS
B31: BLOCK 1 | D31: ='Bill Determ'!E7 -> 40924244 | E31: =E8 -> 5231053 | F31: 156000 | G31: 120000 | H31: 7725697.27 | I31: 20176537 | J31: 9679278
B32: BLOCK 2 | D32: ='Bill Determ'!F7 -> 34570303 | E32: =E9 -> 14581420 | F32: 156000 | G32: 175338 | H32: 7336427.73 | I32: 7301077 | J32: 0
B33: BLOCK 3 | D33: ='Bill Determ'!G7 -> 47697809 | E33: =E10 -> 27796563 | F33: 2638873 | G33: 211422 | H33: 11915987 | I33: 1613790 | J33: 0
B34: BLOCK 4 | D34: =D11 -> 0 | E34: =E11 -> 0 | F34: 1825796 | G34: 136145 | H34: 2350212 | I34: 5924708 | J34: 0
B35: BLOCK 5 | D35: =D12 -> 0 | E35: =E12 -> 0 | F35: 1360194 | G35: 0 | H35: 120325 | I35: 986014 | J35: 0
B37: SUBTOTAL | C37: =SUM(D37:J37) -> 252711213 | D37: =SUM(D31:D35) -> 123192356 | E37: 47609036 | F37: 6136863 | G37: 642905 | H37: =SUM(H31:H35) -> 29448649 | I37: =SUM(I31:I35) -> 36002126 | J37: 9679278
B38: NET SHIFTING ADJUSTMENT | C38: =SUM(D38:J38) -> 0 | D38: =D15 -> 0 | E38: 0 | F38: 0 | G38: 0 | H38: =H15 -> 0 | I38: 0 | J38: 0
B40: SUBTOTAL | C40: =SUM(D40:J40) -> 252711213 | D40: =D37+D38 -> 123192356 | E40: 47609036 | F40: 6136863 | G40: 642905 | H40: =H37+H38 -> 29448649 | I40: 36002126 | J40: 9679278
B41: ADJUSTMENT TO ACTUAL | C41: =SUM(D41:J41) -> -254858 | D41: ='Bill Determ'!H9 -> 0 | E41: =E18 -> -254858 | F41: 0 | G41: 0 | H41: 0 | I41: 0 | J41: 0
B43: TOTAL BEFORE ADJUSTMENT | C43: =SUM(D43:J43) -> 252456355 | D43: =D40+D41 -> 123192356 | E43: 47354178 | F43: 6136863 | G43: 642905 | H43: =H40+H41 -> 29448649 | I43: =I40+I41 -> 36002126 | J43: 9679278
B44: WEATHER & UNBILLED REV. ADJ. | C44: =SUM(D44:J44) -> -5824190 | D44: =D21 -> -4167750 | E44: -1784575 | F44: 128135 | G44: 0 | H44: =H21 -> 0 | I44: 0 | J44: 0
B46: TOTAL PROFORMA THERMS | C46: =IF(ROUND(SUM(C43:C44),3)<>ROUND(SUM(D46:J46),3),#VALUE!,SUM(D46:J46)) -> 246632165 | D46: =D43+D44 -> 119024606 | E46: 45569603 | F46: 6264998 | G46: 642905 | H46: =H43+H44 -> 29448649 | I46: 36002126 | J46: 9679278
B48: TOTAL BILLS | D48: =D25 -> 1748256 | E48: 0 | F48: 0 | G48: =G25 -> 12 | H48: =H25 -> 444 | I48: =I25 -> 48 | J48: =J25 -> 12
B49: TOTAL MINIMUM BILLS | D49: 0 | E49: 28783 | F49: 312
E50: 2 | F50: 3 | G50: 4 | H50: 5 | I50: 6 | J50: 7
J51: TRANSPORT
J52: SCH 148 - WSU/
A53: WORK PAPER | D53: GEN SERVICE | E53: LRG GEN SVC | F53: EX LRG GEN SVC | G53: INTERRUPTIBLE | H53: TRANSPORT | I53: TRANSPORT | J53: BF GOODRICH | M53: ="selected in cell "&CELL("address",Base1_Billing2)&":" -> selected in cell $O$8:
A54: REFERENCE | C54: TOTAL | D54: SCHEDULE 101 | E54: SCHEDULE 111 | F54: SCHEDULE 121 | G54: SCHEDULE 131 | H54: SCHEDULE 146 | I54: SCHEDULE 148 | J54: ANN. MINIMUM | M54: =O10 -> Base
B55: PRESENT RATES | I55: -1 | J55: -2 | M55: ="Rates_"&$M$54&"_Present" -> Rates_Base_Present | O55: - range name where Present Rates table can be found
A56: PDE-G-12/13 | B56: BASIC CHARGE | D56: =INDEX(INDIRECT($M$55),$K56,D$50) -> 6 | E56: 0 | F56: 0 | G56: 0 | H56: 250 | I56: 200 | J56: 26332 | K56: 1 | M56: ="Rates_"&$M$54&"_Proposed" -> Rates_Base_Proposed | O56: - range name where Proposed Rates table can be found
A57: PDE-G-12/13 | B57: MONTHLY MINIMUM | D57: 0 | E57: 152.01 | F57: 378.63 | G57: 0 | H57: 0 | I57: 0 | J57: 0 | K57: 2
A59: PDE-G-12/13 | B59: BLOCK 1 PER THERM | D59: =INDEX(INDIRECT($M$55),$K59,D$50) -> 79.915 | E59: =INDEX(INDIRECT($M$55),$K59,E$50) -> 6.85 | F59: 5.261 | G59: 60.934 | H59: 8.151 | I59: 2.8 | J59: 1 | K59: 3
A60: PDE-G-12/13 | B60: BLOCK 2 PER THERM | D60: 0 | E60: 72.081 | F60: 71.878 | G60: 56.624 | H60: 7.257 | I60: 4.5 | J60: 0 | K60: 4
A61: PDE-G-12/13 | B61: BLOCK 3 PER THERM | D61: 0 | E61: 65.068 | F61: 64.714 | G61: 55.567 | H61: 6.548 | I61: 3.168 | J61: 0 | K61: 5
A62: PDE-G-12/13 | B62: BLOCK 4 PER THERM | D62: 0 | E62: 0 | F62: 60.215 | G62: 55.217 | H62: 6.059 | I62: 2.5 | J62: 0 | K62: 6
A63: PDE-G-12/13 | B63: BLOCK 5 PER THERM | D63: 0 | E63: 0 | F63: 56.596 | G63: 0 | H63: 4.565 | I63: 2.091 | J63: 0 | K63: 7
B65: ADJUST TO ACTUAL PER THERM | E65: =(E118-E106-E107)/E17*100 -> 60.81918586 | F65: =(F118-F106-F107)/F17*100 -> 60.24699541 | G65: =(G118-G106-G107)/G17*100 -> 56.78291972
B73: PROPOSED RATES
B74: BASIC CHARGE | D74: =INDEX(INDIRECT($M$56),$K74,D$50) -> 10.98 | E74: 0 | F74: 0 | G74: 0 | H74: 269.29 | I74: 200 | J74: 26332 | K74: 1
B75: MONTHLY MINIMUM | D75: 0 | E75: 152.01 | F75: 378.63 | G75: 0 | H75: 0 | I75: 0 | J75: 0 | K75: 2
B77: BLOCK 1 PER THERM | D77: =INDEX(INDIRECT($M$56),$K77,D$50) -> 71.625 | E77: =INDEX(INDIRECT($M$56),$K77,E$50) -> 6.85 | F77: 5.261 | G77: 62.872 | H77: 8.686 | I77: 2.8 | J77: 1 | K77: 3
B78: BLOCK 2 PER THERM | D78: 71.625 | E78: 73.52 | F78: 73.091 | G78: 58.425 | H78: 7.733 | I78: 4.5 | J78: 0 | K78: 4
B79: BLOCK 3 PER THERM | D79: 81.125 | E79: 66.367 | F79: 65.806 | G79: 57.334 | H79: 6.978 | I79: 3.168 | J79: 0 | K79: 5
B80: BLOCK 4 PER THERM | D80: 0 | E80: 0 | F80: 61.231 | G80: 56.973 | H80: 6.457 | I80: 2.5 | J80: 0 | K80: 6
B81: BLOCK 5 PER THERM | D81: 0 | E81: 0 | F81: 56.596 | G81: 0 | H81: 4.864 | I81: 2.091 | J81: 0 | K81: 7
B83: ADJUST TO ACTUAL PER THERM | D83: =(D167-D155-D156)/D40*100 -> 75.30322485 | E83: =(E167-E155-E156)/E40*100 -> 62.01833635 | F83: =(F167-F155-F156)/F40*100 -> 61.04966723 | G83: =(G167-G155-G156)/G40*100 -> 58.58878217
B87: (1) Block 1 - Kaiser-Trentwood - workpaper PDE-G-18
B88: Block 2 - Lamb-Weston - workpaper PDE-G-20
B89: Block 3 - Mutual Materials - workpaper PDE-G-24
B90: Block 4 - Washington Potato - workpaper PDE-G-22
B91: Block 5 - Avista Electric generating facilities billed at 2.091 cents/therm (Sch. 148 floor)
B93: (2) Monthly minimum / rate per therm - workpaper PDE-G-26
B97: ="Note: Rates include Sch. 150 (Purch. Gas Cost Adj.)"&IF(Base1_Billing2=2," , Sch. 155 (Gas Rate Adj.), and Sch. 191 (Public Purp. Rider Adj.)","") -> Note: Rates include Sch. 150 (Purch. Gas Cost Adj.)
J100: TRANSPORT
J101: SCH 148 - WSU/
A102: WORK PAPER | D102: GEN SERVICE | E102: LRG GEN SVC | F102: EX LRG GEN SVC | G102: INTERRUPTIBLE | H102: TRANSPORT | I102: TRANSPORT | J102: BF GOODRICH
A103: REFERENCE | C103: TOTAL | D103: SCHEDULE 101 | E103: SCHEDULE 111 | F103: SCHEDULE 121 | G103: SCHEDULE 131 | H103: SCHEDULE 146 | I103: SCHEDULE 148 | J103: ANN. MINIMUM
B104: PRESENT REVENUE
B105: =UPPER(CHOOSE(Base1_Billing2,$O$9,$O$10))&" REVENUE" -> BASE TARIFF REVENUE
B106: BASIC CHARGE | C106: =SUM(D106:J106) -> 10926120 | D106: =D25*D56 -> 10489536 | E106: 0 | F106: 0 | G106: 0 | H106: 111000 | I106: =I25*I56 -> 9600 | J106: 315984 | N106: =D106/$D$115 -> 0.09628841997
B107: MONTHLY MINIMUM | C107: 4493436.39 | D107: =D26*D57 -> 0 | E107: =E26*E57 -> 4375303.83 | F107: 118132.56 | G107: 0 | H107: 0 | I107: 0 | J107: 0 | N107: =D107/$D$115 -> 0
B108: BLOCK 1 | C108: 100180283.8 | D108: =ROUND(D8*D59/100,2) -> 98449171.3 | E108: =ROUND(E8*E59/100,2) -> 358327.13 | F108: 8207.16 | G108: 73120.8 | H108: 629721.58 | I108: =ROUND(I8*I59/100,2) -> 564943.04 | J108: =ROUND(J8*J59/100,2) -> 96792.78 | N108: 0.90371158
B109: BLOCK 2 | C109: 11582799.45 | D109: 0 | E109: 10510433.35 | F109: 112129.68 | G109: 99283.39 | H109: 532404.56 | I109: 328548.47 | J109: 0 | N109: 0
B110: BLOCK 3 | C110: 20743252.44 | D110: 0 | E110: 18086667.61 | F110: 1707720.27 | G110: 117480.86 | H110: 780258.83 | I110: 51124.87 | J110: 0 | N110: 0
B111: BLOCK 4 | C111: 1465095.29 | D111: =ROUND(D11*D62/100,2) -> 0 | E111: 0 | F111: 1099403.06 | G111: 75175.18 | H111: 142399.35 | I111: 148117.7 | J111: 0 | N111: 0
B112: BLOCK 5 | C112: 795925.79 | D112: =ROUND(D12*D63/100,2) -> 0 | E112: 0 | F112: 769815.4 | G112: 0 | H112: 5492.84 | I112: 20617.55 | J112: 0 | N112: 0
B113: ANNUAL MINIMUM | C113: 0 | J113: =BFG!F11 -> 0 | N113: 0
N114: 0
B115: SUBTOTAL | C115: =IF(ROUND(SUM(D115:J115),3)<>ROUND(SUM(C106:C113),3),#VALUE!,SUM(D115:J115)) -> 150186913.1 | D115: =SUM(D106:D113) -> 108938707.3 | E115: 33330731.92 | F115: 3815408.13 | G115: 365060.23 | H115: 2201277.16 | I115: 1122951.63 | J115: =SUM(J106:J113) -> 412776.78 | N115: 1
B116: NET SHIFTING ADJUSTMENT
B118: SUBTOTAL | C118: =SUM(D118:J118) -> 150186913.1 | D118: =D115+D116 -> 108938707.3 | E118: 33330731.92 | F118: 3815408.13 | G118: 365060.23 | H118: =H115+H116 -> 2201277.16 | I118: 1122951.63 | J118: 412776.78
B119: ADJUST TO ACTUAL | C119: =SUM(D119:J119) -> -155002.56 | D119: =ROUND(D18*D65/100,2) -> 0 | E119: =ROUND(E18*E65/100,2) -> -155002.56 | F119: =ROUND(F18*F65/100,2) -> 0 | G119: =ROUND(G18*G65/100,2) -> 0 | H119: 0 | I119: 0 | J119: 0
B121: ="TOTAL "&UPPER(CHOOSE(Base1_Billing2,$O$9,$O$10))&" REVENUE" -> TOTAL BASE TARIFF REVENUE | C121: =IF(ROUND(C118+C119,3)<>ROUND(SUM(D121:J121),3),#VALUE!,SUM(D121:J121)) -> 150031910.6 | D121: =D118+D119 -> 108938707.3 | E121: 33175729.36 | F121: 3815408.13 | G121: 365060.23 | H121: =H118+H119 -> 2201277.16 | I121: 1122951.63 | J121: 412776.78
B124: ADJUSTMENT REVENUE
B125: UNBILLED REVENUE ADJUSTMENT
A126: PDE-G-14 | B126: UNBILLED LOAD THERMS | C126: =SUM(D126:J126) -> -548012 | D126: =13906881-14293952 -> -387071 | E126: =4800267-5160823 -> -360556 | F126: =586528-386913 -> 199615
A127: PDE-G-2/5 | B127: UNBILLED LOAD RATE | D127: =D59 -> 79.915 | E127: =E65 -> 60.81918586 | F127: =F65 -> 60.24699541
B128: UNBILLED LOAD REVENUE | C128: =SUM(D128:J128) -> -408352.97 | D128: =ROUND(D126*D127/100,2) -> -309327.79 | E128: =ROUND(E126*E127/100,2) -> -219287.22 | F128: =ROUND(F126*F127/100,2) -> 120262.04
A130: PDE-G-14 | B130: WEATHER-SENSITIVE THERMS | C130: =SUM(D130:J130) -> 0 | D130: 0 | E130: 0
A131: PDE-G-2/5 | B131: WEATHER-SENSITIVE RATE | D131: =D59 -> 79.915 | E131: =I210 -> 66.07723556
B132: WEATHER-SENSITIVE REVENUE | C132: =SUM(D132:J132) -> 0 | D132: =ROUND(D130*D131/100,2) -> 0 | E132: =ROUND(E130*E131/100,2) -> 0
B134: TOTAL UNBILLED THERM ADJ | C134: =IF(ROUND(SUM(D134:J134),3)<>ROUND(C126+C130,3),#VALUE!,SUM(D134:J134)) -> -548012 | D134: =D126+D130 -> -387071 | E134: =E126+E130 -> -360556 | F134: =F126+F130 -> 199615
B135: TOTAL UNBILLED REVENUE ADJ | C135: =IF(ROUND(SUM(D135:J135),3)<>ROUND(C128+C132,3),#VALUE!,SUM(D135:J135)) -> -408352.97 | D135: =D128+D132 -> -309327.79 | E135: =E128+E132 -> -219287.22 | F135: =F128+F132 -> 120262.04
B136: WEATHER NORMALIZATION ADJ
A137: PDE-G-16 | B137: WEATHER-SENSITIVE THERMS | C137: =SUM(D137:J137) -> -5276178 | D137: -3780679 | E137: -1424019 | F137: -71480
A138: PDE-G-2/5 | B138: WEATHER-SENSITIVE RATE | D138: =D127 -> 79.915 | E138: =I210 -> 66.07723556 | F138: =I238 -> 58.16264011
B139: WEATHER-SENSITIVE REVENUE | C139: =SUM(D139:J139) -> -4003856.67 | D139: =ROUND(D137*D138/100,2) -> -3021329.62 | E139: =ROUND(E137*E138/100,2) -> -940952.39 | F139: =ROUND(F137*F138/100,2) -> -41574.66
B140: OTHER ADJUSTMENTS
B142: TOTAL ADJUSTMENT REVENUE | C142: =IF(ROUND(SUM(D142:J142),3)<>ROUND(C135+C139+C140,3),#VALUE!,SUM(D142:J142)) -> -4412209.64 | D142: =D135+D139+D140 -> -3330657.41 | E142: =E135+E139+E140 -> -1160239.61 | F142: =F135+F139+F140 -> 78687.38 | G142: 0 | H142: 0 | I142: 0 | J142: 0
B143: =B121 -> TOTAL BASE TARIFF REVENUE | C143: =SUM(D143:J143) -> 150031910.6 | D143: =D121 -> 108938707.3 | E143: 33175729.36 | F143: 3815408.13 | G143: 365060.23 | H143: =H121 -> 2201277.16 | I143: 1122951.63 | J143: 412776.78
B145: TOTAL PRESENT REVENUE | C145: =IF(ROUND(SUM(D145:J145),3)<>ROUND(C142+C143,3),#VALUE!,SUM(D145:J145)) -> 145619700.9 | D145: =D142+D143 -> 105608049.9 | E145: 32015489.75 | F145: =F142+F143 -> 3894095.51 | G145: 365060.23 | H145: =H142+H143 -> 2201277.16 | I145: 1122951.63 | J145: 412776.78
J149: TRANSPORT
J150: SCH 148 - WSU/
A151: WORK PAPER | D151: GEN SERVICE | E151: LRG GEN SVC | F151: EX LRG GEN SVC | G151: INTERRUPTIBLE | H151: TRANSPORT | I151: TRANSPORT | J151: BF GOODRICH
A152: REFERENCE | C152: TOTAL | D152: SCHEDULE 101 | E152: SCHEDULE 111 | F152: SCHEDULE 121 | G152: SCHEDULE 131 | H152: SCHEDULE 146 | I152: SCHEDULE 148 | J152: ANN. MINIMUM
B153: PROPOSED REVENUE
B154: =UPPER(CHOOSE(Base1_Billing2,$O$9,$O$10))&" REVENUE" -> BASE TARIFF REVENUE
B155: BASIC CHARGE | C155: =SUM(D155:J155) -> 19640999.64 | D155: =D48*D74 -> 19195850.88 | E155: =E48*E74 -> 0 | F155: 0 | G155: 0 | H155: 119564.76 | I155: 9600 | J155: 315984 | N155: =D155/$D$164 -> 0.1714471424
B156: MONTHLY MINIMUM | C156: 4493436.39 | D156: =D49*D75 -> 0 | E156: 4375303.83 | F156: 118132.56 | G156: 0 | H156: 0 | I156: 0 | J156: 0 | N156: =D156/$D$164 -> 0
B157: BLOCK 1 | C157: 31086760.34 | D157: =ROUND(D31*D77/100,2) -> 29311989.77 | E157: =ROUND(E31*E77/100,2) -> 358327.13 | F157: 8207.16 | G157: 75446.4 | H157: 671054.06 | I157: 564943.04 | J157: 96792.78 | N157: 0.2617991208
B158: BLOCK 2 | C158: 36593577.12 | D158: =ROUND(D32*D78/100,2) -> 24760979.52 | E158: 10720259.98 | F158: 114021.96 | G158: 102441.23 | H158: 567325.96 | I158: 328548.47 | J158: 0 | N158: 0.2211519149 | O158: =N158+N157 -> 0.4829510357
B159: BLOCK 3 | C159: 59882968.42 | D159: 38694847.55 | E159: 18447744.97 | F159: 1736536.77 | G159: 121216.69 | H159: 831497.57 | I159: 51124.87 | J159: 0 | N159: 0.3456018219
B160: BLOCK 4 | C160: 1495389.93 | D160: 0 | E160: 0 | F160: 1117953.15 | G160: 77565.89 | H160: 151753.19 | I160: 148117.7 | J160: 0 | N160: 0
B161: BLOCK 5 | C161: 796285.56 | D161: 0 | E161: 0 | F161: 769815.4 | G161: 0 | H161: 5852.61 | I161: 20617.55 | J161: 0 | N161: 0
B162: ANNUAL MINIMUM | C162: 0 | J162: =BFG!F11 -> 0 | N162: 0
N163: 0
B164: SUBTOTAL | C164: =IF(ROUND(SUM(D164:J164),3)<>ROUND(SUM(C155:C162),3),#VALUE!,SUM(D164:J164)) -> 153989417.4 | D164: =SUM(D155:D163) -> 111963667.7 | E164: 33901635.91 | F164: 3864667 | G164: 376670.21 | H164: 2347048.15 | I164: 1122951.63 | J164: 412776.78 | N164: 1
B165: NET SHIFTING ADJUSTMENT
B167: SUBTOTAL | C167: =SUM(D167:J167) -> 153989417.4 | D167: =D164+D165 -> 111963667.7 | E167: 33901635.91 | F167: 3864667 | G167: 376670.21 | H167: =H164+H165 -> 2347048.15 | I167: 1122951.63 | J167: 412776.78
B168: ADJUST TO ACTUAL | C168: =SUM(D168:J168) -> -158058.69 | D168: =ROUND(D41*D83/100,2) -> 0 | E168: =ROUND(E41*E83/100,2) -> -158058.69 | F168: 0 | G168: 0 | H168: 0 | I168: 0 | J168: 0
B170: ="TOTAL "&UPPER(CHOOSE(Base1_Billing2,$O$9,$O$10))&" REVENUE" -> TOTAL BASE TARIFF REVENUE | C170: =IF(ROUND(SUM(D170:J170),3)<>ROUND(C167+C168,3),#VALUE!,SUM(D170:J170)) -> 153831358.7 | D170: =D167+D168 -> 111963667.7 | E170: 33743577.22 | F170: 3864667 | G170: 376670.21 | H170: =H167+H168 -> 2347048.15 | I170: 1122951.63 | J170: 412776.78
B172: ADJUSTMENT REVENUE
B173: UNBILLED REVENUE ADJUSTMENT
B174: BASE LOAD THERMS | C174: =SUM(D174:J174) -> -548012 | D174: =D126 -> -387071 | E174: =E126 -> -360556 | F174: =F126 -> 199615
A175: PDE-G-2/5 | B175: BASE LOAD RATE | D175: =D83 -> 75.30322485 | E175: =E83 -> 62.01833635 | F175: =F83 -> 61.04966723
B176: BASE LOAD REVENUE | C176: =SUM(D176:J176) -> -393223.49 | D176: =ROUND(D174*D175/100,2) -> -291476.95 | E176: =ROUND(E174*E175/100,2) -> -223610.83 | F176: =ROUND(F174*F175/100,2) -> 121864.29
B178: WEATHER-SENSITIVE THERMS | C178: =SUM(D178:J178) -> 0 | D178: =D130 -> 0 | E178: =E130 -> 0 | F178: =F130 -> 0
A179: PDE-G-2/5 | B179: WEATHER-SENSITIVE RATE | D179: =D77 -> 71.625 | E179: =I220 -> 67.39638285 | F179: =F83 -> 61.04966723
B180: WEATHER-SENSITIVE REVENUE | C180: =SUM(D180:J180) -> 0 | D180: =ROUND(D178*D179/100,2) -> 0 | E180: =ROUND(E178*E179/100,2) -> 0 | F180: =ROUND(F178*F179/100,2) -> 0
B182: TOTAL UNBILLED THERM ADJ | C182: =C174+C178 -> -548012 | D182: =D174+D178 -> -387071 | E182: =E174+E178 -> -360556 | F182: =F174+F178 -> 199615
B183: TOTAL UNBILLED REVENUE ADJ | C183: =C176+C180 -> -393223.49 | D183: =D176+D180 -> -291476.95 | E183: =E176+E180 -> -223610.83 | F183: =F176+F180 -> 121864.29
B184: WEATHER NORMALIZATION ADJ
B185: WEATHER-SENSITIVE THERMS | C185: =SUM(D185:J185) -> -5276178 | D185: =D137 -> -3780679 | E185: =E137 -> -1424019 | F185: =F137 -> -71480
A186: PDE-G-2/5 | B186: WEATHER-SENSITIVE RATE | D186: =D175 -> 75.30322485 | E186: =I220 -> 67.39638285 | F186: =I250 -> 58.6024595
B187: WEATHER-SENSITIVE REVENUE | C187: =SUM(D187:J187) -> -3848599.55 | D187: =ROUND(D185*D186/100,2) -> -2846973.21 | E187: =ROUND(E185*E186/100,2) -> -959737.3 | F187: =ROUND(F185*F186/100,2) -> -41889.04
B188: OTHER ADJUSTMENTS
B190: TOTAL ADJUSTMENT REVENUE | C190: =SUM(D190:J190) -> -4241823.04 | D190: =D187+D183 -> -3138450.16 | E190: -1183348.13 | F190: 79975.25 | G190: 0 | H190: =H187+H183 -> 0 | I190: 0 | J190: 0
B191: =B170 -> TOTAL BASE TARIFF REVENUE | C191: =SUM(D191:J191) -> 153831358.7 | D191: =D170 -> 111963667.7 | E191: 33743577.22 | F191: 3864667 | G191: 376670.21 | H191: =H170 -> 2347048.15 | I191: 1122951.63 | J191: 412776.78
B192: TOTAL PROPOSED REVENUE | C192: =SUM(D192:J192) -> 149589535.7 | D192: =D190+D191 -> 108825217.6 | E192: 32560229.09 | F192: 3944642.25 | G192: 376670.21 | H192: =H190+H191 -> 2347048.15 | I192: 1122951.63 | J192: 412776.78
B193: TOTAL PRESENT REVENUE | C193: =SUM(D193:J193) -> 145619700.9 | D193: =D145 -> 105608049.9 | E193: 32015489.75 | F193: 3894095.51 | G193: 365060.23 | H193: =H145 -> 2201277.16 | I193: 1122951.63 | J193: 412776.78
B195: TOTAL INCREASED REVENUE | C195: =SUM(D195:J195) -> 3969834.72 | D195: =D192-D193 -> 3217167.67 | E195: =E192-E193 -> 544739.34 | F195: 50546.74 | G195: 11609.98 | H195: =H192-H193 -> 145770.99 | I195: 0 | J195: 0
B196: PERCENT REVENUE INCREASE | C196: =C195/C193 -> 0.02726165961 | D196: =D195/D193 -> 0.03046328072 | E196: 0.01701486825 | F196: =F195/F193 -> 0.01298035445 | G196: 0.03180291647 | H196: 0.06622109776 | I196: 0 | J196: 0
A200: WORK PAPER | D200: TOTAL | E200: TOTAL | F200: BASE LOAD | G200: BASE LOAD | H200: WTHR-SENS. | I200: WTHR-SENS.
A201: REFERENCE | C201: RATES | D201: THERMS | E201: REVENUE | F201: THERMS(1) | G201: REVENUE | H201: THERMS | I201: REVENUE
B203: PRESENT BASELOAD AND WEATHER-SENSITIVE RATE
B204: SCHEDULE 111
B205: 0-200 THERMS | C205: =E59 -> 6.85 | D205: =E8 -> 5231053 | E205: =C205*D205/100 -> 358327.1305 | F205: =MIN(D205,F209) -> 5231053 | G205: =F205*C205/100 -> 358327.1305 | H205: =D205-F205 -> 0 | I205: =H205*C205/100 -> 0
B206: 201-1,000 THERMS | C206: =E60 -> 72.081 | D206: =E9 -> 14581420 | E206: =C206*D206/100 -> 10510433.35 | F206: =MIN(F209-F205,D206) -> 9908805 | G206: =F206*C206/100 -> 7142365.732 | H206: =D206-F206 -> 4672615 | I206: =H206*C206/100 -> 3368067.618
B207: OVER 1,000 THERMS | C207: =E61 -> 65.068 | D207: =E10 -> 27796563 | E207: =C207*D207/100 -> 18086667.61 | F207: =MIN(F209-F205-F206,D207) -> 0 | G207: =F207*C207/100 -> 0 | H207: =D207-F207 -> 27796563 | I207: =H207*C207/100 -> 18086667.61
B209: TOTAL | D209: =D205+D206+D207 -> 47609036 | E209: =E205+E206+E207 -> 28955428.09 | F209: =526*E26 -> 15139858 | G209: =G205+G206+G207 -> 7500692.863 | H209: =H205+H206+H207 -> 32469178 | I209: =I205+I206+I207 -> 21454735.23
B210: AVERAGE RATE | E210: =E209/D209*100 -> 60.81918587 | G210: =G209/F209*100 -> 49.54268965 | I210: =I209/H209*100 -> 66.07723556
B213: PROPOSED BASELOAD AND WEATHER-SENSITIVE RATE
B214: SCHEDULE 111
B215: 0-200 THERMS | C215: =E77 -> 6.85 | D215: =E31 -> 5231053 | E215: =C215*D215/100 -> 358327.1305 | F215: =MIN(D215,F219) -> 5231053 | G215: =F215*C215/100 -> 358327.1305 | H215: =D215-F215 -> 0 | I215: =H215*C215/100 -> 0
B216: 201-1,000 THERMS | C216: =E78 -> 73.52 | D216: =E32 -> 14581420 | E216: =C216*D216/100 -> 10720259.98 | F216: =MIN(F219-F215,D216) -> 9908805 | G216: =F216*C216/100 -> 7284953.436 | H216: =D216-F216 -> 4672615 | I216: =H216*C216/100 -> 3435306.548
B217: OVER 1,000 THERMS | C217: =E79 -> 66.367 | D217: =E33 -> 27796563 | E217: =C217*D217/100 -> 18447744.97 | F217: =MIN(F219-F215-F216,D217) -> 0 | G217: =F217*C217/100 -> 0 | H217: =D217-F217 -> 27796563 | I217: =H217*C217/100 -> 18447744.97
B219: TOTAL | D219: =D215+D216+D217 -> 47609036 | E219: =E215+E216+E217 -> 29526332.08 | F219: =F209 -> 15139858 | G219: =G215+G216+G217 -> 7643280.566 | H219: =H215+H216+H217 -> 32469178 | I219: =I214+I215+I216+I217 -> 21883051.51
B220: AVERAGE RATE | E220: =E219/D219*100 -> 62.01833635 | G220: =G219/F219*100 -> 50.48449309 | I220: =I219/H219*100 -> 67.39638285
B223: (1) Base load per bill for Schedule 111 is shown on workpaper PDE-G-17 multiplied by total billings from PDE-G-1, or
B224: 526 X 28,783 = 15,139,858
A226: WORK PAPER | D226: TOTAL | E226: TOTAL | F226: BASE LOAD | G226: BASE LOAD | H226: WTHR-SENS. | I226: WTHR-SENS.
A227: REFERENCE | C227: RATES | D227: THERMS | E227: REVENUE | F227: THERMS(1) | G227: REVENUE | H227: THERMS | I227: REVENUE
B229: PRESENT BASELOAD AND WEATHER-SENSITIVE RATE
B230: SCHEDULE 121
B231: 0-500 THERMS | C231: =F59 -> 5.261 | D231: =F31 -> 156000 | E231: =C231*D231/100 -> 8207.16 | F231: =MIN(D231,F237) -> 156000 | G231: =F231*C231/100 -> 8207.16 | H231: =D231-F231 -> 0 | I231: =H231*C231/100 -> 0
B232: 501-1,000 THERMS | C232: =F60 -> 71.878 | D232: =F32 -> 156000 | E232: =C232*D232/100 -> 112129.68 | F232: =MIN(F237-F231,D232) -> 156000 | G232: =F232*C232/100 -> 112129.68 | H232: =D232-F232 -> 0 | I232: =H232*C232/100 -> 0
B233: 1001-10,000 THERMS | C233: 64.714 | D233: 2638873 | E233: =C233*D233/100 -> 1707720.273 | F233: =MIN(F237-F231-F232,D233) -> 2638873 | G233: =F233*C233/100 -> 1707720.273 | H233: =D233-F233 -> 0 | I233: =H233*C233/100 -> 0
B234: 10,001-25,000 THERMS | C234: 60.215 | D234: 1825796 | E234: =C234*D234/100 -> 1099403.061 | F234: =MIN(F237-F231-F232-F233,D234) -> 787511 | G234: =F234*C234/100 -> 474199.7486 | H234: =D234-F234 -> 1038285 | I234: =H234*C234/100 -> 625203.3128
B235: OVER 25,000 THERMS | C235: 56.596 | D235: 1360194 | E235: 769815.3962 | F235: =MIN(F237-F231-F232-F233-F234,D235) -> 0 | G235: 0 | H235: 1360194 | I235: 769815.3962
B237: TOTAL | D237: =D231+D232+D233+D234+D235 -> 6136863 | E237: =E231+E232+E233+E234+E235 -> 3697275.571 | F237: =11982*F26 -> 3738384 | G237: =G231+G232+G233 -> 1828057.113 | H237: =H231+H232+H233+H234+H235 -> 2398479 | I237: =I231+I232+I233+I234+I235 -> 1395018.709
B238: AVERAGE RATE | E238: =E237/D237*100 -> 60.24699543 | G238: =G237/F237*100 -> 48.89966128 | I238: =I237/H237*100 -> 58.16264011
B241: PROPOSED BASELOAD AND WEATHER-SENSITIVE RATE
B242: SCHEDULE 121
B243: 0-500 THERMS | C243: =F77 -> 5.261 | D243: =F31 -> 156000 | E243: =C243*D243/100 -> 8207.16 | F243: =MIN(D243,F249) -> 156000 | G243: =F243*C243/100 -> 8207.16 | H243: =D243-F243 -> 0 | I243: =H243*C243/100 -> 0
B244: 501-1,000 THERMS | C244: =F78 -> 73.091 | D244: =F32 -> 156000 | E244: =C244*D244/100 -> 114021.96 | F244: =MIN(F249-F243,D244) -> 156000 | G244: =F244*C244/100 -> 114021.96 | H244: =D244-F244 -> 0 | I244: =H244*C244/100 -> 0
B245: 1001-10,000 THERMS | C245: 65.806 | D245: 2638873 | E245: 1736536.766 | F245: =MIN(F249-F243-F244,D245) -> 2638873 | G245: =F245*C245/100 -> 1736536.766 | H245: 0 | I245: 0
B246: 10,001-25,000 THERMS | C246: 61.231 | D246: 1825796 | E246: 1117953.149 | F246: =MIN(F249-F243-F244-F245,D246) -> 787511 | G246: =F246*C246/100 -> 482200.8604 | H246: 1038285 | I246: 635752.2884
B247: OVER 25,000 THERMS | C247: 56.596 | D247: 1360194 | E247: 769815.3962 | F247: =MIN(F249-F243-F244-F245-F246,D247) -> 0 | G247: 0 | H247: 1360194 | I247: 769815.3962
B249: TOTAL | D249: =D243+D244+D245+D246+D247 -> 6136863 | E249: =E243+E244+E245+E246+E247 -> 3746534.431 | F249: =F237 -> 3738384 | G249: =G243+G244+G245+G246+G247 -> 2340966.747 | H249: =H243+H244+H245+H246+H247 -> 2398479 | I249: =I242+I243+I244+I245+I246+I247 -> 1405567.685
B250: AVERAGE RATE | E250: =E249/D249*100 -> 61.04966709 | G250: =G249/F249*100 -> 62.61975085 | I250: =I249/H249*100 -> 58.6024595
B252: (1) Base load per bill for Schedule 111 is shown on workpaper PDE-G-17 multiplied by total billings from PDE-G-1, or
B253: 11,982 X 312 = 3,738,384
D256: =D195/D48 -> 1.840215432 | E256: =E195/E49 -> 18.92573186 | F256: =F195/F49 -> 162.0087821 | G256: =G195/G48 -> 967.4983333 | H256: =H195/H48 -> 328.3130405
D257: =D46/D48 -> 68.08190906 | E257: =E46/E49 -> 1583.212417 | F257: =F46/F49 -> 20080.12179 | G257: =G46/G48 -> 53575.41667 | H257: =H46/H48 -> 66325.78604

Sheet Page 1, Exh1
A1: AVISTA UTILITIES
A2: WASHINGTON NATURAL GAS
A3: PROPOSED INCREASE BY SERVICE SCHEDULE
A4: 12 MONTHS ENDED DECEMBER 31, 2011
A5: (000s of Dollars)
D8: Base Tariff | F8: Base Tariff | G8: Base | H8: Total Billed | K8: Percent
D9: Revenue | E9: Proposed | F9: Revenue | G9: Tariff | H9: Revenue | I9: Sch. 191 | J9: Proposed | K9: Increase | N9: This worksheet pulls data from 'Pres & Prop Rev' tab.
A10: Line | B10: Type of | C10: Schedule | D10: Under Present | E10: General | F10: Under Proposed | G10: Percent | H10: at Present | I10: LIRAP/DSM | J10: General | K10: on Billed
A11: No. | B11: Service | C11: Number | D11: Rates(1) | E11: Increase | F11: Rates | G11: Increase | H11: Rates | I11: Increase | J11: Increase | K11: Revenue
B12: (a) | C12: (b) | D12: (c) | E12: (d) | F12: (e) | G12: (f) | H12: (g) | I12: (h) | J12: (h) | K12: (i)
A14: 1 | B14: General Service | C14: 101 | D14: ='Pres & Prop Rev'!$D$145/1000+0.5 -> 105608.5499 | E14: ='Pres & Prop Rev'!$D$195/1000 -> 3217.16767 | F14: ='Pres & Prop Rev'!$D$192/1000+0.5 -> 108825.7176 | G14: =E14/D14 -> 0.03046313649 | H14: 105608.5499 | I14: ='Pres & Prop Rev'!$D$46*'Page 2, Exh2'!$K$14/1000 -> 0 | J14: =E14+I14 -> 3217.16767 | K14: =J14/H14 -> 0.03046313649
A15: 2 | B15: Large General Service | C15: 111/112 | D15: ='Pres & Prop Rev'!$E$145/1000 -> 32015.48975 | E15: ='Pres & Prop Rev'!$E$195/1000 -> 544.73934 | F15: ='Pres & Prop Rev'!$E$192/1000-0.5 -> 32559.72909 | G15: =E15/D15 -> 0.01701486825 | H15: 32015.48975 | I15: ='Pres & Prop Rev'!$E$46*'Page 2, Exh2'!$K$19/1000 -> 0 | J15: =E15+I15 -> 544.73934 | K15: =J15/H15 -> 0.01701486825
A16: 3 | B16: Large General Svc.-High Annual Load Factor | C16: 121/122 | D16: ='Pres & Prop Rev'!$F$145/1000 -> 3894.09551 | E16: ='Pres & Prop Rev'!$F$195/1000 -> 50.54674 | F16: ='Pres & Prop Rev'!$F$192/1000 -> 3944.64225 | G16: 0.01298035445 | H16: 3894.09551 | I16: ='Pres & Prop Rev'!$F$46*'Page 2, Exh2'!$K$28/1000 -> 0 | J16: 50.54674 | K16: 0.01298035445
A17: 4 | B17: Interruptible Service | C17: 131/132 | D17: ='Pres & Prop Rev'!$G$145/1000 -> 365.06023 | E17: ='Pres & Prop Rev'!$G$195/1000 -> 11.60998 | F17: ='Pres & Prop Rev'!$G$192/1000 -> 376.67021 | G17: =E17/D17 -> 0.03180291647 | H17: 365.06023 | I17: ='Pres & Prop Rev'!$G$46*'Page 2, Exh2'!$K$40/1000 -> 0 | J17: 11.60998 | K17: =J17/H17 -> 0.03180291647
A18: 5 | B18: Transportation Service | C18: 146 | D18: ='Pres & Prop Rev'!$H$145/1000 -> 2201.27716 | E18: ='Pres & Prop Rev'!$H$195/1000 -> 145.77099 | F18: ='Pres & Prop Rev'!$H$192/1000 -> 2347.04815 | G18: =E18/D18 -> 0.06622109776 | H18: 2201.27716 | I18: 0 | J18: 145.77099 | K18: 0.06622109776
A19: 6 | B19: Special Contracts | C19: 148 | D19: =SUM('Pres & Prop Rev'!$I$145:$J$145)/1000 -> 1535.72841 | E19: =SUM('Pres & Prop Rev'!$I$195:$J$195)/1000 -> 0 | F19: =SUM('Pres & Prop Rev'!$I$192:$J$192)/1000 -> 1535.72841 | G19: 0 | H19: 1535.72841 | I19: 0 | J19: 0 | K19: 0
A20: 7 | B20: Total | D20: ='Pres & Prop Rev'!$C$145/1000+0.5 -> 145620.2009 | E20: ='Pres & Prop Rev'!$C$195/1000 -> 3969.83472 | F20: ='Pres & Prop Rev'!$C$192/1000+0.5 -> 149590.0357 | G20: =E20/D20+0.0007 -> 0.02796156601 | H20: =SUM(H14:H19)+1 -> 145621.201 | I20: =SUM(I14:I19) -> 0 | J20: =SUM(J14:J19) -> 3969.83472 | K20: =J20/H20 -> 0.0272613788
D21: =ROUND(D20-SUM(D14:D19),0) -> 0 | E21: =ROUND(E20-SUM(E14:E19),0) -> 0 | F21: =ROUND(F20-SUM(F14:F19),0)-1 -> 0 | J21: =ROUND(J20-SUM(J14:J19),-1) -> 0 | K21: =ROUND(K20-SUM(K14:K19),0) -> 0
D23: =IF(Base1_Billing2=2,"Exhibit won't work until Base1_Billing2 range set to '1'","") -> 
A25: (1) Includes Purchase Adjustment Schedule 150; excludes all other rate adjustments.
D29: =SUM(ROUND(D14:D19,0)) -> 145620 | E29: =SUM(ROUND(E14:E19,0)) -> 3971 | F29: =SUM(ROUND(F14:F19,0)) -> 149591 | H29: =SUM(ROUND(H14:H19,0)) -> 145620 | K29: =SUM(ROUND(K14:K19,0)) -> 0
D30: =ROUND(D20,0)-D29 -> 0 | E30: =ROUND(E20,0)-E29 -> -1 | F30: =ROUND(F20,0)-F29 -> -1 | H30: =ROUND(H20,0)-H29 -> 1 | K30: =ROUND(K20,0)-K29 -> 0
G33: Rate Sch. | H33: Therms | J33: Sch 155 Rate | K33: Billing Impact
G34: 112 | H34: ='Rev Runs CY'!J61 -> 941466 | J34: =0.0288+0.00046 -> 0.02926 | K34: =(H34*J34)/1000 -> 27.54729516
G35: 122 | H35: ='Rev Runs CY'!J63 -> 2163243 | J35: =0.02723+0.00046 -> 0.02769 | K35: =(H35*J35)/1000 -> 59.90019867

Sheet Page 2, Exh2
A1: AVISTA UTILITIES
A2: WASHINGTON NATURAL GAS | O2: This worksheet uses Base & Billing rates from 'Rate Design' tab.
A3: PRESENT AND PROPOSED RATE COMPONENTS BY SCHEDULE
E7: Sch. 150 | F7: Base Rate | G7: Present | J7: General | K7: Sch. 191 | L7: Proposed | M7: Proposed
D8: Base | E8: PGA | F8: including | G8: Billing | H8: Present | J8: Rate | K8: LIRAP/DSM | L8: Billing | M8: Base
A9: Type of Service | D9: Rate | E9: Rate Adj | F9: Schedule 150 | G9: Rate Adj. | H9: Billing Rate (2) | J9: Increase | K9: Increase | L9: Rate(2) | M9: Rate(1)
B10: (a) | D10: (b) | E10: (c) | F10: (d) | G10: (e) | H10: (f) | J10: (g) | K10: (f) | L10: (h) | M10: (i)
A11: General Service - Schedule 101
A12: Basic Charge | F12: ='Rate Design'!D4 -> 6 | G12: =H12-F12 -> 0 | H12: ='Rate Design'!D14 -> 6 | J12: =IF(ROUND(L12-H12,5)<>ROUND(M12-F12,5),#VALUE!,M12-F12) -> 4.98 | L12: ='Rate Design'!D36 -> 10.98 | M12: ='Rate Design'!D26 -> 10.98 | N12: =M12/F12-1 -> 0.83
A13: Usage Charge:
A14: ="First "&TEXT('Rate Design'!L29,"#,##0")&" therms" -> First 70 therms | D14: 0.91808 | E14: -0.11893 | F14: ='Rate Design'!D6/100 -> 0.79915 | G14: =H14-F14 -> 0.01775 | H14: ='Rate Design'!D16/100 -> 0.8169 | J14: =IF(ROUND(L14-H14-K14,5)<>ROUND(M14-F14,5),#VALUE!,M14-F14) -> -0.0829 | K14: ='Rate Design'!S38/100 -> 0 | L14: ='Rate Design'!D39/100 -> 0.734 | M14: ='Rate Design'!D29/100 -> 0.71625 | N14: =M14/F14-1 -> -0.1037352187
A15: ="All over "&TEXT('Rate Design'!L29,"#,##0")&" therms" -> All over 70 therms | D15: 0.91808 | E15: -0.11893 | F15: ='Rate Design'!D6/100 -> 0.79915 | G15: =H15-F15 -> 0.01775 | H15: ='Rate Design'!D16/100 -> 0.8169 | J15: =IF(ROUND(L15-H15-K15,5)<>ROUND(M15-F15,5),#VALUE!,M15-F15) -> 0.0121 | K15: ='Rate Design'!S39/100 -> 0 | L15: ='Rate Design'!D40/100 -> 0.829 | M15: ='Rate Design'!D30/100 -> 0.81125 | N15: =M15/F15-1 -> 0.01514108741
A17: Large General Service - Schedule 111
A18: Usage Charge: | N18: =M23/200+M24-M19 -> 0
A19: ="First "&TEXT('Rate Design'!M6,"#,##0")&" therms" -> First 200 therms | D19: 0.94807 | E19: -0.11952 | F19: ='Rate Design'!M11/100 -> 0.82855 | G19: =H19-F19 -> 0.00838 | H19: ='Rate Design'!M21/100 -> 0.83693 | J19: =IF(ROUND(L19-H19-K19,5)<>ROUND(M19-F19,5),#VALUE!,M19-F19) -> 0 | K19: ='Rate Design'!T38/100 -> 0 | L19: ='Rate Design'!M43/100 -> 0.83693 | M19: ='Rate Design'!M33/100 -> 0.82855 | N19: =M19/F19-1 -> 0 | O19: =F19*200 -> 165.71 | P19: =H19*200 -> 167.386 | Q19: =J19*200 -> 0 | R19: =L19*200 -> 167.386 | S19: =M19*200 -> 165.71 | U19: =M23/200+M24 -> 0.82855
A20: =TEXT('Rate Design'!M6,"#,##0")&" - "&TEXT('Rate Design'!M7,"#,##0")&" therms" -> 200 - 1,000 therms | D20: 0.84033 | E20: =E19 -> -0.11952 | F20: ='Rate Design'!E7/100 -> 0.72081 | G20: =H20-F20 -> 0.00838 | H20: ='Rate Design'!E17/100 -> 0.72919 | J20: =IF(ROUND(L20-H20-K20,5)<>ROUND(M20-F20,5),#VALUE!,M20-F20) -> 0.01439 | K20: =K19 -> 0 | L20: ='Rate Design'!E39/100 -> 0.74358 | M20: ='Rate Design'!E29/100 -> 0.7352 | N20: =M20/F20-1 -> 0.019963652
A21: ="All over "&TEXT('Rate Design'!M7,"#,##0")&" therms" -> All over 1,000 therms | D21: 0.7702 | E21: =E19 -> -0.11952 | F21: ='Rate Design'!E8/100 -> 0.65068 | G21: =H21-F21 -> 0.00838 | H21: ='Rate Design'!E18/100 -> 0.65906 | J21: =IF(ROUND(L21-H21-K21,5)<>ROUND(M21-F21,5),#VALUE!,M21-F21) -> 0.01299 | K21: =K20 -> 0 | L21: ='Rate Design'!E40/100 -> 0.67205 | M21: ='Rate Design'!E30/100 -> 0.66367 | N21: =M21/F21-1 -> 0.01996373025
A22: Minimum Charge:
A23: per month | F23: ='Rate Design'!E5 -> 152.01 | G23: =H23-F23 -> 0 | H23: ='Rate Design'!E15 -> 152.01 | J23: =IF(ROUND(L23-H23,5)<>ROUND(M23-F23,5),#VALUE!,M23-F23) -> 0 | L23: ='Rate Design'!E37 -> 152.01 | M23: ='Rate Design'!E27 -> 152.01 | N23: =M23/F23-1 -> 0
A24: per therm | D24: 0.18802 | E24: =E19 -> -0.11952 | F24: ='Rate Design'!E6/100 -> 0.0685 | G24: =H24-F24 -> 0.00838 | H24: ='Rate Design'!E16/100 -> 0.07688 | J24: =IF(ROUND(L24-H24-K24,5)<>ROUND(M24-F24,5),#VALUE!,M24-F24) -> 0 | K24: =K19 -> 0 | L24: ='Rate Design'!E38/100 -> 0.07688 | M24: ='Rate Design'!E28/100 -> 0.0685 | N24: =M24/F24-1 -> 0 | O24: =$F23+F24*200 -> 165.71 | P24: =$H23+H24*200 -> 167.386 | Q24: =$J23+J24*200 -> 0 | R24: =$L23+L24*200 -> 167.386 | S24: =$M23+M24*200 -> 165.71
O25: =O19-O24 -> 0 | P25: =P19-P24 -> 0 | Q25: =Q19-Q24 -> 0 | R25: =R19-R24 -> 0 | S25: =S19-S24 -> 0
A26: High Annual Load Factor Large General Service - Schedule 121
A27: Usage Charge: | N27: =M34/500+M35-M28 -> 0
A28: ="First "&TEXT('Rate Design'!N6,"#,##0")&" therms" -> First 500 therms | D28: 0.93075 | E28: -0.12088 | F28: ='Rate Design'!N11/100 -> 0.80987 | G28: =H28-F28 -> 0.00902 | H28: ='Rate Design'!N21/100 -> 0.81889 | J28: =IF(ROUND(L28-H28-K28,5)<>ROUND(M28-F28,5),#VALUE!,ROUND(M28-F28,5)) -> 0 | K28: ='Rate Design'!U38/100 -> 0 | L28: ='Rate Design'!N43/100 -> 0.81889 | M28: ='Rate Design'!N33/100 -> 0.80987 | N28: =M28/F28-1 -> 0 | O28: =F28*500 -> 404.935 | P28: =H28*500 -> 409.445 | Q28: =J28*500 -> 0 | R28: =L28*500 -> 409.445 | S28: =M28*500 -> 404.935 | U28: =M34/500+M35 -> 0.80987
A29: =TEXT('Rate Design'!N6,"#,##0")&" - "&TEXT('Rate Design'!N7,"#,##0")&" therms" -> 500 - 1,000 therms | D29: 0.83966 | E29: =E28 -> -0.12088 | F29: ='Rate Design'!F7/100 -> 0.71878 | G29: =H29-F29 -> 0.00902 | H29: ='Rate Design'!F17/100 -> 0.7278 | J29: =IF(ROUND(L29-H29-K29,5)<>ROUND(M29-F29,5),#VALUE!,ROUND(M29-F29,5)) -> 0.01213 | K29: =K$28 -> 0 | L29: ='Rate Design'!F39/100 -> 0.73993 | M29: ='Rate Design'!F29/100 -> 0.73091 | N29: =M29/F29-1 -> 0.01687581736
A30: =TEXT('Rate Design'!N7,"#,##0")&" - "&TEXT('Rate Design'!N8,"#,##0")&" therms" -> 1,000 - 10,000 therms | D30: 0.76802 | E30: =E28 -> -0.12088 | F30: ='Rate Design'!F8/100 -> 0.64714 | G30: =H30-F30 -> 0.00902 | H30: ='Rate Design'!F18/100 -> 0.65616 | J30: =IF(ROUND(L30-H30-K30,5)<>ROUND(M30-F30,5),#VALUE!,ROUND(M30-F30,5)) -> 0.01092 | K30: =K$28 -> 0 | L30: ='Rate Design'!F40/100 -> 0.66708 | M30: ='Rate Design'!F30/100 -> 0.65806 | N30: =M30/F30-1 -> 0.01687424669
A31: =TEXT('Rate Design'!N8,"#,##0")&" - "&TEXT('Rate Design'!N9,"#,##0")&" therms" -> 10,000 - 25,000 therms | D31: 0.72303 | E31: =E28 -> -0.12088 | F31: ='Rate Design'!F9/100 -> 0.60215 | G31: =H31-F31 -> 0.00902 | H31: ='Rate Design'!F19/100 -> 0.61117 | J31: =IF(ROUND(L31-H31-K31,5)<>ROUND(M31-F31,5),#VALUE!,ROUND(M31-F31,5)) -> 0.01016 | K31: =K$28 -> 0 | L31: ='Rate Design'!F41/100 -> 0.62133 | M31: ='Rate Design'!F31/100 -> 0.61231 | N31: =M31/F31-1 -> 0.01687287221
A32: ="All over "&TEXT('Rate Design'!N9,"#,##0")&" therms" -> All over 25,000 therms | D32: 0.68684 | E32: =E28 -> -0.12088 | F32: ='Rate Design'!F10/100 -> 0.56596 | G32: =H32-F32 -> 0.00902 | H32: ='Rate Design'!F20/100 -> 0.57498 | J32: =IF(ROUND(L32-H32-K32,5)<>ROUND(M32-F32,5),#VALUE!,ROUND(M32-F32,5)) -> 0 | K32: =K$28 -> 0 | L32: ='Rate Design'!F42/100 -> 0.57498 | M32: ='Rate Design'!F32/100 -> 0.56596 | N32: =M32/F32-1 -> 0
A33: Minimum Charge:
A34: per month | F34: ='Rate Design'!F5 -> 378.63 | G34: =H34-F34 -> 0 | H34: ='Rate Design'!F15 -> 378.63 | J34: =IF(ROUND(L34-H34,5)<>ROUND(M34-F34,5),#VALUE!,M34-F34) -> 0 | L34: ='Rate Design'!F37 -> 378.63 | M34: ='Rate Design'!F27 -> 378.63 | N34: =M34/F34-1 -> 0
A35: per therm | D35: 0.17349 | E35: =E28 -> -0.12088 | F35: ='Rate Design'!F6/100 -> 0.05261 | G35: =H35-F35 -> 0.00902 | H35: ='Rate Design'!F16/100 -> 0.06163 | J35: =IF(ROUND(L35-H35-K35,5)<>ROUND(M35-F35,5),#VALUE!,M35-F35) -> -6.938893904e-18 | K35: =K$28 -> 0 | L35: ='Rate Design'!F38/100 -> 0.06163 | M35: ='Rate Design'!F28/100 -> 0.05261 | N35: =M35/F35-1 -> 0 | O35: =F34+F35*500 -> 404.935 | P35: =H34+H35*500 -> 409.445 | Q35: =J34+J35*500 -> -3.469446952e-15 | R35: =L34+L35*500 -> 409.445 | S35: =M34+M35*500 -> 404.935
A36: Annual Minimum per therm | F36: Present: | G36: 0.26472 | L36: Proposed: | M36: =F30-0.37603-N("Tariffed Commodity Rate, 2012 PGA - Grossed up for Rev Related Items")+J30 -> 0.28203 | N36: =M36/G36-1 -> 0.06538984587 | O36: =O28-O35 -> 0 | P36: =P28-P35 -> 0 | Q36: =Q28-Q35 -> 3.469446952e-15 | R36: =R28-R35 -> 0 | S36: =S28-S35 -> 0
A38: Interruptible Service - Schedule 132
A39: Usage Charge:
A40: ="First "&TEXT('Rate Design'!O6,"#,##0")&" therms" -> First 10,000 therms | D40: 0.73315 | E40: -0.12381 | F40: ='Rate Design'!G6/100 -> 0.60934 | G40: =H40-F40 -> 0.03506 | H40: ='Rate Design'!G16/100 -> 0.6444 | J40: =IF(ROUND(L40-H40-K40,5)<>ROUND(M40-F40,5),#VALUE!,M40-F40) -> 0.01938 | K40: ='Rate Design'!V38/100 -> 0 | L40: ='Rate Design'!G38/100 -> 0.66378 | M40: ='Rate Design'!G28/100 -> 0.62872 | N40: =M40/F40-1 -> 0.03180490367
A41: =TEXT('Rate Design'!O6,"#,##0")&" - "&TEXT('Rate Design'!O7,"#,##0")&" therms" -> 10,000 - 25,000 therms | D41: 0.69005 | E41: =E40 -> -0.12381 | F41: ='Rate Design'!G7/100 -> 0.56624 | G41: =H41-F41 -> 0.03506 | H41: ='Rate Design'!G17/100 -> 0.6013 | J41: =IF(ROUND(L41-H41-K41,5)<>ROUND(M41-F41,5),#VALUE!,M41-F41) -> 0.01801 | K41: =K$40 -> 0 | L41: ='Rate Design'!G39/100 -> 0.61931 | M41: ='Rate Design'!G29/100 -> 0.58425 | N41: =M41/F41-1 -> 0.03180630122
A42: =TEXT('Rate Design'!O7,"#,##0")&" - "&TEXT('Rate Design'!O8,"#,##0")&" therms" -> 25,000 - 50,000 therms | D42: 0.67948 | E42: =E40 -> -0.12381 | F42: ='Rate Design'!G8/100 -> 0.55567 | G42: =H42-F42 -> 0.03506 | H42: ='Rate Design'!G18/100 -> 0.59073 | J42: =IF(ROUND(L42-H42-K42,5)<>ROUND(M42-F42,5),#VALUE!,M42-F42) -> 0.01767 | K42: =K$40 -> 0 | L42: ='Rate Design'!G40/100 -> 0.6084 | M42: ='Rate Design'!G30/100 -> 0.57334 | N42: =M42/F42-1 -> 0.03179944931
A43: ="All over "&TEXT('Rate Design'!O8,"#,##0")&" therms" -> All over 50,000 therms | D43: 0.67598 | E43: =E40 -> -0.12381 | F43: ='Rate Design'!G9/100 -> 0.55217 | G43: =H43-F43 -> 0.03506 | H43: ='Rate Design'!G19/100 -> 0.58723 | J43: =IF(ROUND(L43-H43-K43,5)<>ROUND(M43-F43,5),#VALUE!,M43-F43) -> 0.01756 | K43: =K$40 -> 0 | L43: ='Rate Design'!G41/100 -> 0.60479 | M43: ='Rate Design'!G31/100 -> 0.56973 | N43: =M43/F43-1 -> 0.03180180017
A44: Annual Minimum per therm | F44: Present: | G44: 0.1857 | L44: Proposed: | M44: =F41-0.37603-N("Tariffed Commodity Rate, 2012 PGA - Grossed up for Rev Related Items")+J41 -> 0.20822 | N44: =M44/G44-1 -> 0.121270867
A46: Transportation Service - Schedule 146
A47: Basic Charge | F47: ='Rate Design'!H4 -> 250 | G47: =H47-F47 -> 0 | H47: ='Rate Design'!H14 -> 250 | J47: =IF(ROUND(L47-H47,5)<>ROUND(M47-F47,5),#VALUE!,M47-F47) -> 19.29 | L47: ='Rate Design'!H36 -> 269.29 | M47: ='Rate Design'!H26 -> 269.29 | N47: =M47/F47-1 -> 0.07716
A48: Usage Charge:
A49: ="First "&TEXT('Rate Design'!P6,"#,##0")&" therms" -> First 20,000 therms | D49: 0.08151 | F49: ='Rate Design'!H6/100 -> 0.08151 | G49: =H49-F49 -> 5e-05 | H49: ='Rate Design'!H16/100 -> 0.08156 | J49: =IF(ROUND(L49-H49,5)<>ROUND(M49-F49,5),#VALUE!,M49-F49) -> 0.00535 | L49: ='Rate Design'!H38/100 -> 0.08691 | M49: ='Rate Design'!H28/100 -> 0.08686 | N49: =M49/F49-1 -> 0.06563611827
A50: =TEXT('Rate Design'!P6,"#,##0")&" - "&TEXT('Rate Design'!P7,"#,##0")&" therms" -> 20,000 - 50,000 therms | D50: 0.07257 | F50: ='Rate Design'!H7/100 -> 0.07257 | G50: =H50-F50 -> 5e-05 | H50: ='Rate Design'!H17/100 -> 0.07262 | J50: =IF(ROUND(L50-H50,5)<>ROUND(M50-F50,5),#VALUE!,M50-F50) -> 0.00476 | L50: ='Rate Design'!H39/100 -> 0.07738 | M50: ='Rate Design'!H29/100 -> 0.07733 | N50: =M50/F50-1 -> 0.06559184236
A51: =TEXT('Rate Design'!P7,"#,##0")&" - "&TEXT('Rate Design'!P8,"#,##0")&" therms" -> 50,000 - 300,000 therms | D51: 0.06548 | F51: ='Rate Design'!H8/100 -> 0.06548 | G51: =H51-F51 -> 5e-05 | H51: ='Rate Design'!H18/100 -> 0.06553 | J51: =IF(ROUND(L51-H51,5)<>ROUND(M51-F51,5),#VALUE!,M51-F51) -> 0.0043 | L51: ='Rate Design'!H40/100 -> 0.06983 | M51: ='Rate Design'!H30/100 -> 0.06978 | N51: =M51/F51-1 -> 0.06566890654
A52: =TEXT('Rate Design'!P8,"#,##0")&" - "&TEXT('Rate Design'!P9,"#,##0")&" therms" -> 300,000 - 500,000 therms | D52: 0.06059 | F52: ='Rate Design'!H9/100 -> 0.06059 | G52: =H52-F52 -> 5e-05 | H52: ='Rate Design'!H19/100 -> 0.06064 | J52: =IF(ROUND(L52-H52,5)<>ROUND(M52-F52,5),#VALUE!,M52-F52) -> 0.00398 | L52: ='Rate Design'!H41/100 -> 0.06462 | M52: ='Rate Design'!H31/100 -> 0.06457 | N52: =M52/F52-1 -> 0.06568740716
A53: ="All over "&TEXT('Rate Design'!P9,"#,##0")&" therms" -> All over 500,000 therms | D53: 0.04565 | F53: ='Rate Design'!H10/100 -> 0.04565 | G53: =H53-F53 -> 5e-05 | H53: ='Rate Design'!H20/100 -> 0.0457 | J53: =IF(ROUND(L53-H53,5)<>ROUND(M53-F53,5),#VALUE!,M53-F53) -> 0.00299 | L53: ='Rate Design'!H42/100 -> 0.04869 | M53: ='Rate Design'!H32/100 -> 0.04864 | N53: =M53/F53-1 -> 0.06549835706
A54: Annual Minimum per therm | F54: Present: | G54: =F50 -> 0.07257 | L54: Proposed: | M54: =M50 -> 0.07733 | N54: =M54/G54-1 -> 0.06559184236
A57: (1) Includes Schedules 150 (Purchased Gas Cost Adjustment).
A59: (2) Includes Schedule 150 (Purchase Gas Cost Adjustment), Schedule 155 (Gas Rate Adjustment),
A60: Schedule 159 (Gas Decoupling Rate Adjustment), and Schedule 191 (Public Purpose Rider Adjustment).

Sheet Page 3-5, Crossover
A1: Line No. | B1: (a) | C1: (b) | D1: (c) | F1: (d) | G1: (e) | I1: (f) | J1: (g) | L1: (h) | M1: (i)
A2: 1 | B2: Bill Comparison
A3: 2 | B3: Schedule 101 - General Service | L3: Compare
A4: 3 | C4: Current | F4: Proposed | I4: Revised | L4: Schedule 111/112 | R4: 3/4-inch | S4: 0.75
A5: 4 | B5: Customer Count | C5: ='Bill Determ'!C7/12 -> 145688 | F5: =C5 -> 145688 | I5: =F5 -> 145688 | L5: ='Bill Determ'!F21 -> 28783 | R5: 1-inch | S5: 1
A6: 5 | B6: Base | C6: ='Rate Design'!D4 -> 6 | F6: 10 | I6: ='Rate Design'!D26 -> 10.98 | L6: ='Rate Design'!E63 -> 152.01 | R6: 1 1/2-inch | S6: 1.5
A7: 6 | B7: Allowance | C7: 0 | F7: 0 | I7: 0 | L7: 0 | R7: 2-inch | S7: 2
A8: 7 | B8: Rate 1 | C8: ='Rate Design'!D16/100 -> 0.8169 | F8: =0.84576 -> 0.84576 | G8: 7.276 | H8: 7.276 | I8: ='Rate Design'!D39/100 -> 0.734 | L8: ='Rate Design'!E38/100 -> 0.07688 | R8: 3-inch | S8: 3
A9: 8 | B9: Rate 2 | C9: =C8 -> 0.8169 | F9: =F8 -> 0.84576 | G9: 8.406 | H9: 8.406 | I9: ='Rate Design'!D39/100 -> 0.734 | L9: ='Rate Design'!E39/100 -> 0.74358 | R9: 4-inch | S9: 4
A10: 9 | B10: Rate 3 | C10: =C9 -> 0.8169 | F10: =F9 -> 0.84576 | G10: 9.791 | H10: 9.791 | I10: ='Rate Design'!D30/100 -> 0.81125 | L10: ='Rate Design'!E40/100 -> 0.67205 | R10: 6-inch | S10: 6
A11: 10 | B11: Block 1 | C11: ='Rate Design'!L6 -> 9999999 | F11: =C11 -> 9999999 | I11: ='Rate Design'!L29 -> 70 | L11: ='Rate Design'!M38 -> 200
A12: 11 | B12: Block 2 | C12: ='Rate Design'!L6 -> 9999999 | F12: =C12 -> 9999999 | I12: ='Rate Design'!L29 -> 70 | L12: ='Rate Design'!M39 -> 1000
A13: 12 | B13: Block 3 (Over) | C13: =C12+1 -> 10000000 | F13: =F12+1 -> 10000000 | I13: =I12+1 -> 71 | L13: =L12+1 -> 1001
A14: 13 | B14: Usage Per Therms | C14: 1 | F14: 1 | I14: 1 | L14: 1
A15: 14
A16: 15 | B16: =B14 -> Usage Per Therms | C16: Current Monthly Bill | D16: Proposed vs. Current | F16: Proposed Monthly Bill | G16: Revised vs. Proposed | I16: Revised Monthly Bill | J16: Revised vs. Current | L16: Revised Monthly Bill | M16: Sch 111 vs. Revised
A17: 16 | B17: 0 | C17: =(($C$6)+(IF($B17<$C$7,0,((IF(($B17-$C$7)>$C$11,($C$11/$C$14*$C$8),(IF(($B17-$C$7)>$C$11,$C$11,+($B17-$C$7)))/$C$14*$C$8)))+((IF(($B17-$C$7)>$C$12,(((($C$12-$C$11)/$C$14)*$C$9)),((IF(($B17-$C$7)>($C$12),($C$12-$C$11),(+($B17-$C$7)-(IF(($B17-$C$7)>$C$11,$C$11,+($B17-$C$7)))))))/$C$14*$C$9)))+((IF((IF(($B17-$C$7)>($C$13),($B17-$C$7)-($C$12),0))<1,0,(IF(($B17-$C$7)>($C$13),($B17-$C$7)-($C$12),0))/$C$14*$C$10)))))) -> 6 | D17: =(F17-C17)/C17 -> 0.6666666667 | F17: =(($F$6)+(IF($B17<$F$7,0,((IF(($B17-$F$7)>$F$11,($F$11/$F$14*$F$8),(IF(($B17-$F$7)>$F$11,$F$11,+($B17-$F$7)))/$F$14*$F$8)))+((IF(($B17-$F$7)>$F$12,(((($F$12-$F$11)/$F$14)*$F$9)),((IF(($B17-$F$7)>($F$12),($F$12-$F$11),(+($B17-$F$7)-(IF(($B17-$F$7)>$F$11,$F$11,+($B17-$F$7)))))))/$F$14*$F$9)))+((IF((IF(($B17-$F$7)>($F$13),($B17-$F$7)-($F$12),0))<1,0,(IF(($B17-$F$7)>($F$13),($B17-$F$7)-($F$12),0))/$F$14*$F$10)))))) -> 10 | G17: =(I17-F17)/F17 -> 0.098 | I17: =(($I$6)+(IF($B17<$I$7,0,((IF(($B17-$I$7)>$I$11,($I$11/$I$14*$I$8),(IF(($B17-$I$7)>$I$11,$I$11,+($B17-$I$7)))/$I$14*$I$8)))+((IF(($B17-$I$7)>$I$12,(((($I$12-$I$11)/$I$14)*$I$9)),((IF(($B17-$I$7)>($I$12),($I$12-$I$11),(+($B17-$I$7)-(IF(($B17-$I$7)>$I$11,$I$11,+($B17-$I$7)))))))/$I$14*$I$9)))+((IF((IF(($B17-$I$7)>($I$13),($B17-$I$7)-($I$12),0))<1,0,(IF(($B17-$I$7)>($I$13),($B17-$I$7)-($I$12),0))/$I$14*$I$10)))))) -> 10.98 | J17: =(+I17-C17)/C17 -> 0.83 | L17: =(($L$6)+(IF($B17<$L$7,0,((IF(($B17-$L$7)>$L$11,($L$11/$L$14*$L$8),(IF(($B17-$L$7)>$L$11,$L$11,+($B17-$L$7)))/$L$14*$L$8)))+((IF(($B17-$L$7)>$L$12,(((($L$12-$L$11)/$L$14)*$L$9)),((IF(($B17-$L$7)>($L$12),($L$12-$L$11),(+($B17-$L$7)-(IF(($B17-$L$7)>$L$11,$L$11,+($B17-$L$7)))))))/$L$14*$L$9)))+((IF((IF(($B17-$L$6)>($L$13),($B17-$L$7)-($L$12),0))<1,0,(IF(($B17-$L$7)>($L$13),($B17-$L$7)-($L$12),0))/$L$14*$L$10)))))) -> 152.01 | M17: =(+L17-I17)/I17 -> 12.8442623
A18: 17 | B18: 10 | C18: =(($C$6)+(IF($B18<$C$7,0,((IF(($B18-$C$7)>$C$11,($C$11/$C$14*$C$8),(IF(($B18-$C$7)>$C$11,$C$11,+($B18-$C$7)))/$C$14*$C$8)))+((IF(($B18-$C$7)>$C$12,(((($C$12-$C$11)/$C$14)*$C$9)),((IF(($B18-$C$7)>($C$12),($C$12-$C$11),(+($B18-$C$7)-(IF(($B18-$C$7)>$C$11,$C$11,+($B18-$C$7)))))))/$C$14*$C$9)))+((IF((IF(($B18-$C$7)>($C$13),($B18-$C$7)-($C$12),0))<1,0,(IF(($B18-$C$7)>($C$13),($B18-$C$7)-($C$12),0))/$C$14*$C$10)))))) -> 14.169 | D18: =(F18-C18)/C18 -> 0.3026748536 | F18: =(($F$6)+(IF($B18<$F$7,0,((IF(($B18-$F$7)>$F$11,($F$11/$F$14*$F$8),(IF(($B18-$F$7)>$F$11,$F$11,+($B18-$F$7)))/$F$14*$F$8)))+((IF(($B18-$F$7)>$F$12,(((($F$12-$F$11)/$F$14)*$F$9)),((IF(($B18-$F$7)>($F$12),($F$12-$F$11),(+($B18-$F$7)-(IF(($B18-$F$7)>$F$11,$F$11,+($B18-$F$7)))))))/$F$14*$F$9)))+((IF((IF(($B18-$F$7)>($F$13),($B18-$F$7)-($F$12),0))<1,0,(IF(($B18-$F$7)>($F$13),($B18-$F$7)-($F$12),0))/$F$14*$F$10)))))) -> 18.4576 | G18: =(I18-F18)/F18 -> -0.007454923717 | I18: =(($I$6)+(IF($B18<$I$7,0,((IF(($B18-$I$7)>$I$11,($I$11/$I$14*$I$8),(IF(($B18-$I$7)>$I$11,$I$11,+($B18-$I$7)))/$I$14*$I$8)))+((IF(($B18-$I$7)>$I$12,(((($I$12-$I$11)/$I$14)*$I$9)),((IF(($B18-$I$7)>($I$12),($I$12-$I$11),(+($B18-$I$7)-(IF(($B18-$I$7)>$I$11,$I$11,+($B18-$I$7)))))))/$I$14*$I$9)))+((IF((IF(($B18-$I$7)>($I$13),($B18-$I$7)-($I$12),0))<1,0,(IF(($B18-$I$7)>($I$13),($B18-$I$7)-($I$12),0))/$I$14*$I$10)))))) -> 18.32 | J18: 0.2929635119 | L18: =(($L$6)+(IF($B18<$L$7,0,((IF(($B18-$L$7)>$L$11,($L$11/$L$14*$L$8),(IF(($B18-$L$7)>$L$11,$L$11,+($B18-$L$7)))/$L$14*$L$8)))+((IF(($B18-$L$7)>$L$12,(((($L$12-$L$11)/$L$14)*$L$9)),((IF(($B18-$L$7)>($L$12),($L$12-$L$11),(+($B18-$L$7)-(IF(($B18-$L$7)>$L$11,$L$11,+($B18-$L$7)))))))/$L$14*$L$9)))+((IF((IF(($B18-$L$6)>($L$13),($B18-$L$7)-($L$12),0))<1,0,(IF(($B18-$L$7)>($L$13),($B18-$L$7)-($L$12),0))/$L$14*$L$10)))))) -> 152.7788 | M18: =(+L18-I18)/I18 -> 7.339454148
A19: 18 | B19: 20 | C19: =(($C$6)+(IF($B19<$C$7,0,((IF(($B19-$C$7)>$C$11,($C$11/$C$14*$C$8),(IF(($B19-$C$7)>$C$11,$C$11,+($B19-$C$7)))/$C$14*$C$8)))+((IF(($B19-$C$7)>$C$12,(((($C$12-$C$11)/$C$14)*$C$9)),((IF(($B19-$C$7)>($C$12),($C$12-$C$11),(+($B19-$C$7)-(IF(($B19-$C$7)>$C$11,$C$11,+($B19-$C$7)))))))/$C$14*$C$9)))+((IF((IF(($B19-$C$7)>($C$13),($B19-$C$7)-($C$12),0))<1,0,(IF(($B19-$C$7)>($C$13),($B19-$C$7)-($C$12),0))/$C$14*$C$10)))))) -> 22.338 | D19: 0.2049064375 | F19: =(($F$6)+(IF($B19<$F$7,0,((IF(($B19-$F$7)>$F$11,($F$11/$F$14*$F$8),(IF(($B19-$F$7)>$F$11,$F$11,+($B19-$F$7)))/$F$14*$F$8)))+((IF(($B19-$F$7)>$F$12,(((($F$12-$F$11)/$F$14)*$F$9)),((IF(($B19-$F$7)>($F$12),($F$12-$F$11),(+($B19-$F$7)-(IF(($B19-$F$7)>$F$11,$F$11,+($B19-$F$7)))))))/$F$14*$F$9)))+((IF((IF(($B19-$F$7)>($F$13),($B19-$F$7)-($F$12),0))<1,0,(IF(($B19-$F$7)>($F$13),($B19-$F$7)-($F$12),0))/$F$14*$F$10)))))) -> 26.9152 | G19: -0.04663535846 | I19: =(($I$6)+(IF($B19<$I$7,0,((IF(($B19-$I$7)>$I$11,($I$11/$I$14*$I$8),(IF(($B19-$I$7)>$I$11,$I$11,+($B19-$I$7)))/$I$14*$I$8)))+((IF(($B19-$I$7)>$I$12,(((($I$12-$I$11)/$I$14)*$I$9)),((IF(($B19-$I$7)>($I$12),($I$12-$I$11),(+($B19-$I$7)-(IF(($B19-$I$7)>$I$11,$I$11,+($B19-$I$7)))))))/$I$14*$I$9)))+((IF((IF(($B19-$I$7)>($I$13),($B19-$I$7)-($I$12),0))<1,0,(IF(($B19-$I$7)>($I$13),($B19-$I$7)-($I$12),0))/$I$14*$I$10)))))) -> 25.66 | J19: 0.1487151938 | L19: 153.5476 | M19: 4.983928293
A20: 19 | B20: 30 | C20: 30.507 | D20: 0.1594978202 | F20: 35.3728 | G20: -0.06707979012 | I20: 33 | J20: 0.08171894975 | L20: 154.3164 | M20: 3.676254545
A21: 20 | B21: 40 | C21: 38.676 | D21: 0.1332712793 | F21: 43.8304 | G21: -0.07963422647 | I21: 40.34 | J21: 0.04302409763 | L21: 155.0852 | M21: 2.844452157
A22: 21 | B22: 50 | C22: 46.845 | D22: 0.116191696 | F22: 52.288 | G22: -0.08812729498 | I22: 47.68 | J22: 0.01782474117 | L22: 155.854 | M22: 2.26875
A23: 22 | B23: 60 | C23: 55.014 | D23: 0.1041843894 | F23: 60.7456 | G23: -0.0942553864 | I23: 55.02 | J23: 0.0001090631476 | L23: 156.6228 | M23: 1.846652126
A24: 23 | B24: 68 | C24: 61.5492 | D24: 0.09687339559 | F24: 67.51168 | G24: -0.09805236664 | I24: 60.892 | J24: -0.01067763675 | L24: 157.23784 | M24: 1.582241345 | X24: =I24-C24 -> -0.6572
A25: 24 | B25: 70 | C25: 63.183 | D25: 0.09528195875 | F25: 69.2032 | G25: -0.09888560067 | I25: 62.36 | J25: -0.01302565564 | L25: 157.3916 | M25: 1.523919179
A26: 25 | B26: 80 | C26: 71.352 | D26: 0.08841798408 | F26: 77.6608 | G26: -0.09256021056 | I26: 70.4725 | J26: -0.0123262137 | L26: 158.1604 | M26: 1.24428536
A27: 26 | B27: 90 | C27: 79.521 | D27: 0.08296424844 | F27: 86.1184 | G27: -0.08747724064 | I27: 78.585 | J27: -0.01177047572 | L27: 158.9292 | M27: 1.022385952
A28: 27 | B28: 100 | C28: 87.69 | D28: 0.07852662789 | F28: 94.576 | G28: -0.08330337506 | I28: 86.6975 | J28: -0.01131828031 | L28: 159.698 | M28: 0.8420138989
A29: 28 | B29: 110 | C29: 95.859 | D29: 0.07484534577 | F29: 103.0336 | G29: -0.07981474005 | I29: 94.81 | J29: -0.01094315609 | L29: 160.4668 | M29: 0.692509229
A30: 29 | B30: 120 | C30: 104.028 | D30: 0.07174222325 | F30: 111.4912 | G30: -0.07685539307 | I30: 102.9225 | J30: -0.01062694659 | L30: 161.2356 | M30: 0.5665729068
A31: 30 | B31: 130 | C31: 112.197 | D31: 0.06909097391 | F31: 119.9488 | G31: -0.07431337371 | I31: 111.035 | J31: -0.01035678316 | L31: 162.0044 | M31: 0.4590390417
A32: 31 | B32: 140 | C32: 120.366 | D32: 0.06679959457 | F32: 128.4064 | G32: -0.072106219 | I32: 119.1475 | J32: -0.01012329063 | L32: 162.7732 | M32: 0.3661486813
A33: 32 | B33: 150 | C33: 128.535 | D33: 0.06479947096 | F33: 136.864 | G33: -0.07017184943 | I33: 127.26 | J33: -0.009919477185 | L33: 163.542 | M33: 0.2851013673
A34: 33 | B34: 160 | C34: 136.704 | D34: 0.06303838951 | F34: 145.3216 | G34: -0.06846263735 | I34: 135.3725 | J34: -0.009740022238 | L34: 164.3108 | M34: 0.2137679366
A35: 34 | B35: 170 | C35: 144.873 | D35: 0.06147591339 | F35: 153.7792 | G35: -0.06694143291 | I35: 143.485 | J35: -0.009580805257 | L35: 165.0796 | M35: 0.1505007492
A36: 35 | B36: 180 | C36: 153.042 | D36: 0.06008023941 | F36: 162.2368 | G36: -0.06557883292 | I36: 151.5975 | J36: -0.009438585486 | L36: 165.8484 | M36: 0.09400484836
A37: 36 | B37: 190 | C37: 161.211 | D37: 0.05882601063 | F37: 170.6944 | G37: -0.06435126167 | I37: 159.71 | J37: -0.009310779041 | L37: 166.6172 | M37: 0.0432483877
A38: 37 | B38: 200 | C38: 169.38 | D38: 0.05769276184 | F38: 179.152 | G38: -0.06323959543 | I38: =(($I$6)+(IF($B38<$I$7,0,((IF(($B38-$I$7)>$I$11,($I$11/$I$14*$I$8),(IF(($B38-$I$7)>$I$11,$I$11,+($B38-$I$7)))/$I$14*$I$8)))+((IF(($B38-$I$7)>$I$12,(((($I$12-$I$11)/$I$14)*$I$9)),((IF(($B38-$I$7)>($I$12),($I$12-$I$11),(+($B38-$I$7)-(IF(($B38-$I$7)>$I$11,$I$11,+($B38-$I$7)))))))/$I$14*$I$9)))+((IF((IF(($B38-$I$7)>($I$13),($B38-$I$7)-($I$12),0))<1,0,(IF(($B38-$I$7)>($I$13),($B38-$I$7)-($I$12),0))/$I$14*$I$10)))))) -> 167.8225 | J38: -0.009195300508 | L38: 167.386 | M38: =(+L38-I38)/I38 -> -0.002600962326
A39: 38 | B39: 210 | C39: 177.549 | D39: 0.05666379422 | F39: 187.6096 | G39: -0.0622281589 | I39: 175.935 | J39: -0.009090448271 | L39: 174.8218 | M39: -0.006327336801
A40: 39 | B40: 220 | C40: 185.718 | D40: 0.05572534703 | F40: 196.0672 | G40: -0.06130398149 | I40: 184.0475 | J40: -0.008994820104 | L40: 182.2576 | M40: -0.009725206808
A41: 40 | B41: 230 | C41: 193.887 | D41: 0.05486597864 | F41: 204.5248 | G41: -0.06045623807 | I41: 192.16 | J41: -0.008907250099 | L41: 189.6934 | M41: -0.01283617818
A42: 41 | B42: 240 | C42: 202.056 | D42: 0.05407609772 | F42: 212.9824 | G42: -0.05967582298 | I42: 200.2725 | J42: -0.008826760898 | L42: 197.1292 | M42: -0.01569511541
A43: 42 | B43: 250 | C43: 210.225 | D43: 0.05334760376 | F43: 221.44 | G43: -0.05895502168 | I43: 208.385 | J43: -0.008752527054 | L43: 204.565 | M43: -0.0183314538
A44: 43 | B44: 260 | C44: 218.394 | D44: 0.05267360825 | F44: 229.8976 | G44: -0.05828725485 | I44: 216.4975 | J44: -0.008683846626 | L44: 212.0008 | M44: -0.02077021675
A45: 44 | B45: 270 | C45: 226.563 | D45: 0.05204821617 | F45: 238.3552 | G45: -0.057666877 | I45: 224.61 | J45: -0.008620118907 | L45: 219.4366 | M45: -0.02303281243
A46: 45 | B46: 280 | C46: 234.732 | D46: 0.05146635312 | F46: 246.8128 | G46: -0.05708901645 | I46: 232.7225 | J46: -0.008560826815 | L46: 226.8724 | M46: -0.02513766396
A47: 46 | B47: 290 | C47: 242.901 | D47: 0.05092362732 | F47: 255.2704 | G47: -0.05654944717 | I47: 240.835 | J47: -0.008505522826 | L47: 234.3082 | M47: -0.02710071211
A48: 47 | B48: 300 | C48: 251.07 | D48: 0.05041621858 | F48: 263.728 | G48: -0.05604448523 | I48: 248.9475 | J48: -0.00845381766 | L48: 241.744 | M48: -0.0289358198
A49: 48 | B49: 310 | C49: 259.239 | D49: 0.04994078823 | F49: 272.1856 | G49: -0.05557090456 | I49: 257.06 | J49: -0.008405371105 | L49: 249.1798 | M49: -0.03065509998
A50: 49 | B50: 320 | C50: 267.408 | D50: 0.04949440555 | F50: 280.6432 | G50: -0.05512586801 | I50: 265.1725 | J50: -0.008359884521 | L50: 256.6156 | M50: -0.03226918327
A51: 50 | B51: 330 | C51: 275.577 | D51: 0.04907448735 | F51: 289.1008 | G51: -0.05470687041 | I51: 273.285 | J51: -0.008317094678 | L51: 264.0514 | M51: -0.03378743802
A52: 51 | B52: 340 | C52: 283.746 | D52: 0.04867874789 | F52: 297.5584 | G52: -0.05431169142 | I52: 281.3975 | J52: -0.008276768659 | L52: 271.4872 | M52: -0.03521815226
A53: 52 | B53: 350 | C53: 291.915 | D53: 0.04830515732 | F53: 306.016 | G53: -0.05393835616 | I53: 289.51 | J53: -0.008238699621 | L53: 278.923 | M53: -0.03656868502
A54: 53 | B54: 360 | C54: 300.084 | D54: 0.0479519068 | F54: 314.4736 | G54: -0.05358510222 | I54: 297.6225 | J54: -0.008202703243 | L54: 286.3588 | M54: -0.03784559299
A55: 54 | B55: 370 | C55: 308.253 | D55: 0.04761737923 | F55: 322.9312 | G55: -0.05325035178 | I55: 305.735 | J55: -0.008168614742 | L55: 293.7946 | M55: -0.03905473695
A56: 55 | B56: 380 | C56: 316.422 | D56: 0.04730012452 | F56: 331.3888 | G56: -0.05293268813 | I56: 313.8475 | J56: -0.008136286352 | L56: 301.2304 | M56: -0.04020137169
A57: 56 | B57: 390 | C57: 324.591 | D57: 0.04699883854 | F57: 339.8464 | G57: -0.05263083558 | I57: 321.96 | J57: -0.008105585183 | L57: 308.6662 | M57: -0.04129022239
A58: 57 | B58: 400 | C58: 332.76 | D58: 0.04671234523 | F58: 348.304 | G58: -0.05234364234 | I58: 330.0725 | J58: -0.008076391393 | L58: 316.102 | M58: -0.04232554969
A59: 58 | B59: 410 | C59: 340.929 | D59: 0.04643958126 | F59: 356.7616 | G59: -0.05207006584 | I59: 338.185 | J59: -0.008048596629 | L59: 323.5378 | M59: -0.04331120541
A60: 59 | B60: 420 | C60: 349.098 | D60: 0.04617958281 | F60: 365.2192 | G60: -0.05180916009 | I60: 346.2975 | J60: -0.008022102676 | L60: 330.9736 | M60: -0.04425068041
A61: 60 | B61: 430 | C61: 357.267 | D61: 0.04593147422 | F61: 373.6768 | G61: -0.05156006474 | I61: 354.41 | J61: -0.007996820305 | L61: 338.4094 | M61: -0.04514714596
A62: 61 | B62: 440 | C62: 365.436 | D62: 0.04569445813 | F62: 382.1344 | G62: -0.05132199561 | I62: 362.5225 | J62: -0.007972668265 | L62: 345.8452 | M62: -0.04600348944
A63: 62 | B63: 450 | C63: 373.605 | D63: 0.04546780691 | F63: 390.592 | G63: -0.05109423644 | I63: 370.635 | J63: -0.007949572409 | L63: 353.281 | M63: -0.04682234543
A64: 63 | B64: 460 | C64: 381.774 | D64: 0.04525085522 | F64: 399.0496 | G64: -0.05087613169 | I64: 378.7475 | J64: -0.00792746494 | L64: 360.7168 | M64: -0.04760612281
A65: 64 | B65: 470 | C65: 389.943 | D65: 0.04504299346 | F65: 407.5072 | G65: -0.05066708024 | I65: 386.86 | J65: -0.007906283739 | L65: 368.1526 | M65: -0.04835702838
A66: 65 | B66: 480 | C66: 398.112 | D66: 0.04484366209 | F66: 415.9648 | G66: -0.05046652986 | I66: 394.9725 | J66: -0.007885971787 | L66: 375.5884 | M66: -0.04907708765
A67: 66 | B67: 490 | C67: 406.281 | D67: 0.04465234653 | F67: 424.4224 | G67: -0.05027397234 | I67: 403.085 | J67: -0.00786647665 | L67: 383.0242 | M67: -0.04976816304
A68: 67 | B68: 500 | C68: 414.45 | D68: 0.04446857281 | F68: 432.88 | G68: -0.0500889392 | I68: 411.1975 | J68: -0.00784775003 | L68: 390.46 | M68: -0.05043197004
A69: 68 | B69: =B68+100 -> 600 | C69: 496.14 | D69: 0.04296367961 | F69: 517.456 | G69: -0.04857127949 | I69: 492.3225 | J69: -0.007694400774 | L69: 464.818 | M69: -0.05586683526
A70: 69 | B70: 700 | C70: 577.83 | D70: 0.04188429123 | F70: 602.032 | G70: -0.04748003428 | I70: 573.4475 | J70: -0.00758441064 | L70: 539.176 | M70: -0.05976397142
A71: 70 | B71: 800 | C71: 659.52 | D71: 0.041072295 | F71: 686.608 | G71: -0.04665762706 | I71: 654.5725 | J71: -0.00750166788 | L71: 613.534 | M71: -0.06269511781
A72: 71 | B72: 900 | C72: 741.21 | D72: 0.04043928172 | F72: 771.184 | G72: -0.04601560717 | I72: 735.6975 | J72: -0.007437163557 | L72: 687.892 | M72: -0.06497983206
A73: 72 | B73: 1000 | C73: 822.9 | D73: 0.03993194799 | F73: 855.76 | G73: -0.04550049079 | I73: 816.8225 | J73: -0.007385466035 | L73: 762.25 | M73: -0.06681072081
A74: 73 | B74: =B73+100 -> 1100 | C74: 904.59 | D74: 0.03951624493 | F74: 940.336 | G74: -0.04507803594 | I74: 897.9475 | J74: -0.007343105716 | L74: 762.25 | M74: -0.1511196367
A75: 74 | B75: 1200 | C75: 986.28 | D75: 0.03916940423 | F75: 1024.912 | G75: -0.04472530325 | I75: 979.0725 | J75: -0.007307762502 | L75: 896.66 | M75: -0.08417405248
A76: 75 | B76: 1300 | C76: 1067.97 | D76: 0.03887562385 | F76: 1109.488 | G76: -0.04442634801 | I76: 1060.1975 | J76: -0.007277826156 | L76: 963.865 | M76: -0.09086278736
A77: 76 | B77: 1400 | C77: 1149.66 | D77: 0.03862359306 | F77: 1194.064 | G77: -0.044169743 | I77: 1141.3225 | J77: -0.007252144112 | L77: 1031.07 | M77: -0.09660065407
A78: 77 | B78: 1500 | C78: 1231.35 | D78: 0.03840500264 | F78: 1278.64 | G78: -0.0439470844 | I78: 1222.4475 | J78: -0.007229869655 | L78: 1098.275 | M78: -0.1015769593
A79: 78 | B79: 1600 | C79: 1313.04 | D79: 0.03821361116 | F79: 1363.216 | G79: -0.04375205397 | I79: 1303.5725 | J79: -0.007210366782 | L79: 1165.48 | M79: -0.1059338855
A80: 79 | B80: =B79+100 -> 1700 | C80: 1394.73 | D80: 0.03804463946 | F80: 1447.792 | G80: -0.04357980981 | I80: 1384.6975 | J80: -0.007193148495 | L80: 1232.685 | M80: -0.109780295
A81: 80 | B81: 1800 | C81: 1476.42 | D81: 0.0378943661 | F81: 1532.368 | G81: -0.04342657899 | I81: 1465.8225 | J81: =(+I81-C81)/C81 -> -0.007177835575 | L81: 1299.89 | M81: -0.1132009503
A82: 81 | B82: 1900 | C82: 1558.11 | D82: =(F82-C82)/C82 -> 0.03775985007 | F82: 1616.944 | G82: =(I82-F82)/F82 -> -0.04328937799 | I82: 1546.9475 | J82: -0.007164128335 | L82: =(($L$6)+(IF($B82<$L$7,0,((IF(($B82-$L$7)>$L$11,($L$11/$L$14*$L$8),(IF(($B82-$L$7)>$L$11,$L$11,+($B82-$L$7)))/$L$14*$L$8)))+((IF(($B82-$L$7)>$L$12,(((($L$12-$L$11)/$L$14)*$L$9)),((IF(($B82-$L$7)>($L$12),($L$12-$L$11),(+($B82-$L$7)-(IF(($B82-$L$7)>$L$11,$L$11,+($B82-$L$7)))))))/$L$14*$L$9)))+((IF((IF(($B82-$L$6)>($L$13),($B82-$L$7)-($L$12),0))<1,0,(IF(($B82-$L$7)>($L$13),($B82-$L$7)-($L$12),0))/$L$14*$L$10)))))) -> 1367.095 | M82: =(+L82-I82)/I82 -> -0.1162628337
A83: 82 | B83: 2000 | C83: =(($C$6)+(IF($B83<$C$7,0,((IF(($B83-$C$7)>$C$11,($C$11/$C$14*$C$8),(IF(($B83-$C$7)>$C$11,$C$11,+($B83-$C$7)))/$C$14*$C$8)))+((IF(($B83-$C$7)>$C$12,(((($C$12-$C$11)/$C$14)*$C$9)),((IF(($B83-$C$7)>($C$12),($C$12-$C$11),(+($B83-$C$7)-(IF(($B83-$C$7)>$C$11,$C$11,+($B83-$C$7)))))))/$C$14*$C$9)))+((IF((IF(($B83-$C$7)>($C$13),($B83-$C$7)-($C$12),0))<1,0,(IF(($B83-$C$7)>($C$13),($B83-$C$7)-($C$12),0))/$C$14*$C$10)))))) -> 1639.8 | D83: 0.03763873643 | F83: =(($F$6)+(IF($B83<$F$7,0,((IF(($B83-$F$7)>$F$11,($F$11/$F$14*$F$8),(IF(($B83-$F$7)>$F$11,$F$11,+($B83-$F$7)))/$F$14*$F$8)))+((IF(($B83-$F$7)>$F$12,(((($F$12-$F$11)/$F$14)*$F$9)),((IF(($B83-$F$7)>($F$12),($F$12-$F$11),(+($B83-$F$7)-(IF(($B83-$F$7)>$F$11,$F$11,+($B83-$F$7)))))))/$F$14*$F$9)))+((IF((IF(($B83-$F$7)>($F$13),($B83-$F$7)-($F$12),0))<1,0,(IF(($B83-$F$7)>($F$13),($B83-$F$7)-($F$12),0))/$F$14*$F$10)))))) -> 1701.52 | G83: -0.04316581645 | I83: =(($I$6)+(IF($B83<$I$7,0,((IF(($B83-$I$7)>$I$11,($I$11/$I$14*$I$8),(IF(($B83-$I$7)>$I$11,$I$11,+($B83-$I$7)))/$I$14*$I$8)))+((IF(($B83-$I$7)>$I$12,(((($I$12-$I$11)/$I$14)*$I$9)),((IF(($B83-$I$7)>($I$12),($I$12-$I$11),(+($B83-$I$7)-(IF(($B83-$I$7)>$I$11,$I$11,+($B83-$I$7)))))))/$I$14*$I$9)))+((IF((IF(($B83-$I$7)>($I$13),($B83-$I$7)-($I$12),0))<1,0,(IF(($B83-$I$7)>($I$13),($B83-$I$7)-($I$12),0))/$I$14*$I$10)))))) -> 1628.0725 | J83: -0.007151786803 | L83: 1434.3 | M83: -0.1190195768
A84: 83 | B84: 2100 | C84: 1721.49 | D84: 0.03752911722 | F84: 1786.096 | G84: -0.04305395679 | I84: 1709.1975 | J84: -0.007140616559 | L84: 1501.505 | M84: -0.1215146289
A85: 84 | B85: 2200 | C85: 1803.18 | D85: 0.03742943023 | F85: 1870.672 | G85: -0.04295221183 | I85: 1790.3225 | J85: -0.007130458412 | L85: 1568.71 | M85: -0.1237835641
A86: 85 | B86: =B85+100 -> 2300 | C86: 1884.87 | D86: 0.03733838408 | F86: 1955.248 | G86: -0.042859269 | I86: 1871.4475 | J86: -0.007121180771 | L86: 1635.915 | M86: -0.1258557881
A87: 86 | B87: 2400 | C87: 1966.56 | D87: 0.03725490196 | F87: 2039.824 | G87: -0.04277403345 | I87: 1952.5725 | J87: -0.007112673908 | L87: 1703.12 | M87: -0.1277558196
A88: 87 | B88: 2500 | C88: 2048.25 | D88: 0.03717807885 | F88: 2124.4 | G88: -0.04269558464 | I88: 2033.6975 | J88: -0.0071048456 | L88: 1770.325 | M88: -0.129504265
A89: 88 | B89: =B88+500 -> 3000 | C89: 2456.7 | D89: 0.03687059877 | F89: 2547.28 | G89: -0.04238148142 | I89: 2439.3225 | J89: -0.007073513249 | L89: 2106.35 | M89: -0.136502041
A90: 89 | B90: 3500 | C90: 2865.15 | D90: 0.03665078617 | F90: 2970.16 | G90: -0.04215681983 | I90: 2844.9475 | J90: -0.007051114252 | L90: 2442.375 | M90: -0.1415043687
A91: 90 | B91: 4000 | C91: 3273.6 | D91: 0.036485826 | F91: 3393.04 | G91: -0.04198815811 | I91: 3250.5725 | J91: -0.007034304741 | L91: 2778.4 | M91: -0.1452582584
A92: 91 | B92: 4500 | C92: 3682.05 | D92: 0.03635746391 | F92: 3815.92 | G92: -0.04185687855 | I92: 3656.1975 | J92: -0.00702122459 | L92: 3114.425 | M92: -0.1481792217
A93: 92 | B93: 5000 | C93: 4090.5 | D93: 0.03625473658 | F93: 4238.8 | G93: -0.04175179296 | I93: 4061.8225 | J93: -0.007010756631 | L93: 3450.45 | M93: -0.1505167939
A94: 93 | B94: 5500 | C94: 4498.95 | D94: 0.03617066204 | F94: 4661.68 | G94: -0.04166577285 | I94: 4467.4475 | J94: -0.0070021894 | L94: 3786.475 | M94: -0.1524298831
A95: 94 | B95: 6000 | C95: 4907.4 | D95: 0.03610058279 | F95: 5084.56 | G95: -0.04159406124 | I95: 4873.0725 | J95: -0.006995048294 | L95: 4122.5 | M95: -0.1540244887
A96: 95 | B96: 6500 | C96: 5315.85 | D96: 0.0360412728 | F96: 5507.44 | G96: -0.04153336214 | I96: 5278.6975 | J96: -0.006989004581 | L96: 4458.525 | M96: -0.1553740293
A97: 96 | B97: 7000 | C97: 5724.3 | D97: 0.03599042678 | F97: 5930.32 | G97: -0.04148131973 | I97: 5684.3225 | J97: -0.00698382335 | L97: 4794.55 | M97: -0.1565309674
A98: 97 | B98: 7500 | C98: 6132.75 | D98: 0.03594635359 | F98: 6353.2 | G98: -0.04143620538 | I98: 6089.9475 | J98: -0.006979332273 | L98: 5130.575 | M98: -0.1575337883
A99: 98 | B99: 8000 | C99: 6541.2 | D99: 0.0359077845 | F99: 6776.08 | G99: -0.041396722 | I99: 6495.5725 | J99: -0.006975402067 | L99: 5466.6 | M99: -0.158411364
A100: 99 | B100: 8500 | C100: 6949.65 | D100: 0.03587374904 | F100: 7198.96 | G100: -0.04136187727 | I100: 6901.1975 | J100: -0.006971933838 | L100: 5802.625 | M100: -0.159185779
A101: 100 | B101: 9000 | C101: 7358.1 | D101: 0.03584349221 | F101: 7621.84 | G101: -0.0413308991 | I101: 7306.8225 | J101: -0.006968850654 | L101: 6138.65 | M101: -0.1598742134
A102: 101 | B102: 9500 | C102: 7766.55 | D102: 0.03581641784 | F102: 8044.72 | G102: -0.04130317774 | I102: 7712.4475 | J102: -0.006966091765 | L102: 6474.675 | M102: -0.1604902335
A103: 102 | B103: 10000 | C103: 8175 | D103: 0.03579204893 | F103: 8467.6 | G103: -0.04127822524 | I103: 8118.0725 | J103: -0.006963608563 | L103: 6810.7 | M103: -0.1610446938
A104: 103 | B104: 10500 | C104: 8583.45 | D104: 0.03576999924 | F104: 8890.48 | G104: -0.04125564649 | I104: 8523.6975 | J104: -0.00696136169 | L104: 7146.725 | M104: -0.1615463829
A105: 104 | B105: =B104+500 -> 11000 | C105: 8991.9 | D105: 0.03574995274 | F105: 9313.36 | G105: -0.04123511815 | I105: 8929.3225 | J105: -0.006959318943 | L105: 7482.75 | M105: -0.1620024924
A106: 105 | B106: 11500 | C106: 9400.35 | D106: 0.03573164829 | F106: 9736.24 | G106: -0.04121637306 | I106: 9334.9475 | J106: -0.006957453712 | L106: 7818.775 | M106: -0.1624189638
A107: 106 | B107: 12000 | C107: 9808.8 | D107: 0.03571486828 | F107: 10159.12 | G107: -0.04119918851 | I107: 9740.5725 | J107: -0.006955743822 | L107: 8154.8 | M107: -0.1628007491
A108: 107 | B108: 12500 | C108: 10217.25 | D108: 0.03569942989 | F108: 10582 | G108: -0.04118337743 | I108: 10146.1975 | J108: -0.006954170643 | L108: 8490.825 | M108: -0.1631520084
A109: 108 | B109: 13000 | C109: 10625.7 | D109: 0.03568517839 | F109: 11004.88 | G109: -0.04116878149 | I109: 10551.8225 | J109: -0.006952718409 | L109: 8826.85 | M109: -0.163476262
A110: 109 | B110: 13500 | C110: 11034.15 | D110: 0.03567198198 | F110: 11427.76 | G110: -0.04115526577 | I110: 10957.4475 | J110: -0.00695137369 | L110: 9162.875 | M110: -0.1637765091
A111: 110 | B111: 14000 | C111: 11442.6 | D111: 0.03565972768 | F111: 11850.64 | G111: -0.04114271466 | I111: 11363.0725 | J111: -0.006950124972 | L111: 9498.9 | M111: -0.1640553204
A112: 111 | B112: 14500 | C112: 11851.05 | D112: 0.03564831808 | F112: 12273.52 | G112: -0.04113102843 | I112: 11768.6975 | J112: -0.006948962328 | L112: 9834.925 | M112: -0.1643149125
A113: 112 | B113: 15000 | C113: 12259.5 | D113: 0.03563766875 | F113: 12696.4 | G113: -0.04112012066 | I113: 12174.3225 | J113: -0.006947877156 | L113: 10170.95 | M113: -0.1645572064
A114: 113 | B114: 15500 | C114: 12667.95 | D114: 0.03562770614 | F114: 13119.28 | G114: -0.04110991609 | I114: 12579.9475 | J114: -0.006946861963 | L114: 10506.975 | M114: -0.1647838753
A115: 114 | B115: 16000 | C115: 13076.4 | D115: 0.03561836591 | F115: 13542.16 | G115: -0.04110034884 | I115: 12985.5725 | J115: -0.006945910189 | L115: 10843 | M115: -0.1649963835
A116: 115 | B116: 16500 | C116: 13484.85 | D116: 0.0356095915 | F116: 13965.04 | G116: -0.041091361 | I116: 13391.1975 | J116: -0.006945016074 | L116: 11179.025 | M116: -0.1651960178
A117: 116 | B117: 17000 | C117: 13893.3 | D117: 0.03560133302 | F117: 14387.92 | G117: -0.04108290149 | I117: 13796.8225 | J117: -0.00694417453 | L117: 11515.05 | M117: -0.1653839136
A118: 117 | B118: 17500 | C118: 14301.75 | D118: 0.03559354624 | F118: 14810.8 | G118: -0.04107492505 | I118: 14202.4475 | J118: -0.006943381055 | L118: 11851.075 | M118: -0.1655610767
A119: 118 | B119: 18000 | C119: 14710.2 | D119: 0.03558619189 | F119: 15233.68 | G119: -0.04106739146 | I119: 14608.0725 | J119: -0.006942631643 | L119: 12187.1 | M119: -0.1657284012
A120: 119 | B120: 18500 | C120: 15118.65 | D120: 0.03557923492 | F120: 15656.56 | G120: -0.04106026483 | I120: 15013.6975 | J120: -0.006941922725 | L120: 12523.125 | M120: -0.1658866845
A121: 120 | B121: 19000 | C121: 15527.1 | D121: 0.03557264396 | F121: 16079.44 | G121: -0.04105351306 | I121: 15419.3225 | J121: -0.006941251103 | L121: 12859.15 | M121: -0.1660366401
A122: 121 | B122: =B121+500 -> 19500 | C122: 15935.55 | D122: 0.03556639087 | F122: 16502.32 | G122: -0.04104710732 | I122: 15824.9475 | J122: -0.00694061391 | L122: 13195.175 | M122: -0.1661789083
A123: 122 | B123: =B122+5000 -> 24500 | C123: 20020.05 | D123: 0.03551789331 | F123: 20731.12 | G123: -0.0409974232 | I123: 19881.1975 | J123: -0.006935671989 | L123: 16555.425 | M123: -0.1672823028
A124: 123 | B124: =B123+5000 -> 29500 | C124: 24104.55 | D124: 0.03548583151 | F124: 24959.92 | G124: -0.04096457441 | I124: 23937.4475 | J124: -0.006932404878 | L124: 19915.675 | M124: -0.1680117523
A125: 124 | B125: 34500 | C125: 28189.05 | D125: 0.03546306101 | F125: 29188.72 | G125: -0.04094124374 | I125: 27993.6975 | J125: -0.006930084554 | L125: 23275.925 | M125: -0.1685298093
A126: 125 | B126: 39500 | C126: 32273.55 | D126: 0.03544605412 | F126: 33417.52 | G126: -0.04092381781 | I126: 32049.9475 | J126: -0.006928351545 | L126: 26636.175 | M126: -0.1689167354
A127: 126 | B127: 44500 | C127: 36358.05 | D127: 0.03543286837 | F127: 37646.32 | G127: -0.04091030677 | I127: 36106.1975 | J127: -0.006927007912 | L127: 29996.425 | M127: -0.1692167252
A128: 127 | B128: 49500 | C128: 40442.55 | D128: 0.03542234602 | F128: 41875.12 | G128: -0.04089952459 | I128: 40162.4475 | J128: -0.006925935679 | L128: 33356.675 | M128: -0.1694561194
A129: 128 | B129: 54500 | C129: 44527.05 | D129: 0.03541375411 | F129: 46103.92 | G129: -0.04089072036 | I129: 44218.6975 | J129: -0.00692506016 | L129: 36716.925 | M129: -0.1696515936
A130: 129 | B130: 59500 | C130: 48611.55 | D130: 0.03540660604 | F130: 50332.72 | G130: -0.04088339553 | I130: 48274.9475 | J130: -0.006924331769 | L130: 40077.175 | M130: -0.1698142189
A131: 130 | B131: 64500 | C131: 52696.05 | D131: 0.03540056608 | F131: 54561.52 | G131: -0.04087720613 | I131: 52331.1975 | J131: -0.006923716294 | L131: 43437.425 | M131: -0.1699516335
A132: 131 | B132: 69500 | C132: 56780.55 | D132: 0.03539539508 | F132: 58790.32 | G132: -0.04087190714 | I132: 56387.4475 | J132: -0.006923189367 | L132: 46797.675 | M132: -0.1700692783
A133: 132 | B133: 74500 | C133: 60865.05 | D133: 0.0353909181 | F133: 63019.12 | G133: -0.04086731932 | I133: 60443.6975 | J133: -0.006922733161 | L133: 50157.925 | M133: -0.1701711332
A134: 133 | B134: =B133+500 -> 75000 | C134: 61273.5 | D134: 0.03539050324 | F134: 63442 | G134: -0.04086689417 | I134: 60849.3225 | J134: -0.006922690886 | L134: 50493.95 | M134: -0.1701805719

Sheet Rate Design (hidden)
A1: PRESENT RATES | D1: 1 | E1: 2 | F1: 3 | G1: 4 | H1: 5 | L1: Tiers - used for bill comparisons
C2: TOTAL | D2: SCH. 101 | E2: SCH. 111,112 | F2: SCH. 121,122 | G2: SCH. 132 | H2: SCH. 146 | J2: Range Name | L2: SCH. 101 | M2: SCH. 111,112 | N2: SCH. 121,122 | O2: SCH. 131,132 | P2: SCH. 146
B3: Base Tariff Rates
A4: 1 | B4: BASIC CHARGE | D4: 6 | H4: 250
A5: 2 | B5: MONTHLY MINIMUM | E5: 152.01 | F5: 378.63
A6: 3 | B6: BLOCK 1 PER THERM | D6: =91.808-11.893 -> 79.915 | E6: =18.802-11.952 -> 6.85 | F6: =17.349-12.088 -> 5.261 | G6: =73.315-12.381 -> 60.934 | H6: 8.151 | L6: 9999999 | M6: 200 | N6: 500 | O6: 10000 | P6: 20000
A7: 4 | B7: BLOCK 2 PER THERM | E7: =84.033-11.952 -> 72.081 | F7: =83.966-12.088 -> 71.878 | G7: =69.005-12.381 -> 56.624 | H7: 7.257 | L7: 9999999 | M7: 1000 | N7: 1000 | O7: 25000 | P7: 50000
A8: 5 | B8: BLOCK 3 PER THERM | E8: =77.02-11.952 -> 65.068 | F8: =76.802-12.088 -> 64.714 | G8: =67.948-12.381 -> 55.567 | H8: 6.548 | J8: Rates_Base_Present | L8: 9999999 | M8: 9999999 | N8: 10000 | O8: 50000 | P8: 300000
A9: 6 | B9: BLOCK 4 PER THERM | F9: =72.303-12.088 -> 60.215 | G9: =67.598-12.381 -> 55.217 | H9: 6.059 | L9: 9999999 | M9: 9999999 | N9: 25000 | O9: 9999999 | P9: 500000
A10: 7 | B10: BLOCK 5 PER THERM | F10: =68.684-12.088 -> 56.596 | H10: 4.565 | L10: 9999999 | M10: 9999999 | N10: 9999999 | O10: 9999999 | P10: 9999999
L11: 1st block rate | M11: =(M6/100*E6+E5)/M6*100 -> 82.855 | N11: =(N6/100*F6+F5)/N6*100 -> 80.987
B12: Billing Rates | D12: =IF(D13<>'Pres & Prop Rev'!D$5,#VALUE!,"") ->  | E12: =IF(E13<>'Pres & Prop Rev'!E$5,#VALUE!,"") ->  | F12: =IF(F13<>'Pres & Prop Rev'!F$5,#VALUE!,"") ->  | G12: =IF(G13<>'Pres & Prop Rev'!G$5,#VALUE!,"") ->  | H12: =IF(H13<>'Pres & Prop Rev'!H$5,#VALUE!,"") ->  | L12: check | M12: =M6*M11/100-(M6*E6/100+E5) -> 0 | N12: =N6*N11/100-(N6*F6/100+F5) -> 0
D13: SCHEDULE 101 | E13: SCH. 111&112 | F13: SCH. 121&122 | G13: SCH. 131&132 | H13: SCHEDULE 146
A14: 1 | B14: BASIC CHARGE | D14: =D4 -> 6 | E14: 0 | F14: 0 | G14: 0 | H14: 250
A15: 2 | B15: MONTHLY MINIMUM | D15: 0 | E15: 152.01 | F15: 378.63 | G15: 0 | H15: 0
A16: 3 | B16: BLOCK 1 PER THERM | D16: =D6-3.031+0.237+4.569 -> 81.69 | E16: =E6-2.88+3.718 -> 7.688 | F16: =F6-2.723+3.625 -> 6.163 | G16: =G6+0.046+3.46 -> 64.44 | H16: =H6+0.005 -> 8.156 | L16: =L6 -> 9999999 | M16: 200 | N16: 500 | O16: 10000 | P16: 20000
A17: 4 | B17: BLOCK 2 PER THERM | D17: =D7 -> 0 | E17: =E7-2.88+3.718 -> 72.919 | F17: =F7-2.723+3.625 -> 72.78 | G17: =G7+0.046+3.46 -> 60.13 | H17: =H7+0.005 -> 7.262 | L17: 9999999 | M17: 1000 | N17: 1000 | O17: 25000 | P17: 50000
A18: 5 | B18: BLOCK 3 PER THERM | D18: =D8 -> 0 | E18: =E8-2.88+3.718 -> 65.906 | F18: =F8-2.723+3.625 -> 65.616 | G18: =G8+0.046+3.46 -> 59.073 | H18: =H8+0.005 -> 6.553 | J18: Rates_Billing_Present | L18: 9999999 | M18: 9999999 | N18: 10000 | O18: 50000 | P18: 300000
A19: 6 | B19: BLOCK 4 PER THERM | D19: =D9 -> 0 | E19: =E9 -> 0 | F19: =F9-2.723+3.625 -> 61.117 | G19: =G9+0.046+3.46 -> 58.723 | H19: =H9+0.005 -> 6.064 | L19: =L9 -> 9999999 | M19: 9999999 | N19: 25000 | O19: 9999999 | P19: 500000
A20: 7 | B20: BLOCK 5 PER THERM | D20: =D10 -> 0 | E20: =E10 -> 0 | F20: =F10-2.723+3.625 -> 57.498 | H20: =H10+0.005 -> 4.57 | L20: 9999999 | M20: 9999999 | N20: 9999999 | O20: 9999999 | P20: 9999999
L21: 1st block rate | M21: =(M16/100*E16+E15)/M16*100 -> 83.693 | N21: =(N16/100*F16+F15)/N16*100 -> 81.889
A22: PROPOSED RATES | L22: check | M22: =M16*M21/100-(M16*E16/100+E15) -> 0 | N22: =N16*N21/100-(N16*F16/100+F15) -> 0
B24: Base Tariff Rates | D24: =IF(D25<>'Pres & Prop Rev'!D$5,#VALUE!,"") ->  | E24: =IF(E25<>'Pres & Prop Rev'!E$5,#VALUE!,"") ->  | F24: =IF(F25<>'Pres & Prop Rev'!F$5,#VALUE!,"") ->  | G24: =IF(G25<>'Pres & Prop Rev'!G$5,#VALUE!,"") ->  | H24: =IF(H25<>'Pres & Prop Rev'!H$5,#VALUE!,"") -> 
D25: SCHEDULE 101 | E25: SCH. 111&112 | F25: SCH. 121&122 | G25: SCH. 131&132 | H25: SCHEDULE 146
A26: 1 | B26: BASIC CHARGE | D26: =IF(D4>0,ROUND(D63,2),0) -> 10.98 | E26: =IF(E4>0,ROUND(E63,2),0) -> 0 | F26: =IF(F4>0,ROUND(F63,2),0) -> 0 | G26: =IF(G4>0,ROUND(G63,2),0) -> 0 | H26: =IF(H4>0,ROUND(H63,2),0) -> 269.29
A27: 2 | B27: MONTHLY MINIMUM | D27: =IF(D5>0,ROUND(D63,2),0) -> 0 | E27: =IF(E5>0,ROUND(E63,2),0) -> 152.01 | F27: =IF(F5>0,ROUND(F63,2),0) -> 378.63 | G27: =IF(G5>0,ROUND(G63,2),0) -> 0 | H27: =IF(H5>0,ROUND(H63,2),0) -> 0
A28: 2 | B28: BLOCK 1 PER THERM | D28: =ROUND(D82,3) -> 71.625 | E28: =ROUND(E82,3) -> 6.85 | F28: 5.261 | G28: 62.872 | H28: 8.686 | L28: 30 | M28: 200 | N28: 500 | O28: 10000 | P28: 20000
A29: 3 | B29: BLOCK 2 PER THERM | D29: 71.625 | E29: 73.52 | F29: 73.091 | G29: 58.425 | H29: 7.733 | L29: 70 | M29: 1000 | N29: 1000 | O29: 25000 | P29: 50000
A30: 4 | B30: BLOCK 3 PER THERM | D30: 81.125 | E30: 66.367 | F30: 65.806 | G30: 57.334 | H30: 6.978 | J30: Rates_Base_Proposed | L30: 9999999 | M30: 9999999 | N30: 10000 | O30: 50000 | P30: 300000
A31: 5 | B31: BLOCK 4 PER THERM | D31: =ROUND(D85,3) -> 0 | E31: 0 | F31: 61.231 | G31: 56.973 | H31: 6.457 | L31: 9999999 | M31: 9999999 | N31: 25000 | O31: 9999999 | P31: 500000
A32: 6 | B32: BLOCK 5 PER THERM | D32: 0 | E32: 0 | F32: 56.596 | G32: 0 | H32: 4.864 | L32: 9999999 | M32: 9999999 | N32: 9999999 | O32: 9999999 | P32: 9999999
L33: 1st block rate | M33: =(M28/100*E28+E27)/M28*100 -> 82.855 | N33: =(N28/100*F28+F27)/N28*100 -> 80.987
B34: Billing Rates | D34: =D28/D6-1 -> -0.1037352187 | E34: =IF(E35<>'Pres & Prop Rev'!E$5,#VALUE!,"") ->  | F34: =IF(F35<>'Pres & Prop Rev'!F$5,#VALUE!,"") ->  | G34: =IF(G35<>'Pres & Prop Rev'!G$5,#VALUE!,"") ->  | H34: =IF(H35<>'Pres & Prop Rev'!H$5,#VALUE!,"") ->  | L34: check | M34: =M28*M33/100-(M28*E28/100+E27) -> 0 | N34: =N28*N33/100-(N28*F28/100+F27) -> 0
D35: SCHEDULE 101 | E35: SCH. 111&112 | F35: SCH. 121&122 | G35: SCH. 131&132 | H35: SCHEDULE 146 | L35: Basic Charge Calc | M35: =E5+(D26-D4)+(((D28/100)-(D6/100))*200) -> 140.41 | N35: =+(D26)+(500*((D28/100)-(F28/100))) -> 342.8 | S35: 100
A36: 1 | B36: BASIC CHARGE | D36: =D26 -> 10.98 | E36: 0 | F36: 0 | G36: 0 | H36: 269.29 | S36: LIRAP increase
A37: 2 | B37: MONTHLY MINIMUM | D37: 0 | E37: 152.01 | F37: 378.63 | G37: 0 | H37: 0 | S37: 101 | T37: 111 | U37: 121 | V37: 131
A38: 2 | B38: BLOCK 1 PER THERM | D38: =D28-3.031+0.237+4.569 -> 73.4 | E38: =E28-2.88+3.718 -> 7.688 | F38: =F28-2.723+3.625 -> 6.163 | G38: =G28+0.046+3.46 -> 66.378 | H38: =H28+0.005 -> 8.691 | L38: =L28 -> 30 | M38: 200 | N38: 500 | O38: 10000 | P38: 20000 | S38: 0 | T38: 0 | U38: 0 | V38: 0
A39: 3 | B39: BLOCK 2 PER THERM | D39: =D29-3.031+0.237+4.569 -> 73.4 | E39: =E29-2.88+3.718 -> 74.358 | F39: =F29-2.723+3.625 -> 73.993 | G39: =G29+0.046+3.46 -> 61.931 | H39: =H29+0.005 -> 7.738 | L39: 70 | M39: 1000 | N39: 1000 | O39: 25000 | P39: 50000 | S39: =S$38 -> 0 | T39: =T$38 -> 0 | U39: =U$38 -> 0 | V39: =V$38 -> 0
A40: 4 | B40: BLOCK 3 PER THERM | D40: =D30-3.031+0.237+4.569 -> 82.9 | E40: =E30-2.88+3.718 -> 67.205 | F40: =F30-2.723+3.625 -> 66.708 | G40: =G30+0.046+3.46 -> 60.84 | H40: =H30+0.005 -> 6.983 | J40: Rates_Billing_Proposed | L40: 9999999 | M40: 9999999 | N40: 10000 | O40: 50000 | P40: 300000 | S40: =S$38 -> 0 | T40: 0 | U40: 0 | V40: 0
A41: 5 | B41: BLOCK 4 PER THERM | D41: =D31 -> 0 | E41: =E31 -> 0 | F41: =F31-2.723+3.625 -> 62.133 | G41: =G31+0.046+3.46 -> 60.479 | H41: =H31+0.005 -> 6.462 | L41: 9999999 | M41: 9999999 | N41: 25000 | O41: 9999999 | P41: 500000 | S41: 0 | T41: 0 | U41: 0 | V41: 0
A42: 6 | B42: BLOCK 5 PER THERM | D42: =D32 -> 0 | E42: =E32 -> 0 | F42: =F32-2.723+3.625 -> 57.498 | H42: =H32+0.005 -> 4.869 | L42: 9999999 | M42: 9999999 | N42: 9999999 | O42: 9999999 | P42: 9999999 | S42: 0 | T42: 0 | U42: 0 | V42: 0
L43: 1st block rate | M43: =(M38/100*E38+E37)/M38*100 -> 83.693 | N43: =(N38/100*F38+F37)/N38*100 -> 81.889
L44: check | M44: =M38*M43/100-(M38*E38/100+E37) -> 0 | N44: =N38*N43/100-(N38*F38/100+F37) -> 0
B47: Proposed Rate Workup - from Pres & Prop Rev tab
B49: THERMS
B50: BLOCK 1 | C50: =SUM(D50:H50) -> 54156994.27 | D50: ='Pres & Prop Rev'!D31 -> 40924244 | E50: ='Pres & Prop Rev'!E31 -> 5231053 | F50: ='Pres & Prop Rev'!F31 -> 156000 | G50: ='Pres & Prop Rev'!G31 -> 120000 | H50: ='Pres & Prop Rev'!H31 -> 7725697.27
B51: BLOCK 2 | C51: 56819488.73 | D51: ='Pres & Prop Rev'!D32 -> 34570303 | E51: ='Pres & Prop Rev'!E32 -> 14581420 | F51: ='Pres & Prop Rev'!F32 -> 156000 | G51: ='Pres & Prop Rev'!G32 -> 175338 | H51: ='Pres & Prop Rev'!H32 -> 7336427.73
B52: BLOCK 3 | C52: 90260654 | D52: ='Pres & Prop Rev'!D33 -> 47697809 | E52: ='Pres & Prop Rev'!E33 -> 27796563 | F52: ='Pres & Prop Rev'!F33 -> 2638873 | G52: ='Pres & Prop Rev'!G33 -> 211422 | H52: ='Pres & Prop Rev'!H33 -> 11915987
B53: BLOCK 4 | C53: 4312153 | D53: ='Pres & Prop Rev'!D34 -> 0 | E53: ='Pres & Prop Rev'!E34 -> 0 | F53: ='Pres & Prop Rev'!F34 -> 1825796 | G53: ='Pres & Prop Rev'!G34 -> 136145 | H53: ='Pres & Prop Rev'!H34 -> 2350212
B54: BLOCK 5 | C54: 1480519 | D54: ='Pres & Prop Rev'!D35 -> 0 | E54: ='Pres & Prop Rev'!E35 -> 0 | F54: ='Pres & Prop Rev'!F35 -> 1360194 | G54: ='Pres & Prop Rev'!G35 -> 0 | H54: ='Pres & Prop Rev'!H35 -> 120325
B55: ADJ. TO ACTUAL | C55: -254858 | D55: ='Pres & Prop Rev'!D41 -> 0 | E55: ='Pres & Prop Rev'!E41 -> -254858 | F55: ='Pres & Prop Rev'!F41 -> 0 | G55: ='Pres & Prop Rev'!G41 -> 0 | H55: ='Pres & Prop Rev'!H41 -> 0
B56: WEATHER & U/B THERMS | C56: -5824190 | D56: ='Pres & Prop Rev'!D44 -> -4167750 | E56: ='Pres & Prop Rev'!E44 -> -1784575 | F56: ='Pres & Prop Rev'!F44 -> 128135 | G56: ='Pres & Prop Rev'!G44 -> 0 | H56: ='Pres & Prop Rev'!H44 -> 0 | I56: Proposed rates:
B57: TOTAL PROFORMA THERMS | C57: =IF(ROUND(SUM(D57:H57),3)<>ROUND(SUM(C50:C56),3),#VALUE!,SUM(D57:H57)) -> 200950761 | D57: =SUM(D50:D56) -> 119024606 | E57: =SUM(E50:E56) -> 45569603 | F57: =SUM(F50:F56) -> 6264998 | G57: =SUM(G50:G56) -> 642905 | H57: =SUM(H50:H56) -> 29448649 | I57: same as current
B58: TOTAL BILLS | D58: =SUM('Pres & Prop Rev'!D48:D49) -> 1748256 | E58: =SUM('Pres & Prop Rev'!E48:E49) -> 28783 | F58: =SUM('Pres & Prop Rev'!F48:F49) -> 312 | G58: =SUM('Pres & Prop Rev'!G48:G49) -> 12 | H58: =SUM('Pres & Prop Rev'!H48:H49) -> 444 | I58: diff than current
I59: Formulas to copy | N59: Minimum Charge Calcs
B60: Proposed Revenue | C60: =SUM(D60:H60) -> 148055000 | D60: =ROR!D46 -> 108825426.7 | E60: =ROR!E46 -> 32560265.49 | F60: =ROR!F46 -> 3945606.307 | G60: =ROR!G46 -> 376723.8124 | H60: =ROR!H46 -> 2346977.656 | I60: FLOOR | J60: CEILING | K60: OTHER | N60: Proposed | O60: Current | P60: Difference | R60: Basic Charge
B61: Targeted Rate Increase | C61: =ROR!C47 -> 0.02756744377 | D61: =ROR!D47 -> 0.0304722191 | E61: =ROR!E47 -> 0.01702286522 | F61: =ROR!F47 -> 0.01323463824 | G61: =ROR!G47 -> 0.03195736722 | H61: =ROR!H47 -> 0.06619635137 | M61: 111 | N61: =D77/100 -> 0.7162516979 | O61: =D67/100 -> 0.79915 | P61: =N61-O61 -> -0.08289830205 | Q61: =P61*200 -> -16.57966041 | R61: =D63-D62 -> 4.98 | S61: =Q61+R61 -> -11.59966041 | T61: =E62+S61 -> 140.4103396 | U61: =ROUND(E63-T61,2) -> 11.6
B62: Present Basic/Min Charge | D62: =D4+D5 -> 6 | E62: =E4+E5 -> 152.01 | F62: =F4+F5 -> 378.63 | G62: =G4+G5 -> 0 | H62: =H4+H5 -> 250 | M62: 121 | N62: =D77/100 -> 0.7162516979 | O62: =F67/100 -> 0.05261 | P62: =N62-O62 -> 0.6636416979 | Q62: =P62*500 -> 331.820849 | R62: =D63 -> 10.98 | T62: =Q62+R62 -> 342.800849 | U62: =ROUND(F63-T62,2) -> 35.83
B63: BASIC/MIN CHARGE | D63: 10.98 | E63: 152.01 | F63: =F62 -> 378.63 | G63: 0 | H63: 269.29 | I63: =FLOOR(I62*(1+I$61),$I64) -> 0 | J63: =CEILING(J62*(1+J$61),$J64) -> 0 | K63: 1.05
B64: % D in Basic Charge | D64: =IF(D62,D63/D62-1,0) -> 0.83 | E64: =IF(E62,E63/E62-1,0) -> 0 | F64: =IF(F62,F63/F62-1,0) -> 0 | G64: =IF(G62,G63/G62-1,0) -> 0 | H64: =IF(H62,H63/H62-1,0) -> 0.07716 | I64: 0.05 | J64: 0.05
B65: Basic Charge Revenue | C65: =SUM(D65:H65) -> 23808852.03 | D65: =D58*D63 -> 19195850.88 | E65: =E58*E63 -> 4375303.83 | F65: =F58*F63 -> 118132.56 | G65: =G58*G63 -> 0 | H65: =H58*H63 -> 119564.76
D66: 0
B67: Present Block 1 Rate | D67: =D6 -> 79.915 | E67: =E6 -> 6.85 | F67: 5.261 | G67: 60.934 | H67: 8.151
B68: Present Block 2 Rate | D68: 79.915 | E68: 72.081 | F68: 71.878 | G68: 56.624 | H68: 7.257
B69: Present Block 3 Rate | D69: 79.915 | E69: 65.068 | F69: 64.714 | G69: 55.567 | H69: 6.548
B70: Present Block 4 Rate | D70: =D9 -> 0 | E70: =E9 -> 0 | F70: =F9 -> 60.215 | G70: 55.217 | H70: 6.059
B71: Present Block 5 Rate | D71: 0 | E71: 0 | F71: 56.596 | G71: 0 | H71: 4.565
B73: 1) Flat Rate Increase | D73: 2.357944765 | E73: 1 | F73: 1 | G73: 1 | H73: 1
B74: 2) % Rate Increase | D74: -0.103733094 | E74: 0.01996497433 | F74: 0.01687428618 | G74: 0.03179823615 | H74: 0.06560648727 | K74: =K$61 -> 0
B75: Method ---> | D75: 2 | E75: 2 | F75: 2 | G75: 2 | H75: 2
A77: Calculated | B77: BLOCK 1 PER THERM | D77: =CHOOSE(D$75,D67+D$73,D67*(1+D$74)) -> 71.62516979 | E77: =CHOOSE(E$75,E67+E$73,E67*(1+E$74)) -> 6.986760074 | F77: =CHOOSE(F$75,F67+F$73,F67*(1+F$74)) -> 5.34977562 | G77: =CHOOSE(G$75,G67+G$73,G67*(1+G$74)) -> 62.87159372 | H77: 8.685758478
B78: BLOCK 2 PER THERM | D78: =D77 -> 71.62516979 | E78: =CHOOSE(E$75,E68+E$73,E68*(1+E$74)) -> 73.52009531 | F78: =CHOOSE(F$75,F68+F$73,F68*(1+F$74+F76)) -> 73.09088994 | G78: 58.42454332 | H78: 7.733106278
B79: BLOCK 3 PER THERM | D79: =CHOOSE(D$75,D69+D$73+D73,D69*(1+D$74)+950%) -> 81.12516979 | E79: 66.36708095 | F79: =CHOOSE(F$75,F69+F$73,F69*(1+F$74+F76)) -> 65.80600256 | G79: 57.33393259 | H79: 6.977591279
B80: BLOCK 4 PER THERM | E80: 0 | F80: =CHOOSE(F$75,F70+F$73,F70*(1+F$74+F76)) -> 61.23108514 | G80: 56.97280321 | H80: 6.456509706
B81: BLOCK 5 PER THERM | E81: 0 | F81: =CHOOSE(F$75,F71+F$73,F71*(1+F$74)) -> 57.5510171 | G81: 0 | H81: =CHOOSE(H$75,H71+H$73,H71*(1+H$74)) -> 4.864493614
A82: Input | B82: BLOCK 1 PER THERM | D82: =D77 -> 71.62516979 | E82: =E67 -> 6.85 | F82: =F67 -> 5.261 | G82: =G77 -> 62.87159372 | H82: =H77 -> 8.685758478 | J82: =F82-F67 -> 0 | K82: =H82-H67 -> 0.5347584777 | L82: =D63+((D77/100)*200) -> 154.2303396 | M82: =E63+((E82/100)*200) -> 165.71 | P82: =F63+((F82/100)*500) -> 404.935
B83: BLOCK 2 PER THERM | D83: =D78 -> 71.62516979 | E83: =E78 -> 73.52009531 | F83: 73.09088994 | G83: 58.42454332 | H83: =H78 -> 7.733106278 | J83: =F83-F68 -> 1.212889942 | K83: =H83-H68 -> 0.4761062781
B84: BLOCK 3 PER THERM | D84: =D79 -> 81.12516979 | E84: 66.36708095 | F84: 65.80600256 | G84: 57.33393259 | H84: 6.977591279 | J84: =F84-F69 -> 1.092002556 | K84: =H84-H69 -> 0.4295912786
B85: BLOCK 4 PER THERM | E85: =E80 -> 0 | F85: =F80 -> 61.23108514 | G85: =G80 -> 56.97280321 | H85: =H80 -> 6.456509706 | J85: 1.016085142 | K85: 0.3975097064
B86: BLOCK 5 PER THERM | E86: 0 | F86: =F71 -> 56.596 | G86: 0 | H86: =H81 -> 4.864493614 | J86: 0 | K86: 0.2994936144
B87: Blocks 1-5 Revenue | C87: =SUM(D87:H87) -> 128645011.8 | D87: =SUMPRODUCT(D50:D54,D82:D86)/100 -> 92768026.01 | E87: =SUMPRODUCT(E50:E54,E82:E86)/100 -> 29526368.48 | F87: =SUMPRODUCT(F50:F54,F82:F86)/100 -> 3746535.882 | G87: =SUMPRODUCT(G50:G54,G82:G86)/100 -> 376668.5081 | H87: =SUMPRODUCT(H50:H54,H82:H86)/100 -> 2227412.896 | L87: 101 | M87: 111 | N87: 101 | O87: 111 | P87: 121
B88: Adj. to Actual Revenue | C88: =SUM(D88:H88) -> -158058.69 | D88: ='Pres & Prop Rev'!D168 -> 0 | E88: ='Pres & Prop Rev'!E168 -> -158058.69 | F88: ='Pres & Prop Rev'!F168 -> 0 | G88: ='Pres & Prop Rev'!G168 -> 0 | H88: ='Pres & Prop Rev'!H168 -> 0 | K88: Breakeven Proof Calc | L88: 200 | N88: 500
B89: Weather & U/B Revenue | C89: =SUM(D89:H89) -> -4241823.04 | D89: ='Pres & Prop Rev'!D190 -> -3138450.16 | E89: ='Pres & Prop Rev'!E190 -> -1183348.13 | F89: ='Pres & Prop Rev'!F190 -> 79975.25 | G89: ='Pres & Prop Rev'!G190 -> 0 | H89: ='Pres & Prop Rev'!H190 -> 0 | K89: Basic Charge/Minimum | L89: =D63 -> 10.98 | M89: =E63 -> 152.01 | N89: =D63 -> 10.98 | O89: =E63 -> 152.01 | P89: =F63 -> 378.63
K90: Therm Rate | L90: =D82/100 -> 0.7162516979 | M90: =E82/100 -> 0.0685 | N90: =D82/100 -> 0.7162516979 | O90: =(E82/100) -> 0.0685 | P90: =F82/100 -> 0.05261
B91: Revenue Remaining | C91: =IF(ROUND(C60-C65-SUM(C87:C89),3)<>ROUND(SUM(D91:H91),3),#VALUE!,SUM(D91:H91)) -> 1017.919586 | D91: =D60-D65-SUM(D87:D89) -> 0 | E91: =E60-E65-SUM(E87:E89) -> 0 | F91: =F60-F65-SUM(F87:F89) -> 962.6152647 | G91: =G60-G65-SUM(G87:G89) -> 55.30432101 | H91: =H60-H65-SUM(H87:H89) -> 0 | K91: Therm Rate | L91: =D84/100 -> 0.8112516979 | N91: =L91 -> 0.8112516979 | O91: =E83/100 -> 0.7352009531
B92: Revenue Remaining - ¢/Th | C92: =C91/C57*100 -> 0.0005065517447 | D92: 0 | E92: 0 | F92: 0.01536497322 | G92: 0.008602253989 | H92: 0 | K92: Bill Calculation | L92: =L89+(70*L90)+(L88-70)*L91 -> 166.5803396 | M92: =(L88*M90)+M89 -> 165.71 | N92: =(N88*N90)+N89 -> 369.105849 | O92: =O89+(200*O90)+(N88-200)*O91 -> 386.2702859 | P92: =P89+(N88*P90) -> 404.935
B93: check - < $4k is rounding | C93: =SUM(D93:H93) -> 174.8204142 | D93: =D60-'Pres & Prop Rev'!D192-D91 -> 209.1741091 | E93: =E60-'Pres & Prop Rev'!E192-E91 -> 36.40003725 | F93: =F60-'Pres & Prop Rev'!F192-F91 -> 1.441664755 | G93: =G60-'Pres & Prop Rev'!G192-G91 -> -1.701879632 | H93: =H60-'Pres & Prop Rev'!H192-H91 -> -70.4935172 | M93: =M92-L92 -> -0.8703395894 | O93: =O92-N92 -> 17.16443697 | P93: =P92-O92 -> 18.66471406
B95: Proposed Target | C95: =SUM(D95:H95) -> 148055000 | D95: =D60 -> 108825426.7 | E95: =E60 -> 32560265.49 | F95: =F60 -> 3945606.307 | G95: =G60 -> 376723.8124 | H95: =H60 -> 2346977.656
B96: Proposed Actual | C96: ='Pres & Prop Rev'!C192-SUM('Pres & Prop Rev'!I192:J192) -> 148053807.3 | D96: ='Pres & Prop Rev'!D192 -> 108825217.6 | E96: ='Pres & Prop Rev'!E192 -> 32560229.09 | F96: ='Pres & Prop Rev'!F192 -> 3944642.25 | G96: ='Pres & Prop Rev'!G192 -> 376670.21 | H96: ='Pres & Prop Rev'!H192 -> 2347048.15
C97: =SUM(D97:H97) -> -1192.74 | D97: =D96-D95 -> -209.1741091 | E97: =E96-E95 -> -36.40003725 | F97: =F96-F95 -> -964.0569295 | G97: =G96-G95 -> -53.60244138 | H97: =H96-H95 -> 70.4935172
B98: Rate D Check
B99: Basic/Min Charge | C99: =SUM('Pres & Prop Rev'!C155:C156)/SUM('Pres & Prop Rev'!C106:C107)-1 -> 0.5651835513 | D99: =SUM('Pres & Prop Rev'!D155:D156)/SUM('Pres & Prop Rev'!D106:D107)-1 -> 0.83 | E99: =SUM('Pres & Prop Rev'!E155:E156)/SUM('Pres & Prop Rev'!E106:E107)-1 -> 0 | F99: =SUM('Pres & Prop Rev'!F155:F156)/SUM('Pres & Prop Rev'!F106:F107)-1 -> 0 | G99: =SUM('Pres & Prop Rev'!G155:G156)/SUM('Pres & Prop Rev'!G106:G107)-1 ->  | H99: =SUM('Pres & Prop Rev'!H155:H156)/SUM('Pres & Prop Rev'!H106:H107)-1 -> 0.07716
B100: Adj. to Actual Revenue | C100: ='Pres & Prop Rev'!C168/'Pres & Prop Rev'!C119-1 -> 0.0197166421 | D100: ='Pres & Prop Rev'!D168/'Pres & Prop Rev'!D119-1 ->  | E100: ='Pres & Prop Rev'!E168/'Pres & Prop Rev'!E119-1 -> 0.0197166421 | F100: ='Pres & Prop Rev'!F168/'Pres & Prop Rev'!F119-1 ->  | G100: ='Pres & Prop Rev'!G168/'Pres & Prop Rev'!G119-1 ->  | H100: ='Pres & Prop Rev'!H168/'Pres & Prop Rev'!H119-1 -> 
B101: Weather & U/B Revenue | C101: ='Pres & Prop Rev'!C190/'Pres & Prop Rev'!C142-1 -> -0.03861706807 | D101: ='Pres & Prop Rev'!D190/'Pres & Prop Rev'!D142-1 -> -0.05770850206 | E101: ='Pres & Prop Rev'!E190/'Pres & Prop Rev'!E142-1 -> 0.01991702386 | F101: ='Pres & Prop Rev'!F190/'Pres & Prop Rev'!F142-1 -> 0.01636691932 | G101: ='Pres & Prop Rev'!G190/'Pres & Prop Rev'!G142-1 ->  | H101: ='Pres & Prop Rev'!H190/'Pres & Prop Rev'!H142-1 -> 
B102: Block Therm Charges | C102: =SUM('Pres & Prop Rev'!C157:C161)/SUM('Pres & Prop Rev'!C108:C112)-1 -> -0.03645078087 | D102: =SUM('Pres & Prop Rev'!D157:D161)/SUM('Pres & Prop Rev'!D108:D112)-1 -> -0.05770850465 | E102: =SUM('Pres & Prop Rev'!E157:E161)/SUM('Pres & Prop Rev'!E108:E112)-1 -> 0.01971664823 | F102: =SUM('Pres & Prop Rev'!F157:F161)/SUM('Pres & Prop Rev'!F108:F112)-1 -> 0.01332301828 | G102: =SUM('Pres & Prop Rev'!G157:G161)/SUM('Pres & Prop Rev'!G108:G112)-1 -> 0.03180291647 | H102: =SUM('Pres & Prop Rev'!H157:H161)/SUM('Pres & Prop Rev'!H108:H112)-1 -> 0.06564020917
B103: Overall Revenue | C103: ='Pres & Prop Rev'!C192/'Pres & Prop Rev'!C193-1 -> 0.02726165961 | D103: ='Pres & Prop Rev'!D192/'Pres & Prop Rev'!D193-1 -> 0.03046328072 | E103: ='Pres & Prop Rev'!E192/'Pres & Prop Rev'!E193-1 -> 0.01701486825 | F103: ='Pres & Prop Rev'!F192/'Pres & Prop Rev'!F193-1 -> 0.01298035445 | G103: ='Pres & Prop Rev'!G192/'Pres & Prop Rev'!G193-1 -> 0.03180291647 | H103: ='Pres & Prop Rev'!H192/'Pres & Prop Rev'!H193-1 -> 0.06622109776
B105: Avg. Usage | D105: =D57/D58 -> 68.08190906 | E105: =E57/E58 -> 1583.212417 | F105: =F57/F58 -> 20080.12179 | G105: =G57/G58 -> 53575.41667 | H105: =H57/H58 -> 66325.78604
B106: Bill Compare: | C106: =INDEX($D$2:$H$2,I106) -> SCH. 101 | F106: =INDEX($D$2:$H$2,J106) -> SCH. 111,112 | I106: 1 | J106: 2
C107: Pres | D107: Prop | E107: % Incr | F107: Pres | G107: Prop | H107: % Incr
B108: 0 | C108: =I$108+MIN($B108,M$109)*I$109/100+MAX(0,MIN($B108-M$109,M$110-M$109))*I$110/100+MAX(0,MIN($B108-M$110,M$111-M$110))*I$111/100+MAX(0,MIN($B108-M$111,M$112-M$111))*I$112/100+MAX(0,B108-M$113)*I$113/100 -> 6 | D108: =J$108+MIN($B108,N$109)*J$109/100+MAX(0,MIN($B108-N$109,N$110-N$109))*J$110/100+MAX(0,MIN($B108-N$110,N$111-N$110))*J$111/100+MAX(0,MIN($B108-N$111,N$112-N$111))*J$112/100+MAX(0,C108-N$113)*J$113/100 -> 10.98 | E108: =D108/C108-1 -> 0.83 | F108: =K$108+MIN($B108,O$109)*K$109/100+MAX(0,MIN($B108-O$109,O$110-O$109))*K$110/100+MAX(0,MIN($B108-O$110,O$111-O$110))*K$111/100+MAX(0,MIN($B108-O$111,O$112-O$111))*K$112/100+MAX(0,E108-O$113)*K$113/100 -> 152.01 | G108: =L$108+MIN($B108,P$109)*L$109/100+MAX(0,MIN($B108-P$109,P$110-P$109))*L$110/100+MAX(0,MIN($B108-P$110,P$111-P$110))*L$111/100+MAX(0,MIN($B108-P$111,P$112-P$111))*L$112/100+MAX(0,F108-P$113)*L$113/100 -> 152.01 | H108: =G108/F108-1 -> 0 | I108: =INDEX(CHOOSE(Base1_Billing2,$D$4:$H$4,$D$14:$H$14),$I$106)+INDEX(CHOOSE(Base1_Billing2,$D$5:$H$5,$D$15:$H$15),$I$106) -> 6 | J108: =INDEX(CHOOSE(Base1_Billing2,$D$26:$H$26,$D$36:$H$36),$I$106)+INDEX(CHOOSE(Base1_Billing2,$D$27:$H$27,$D$37:$H$37),$I$106) -> 10.98 | K108: =INDEX(CHOOSE(Base1_Billing2,$D$4:$H$4,$D$14:$H$14),$J$106)+INDEX(CHOOSE(Base1_Billing2,$D$5:$H$5,$D$15:$H$15),$J$106) -> 152.01 | L108: =INDEX(CHOOSE(Base1_Billing2,$D$26:$H$26,$D$36:$H$36),$J$106)+INDEX(CHOOSE(Base1_Billing2,$D$27:$H$27,$D$37:$H$37),$J$106) -> 152.01
B109: 68 | C109: =I$108+MIN($B109,M$109)*I$109/100+MAX(0,MIN($B109-M$109,M$110-M$109))*I$110/100+MAX(0,MIN($B109-M$110,M$111-M$110))*I$111/100+MAX(0,MIN($B109-M$111,M$112-M$111))*I$112/100+MAX(0,B109-M$113)*I$113/100 -> 60.3422 | D109: =J$108+MIN($B109,N$109)*J$109/100+MAX(0,MIN($B109-N$109,N$110-N$109))*J$110/100+MAX(0,MIN($B109-N$110,N$111-N$110))*J$111/100+MAX(0,MIN($B109-N$111,N$112-N$111))*J$112/100+MAX(0,C109-N$113)*J$113/100 -> 59.685 | E109: -0.01089121709 | F109: =K$108+MIN($B109,O$109)*K$109/100+MAX(0,MIN($B109-O$109,O$110-O$109))*K$110/100+MAX(0,MIN($B109-O$110,O$111-O$110))*K$111/100+MAX(0,MIN($B109-O$111,O$112-O$111))*K$112/100+MAX(0,E109-O$113)*K$113/100 -> 156.668 | G109: =L$108+MIN($B109,P$109)*L$109/100+MAX(0,MIN($B109-P$109,P$110-P$109))*L$110/100+MAX(0,MIN($B109-P$110,P$111-P$110))*L$111/100+MAX(0,MIN($B109-P$111,P$112-P$111))*L$112/100+MAX(0,F109-P$113)*L$113/100 -> 156.668 | H109: 0 | I109: =INDEX(CHOOSE(Base1_Billing2,$D6:$H6,$D16:$H16),$I$106) -> 79.915 | J109: =INDEX(CHOOSE(Base1_Billing2,$D28:$H28,$D38:$H38),$I$106) -> 71.625 | K109: =INDEX(CHOOSE(Base1_Billing2,$D6:$H6,$D16:$H16),$J$106) -> 6.85 | L109: =INDEX(CHOOSE(Base1_Billing2,$D28:$H28,$D38:$H38),$J$106) -> 6.85 | M109: =INDEX($L6:$P6,$I$106) -> 9999999 | N109: =INDEX($L28:$P28,$I$106) -> 30 | O109: =INDEX($L6:$P6,$J$106) -> 200 | P109: =INDEX($L28:$P28,$J$106) -> 200
B110: 2000 | C110: 1604.3 | D110: 1626.83 | E110: 0.01404350807 | F110: 1393.038 | G110: 1417.54 | H110: 0.01758889564 | I110: =INDEX(CHOOSE(Base1_Billing2,$D7:$H7,$D17:$H17),$I$106) -> 0 | J110: =INDEX(CHOOSE(Base1_Billing2,$D29:$H29,$D39:$H39),$I$106) -> 71.625 | K110: =INDEX(CHOOSE(Base1_Billing2,$D7:$H7,$D17:$H17),$J$106) -> 72.081 | L110: =INDEX(CHOOSE(Base1_Billing2,$D29:$H29,$D39:$H39),$J$106) -> 73.52 | M110: =INDEX($L7:$P7,$I$106) -> 9999999 | N110: =INDEX($L29:$P29,$I$106) -> 70 | O110: =INDEX($L7:$P7,$J$106) -> 1000 | P110: =INDEX($L29:$P29,$J$106) -> 1000
B111: 3000 | C111: 2403.45 | D111: 2438.08 | E111: 0.01440845451 | F111: 2043.718 | G111: 2081.21 | H111: 0.01834499672 | I111: =INDEX(CHOOSE(Base1_Billing2,$D8:$H8,$D18:$H18),$I$106) -> 0 | J111: =INDEX(CHOOSE(Base1_Billing2,$D30:$H30,$D40:$H40),$I$106) -> 81.125 | K111: =INDEX(CHOOSE(Base1_Billing2,$D8:$H8,$D18:$H18),$J$106) -> 65.068 | L111: =INDEX(CHOOSE(Base1_Billing2,$D30:$H30,$D40:$H40),$J$106) -> 66.367 | M111: =INDEX($L8:$P8,$I$106) -> 9999999 | N111: =INDEX($L30:$P30,$I$106) -> 9999999 | O111: =INDEX($L8:$P8,$J$106) -> 9999999 | P111: =INDEX($L30:$P30,$J$106) -> 9999999
B112: 4000 | C112: 3202.6 | D112: 3249.33 | E112: 0.01459126959 | F112: 2694.398 | G112: 2744.88 | H112: 0.01873591058 | I112: =INDEX(CHOOSE(Base1_Billing2,$D9:$H9,$D19:$H19),$I$106) -> 0 | J112: =INDEX(CHOOSE(Base1_Billing2,$D31:$H31,$D41:$H41),$I$106) -> 0 | K112: =INDEX(CHOOSE(Base1_Billing2,$D9:$H9,$D19:$H19),$J$106) -> 0 | L112: =INDEX(CHOOSE(Base1_Billing2,$D31:$H31,$D41:$H41),$J$106) -> 0 | M112: =INDEX($L9:$P9,$I$106) -> 9999999 | N112: =INDEX($L31:$P31,$I$106) -> 9999999 | O112: =INDEX($L9:$P9,$J$106) -> 9999999 | P112: =INDEX($L31:$P31,$J$106) -> 9999999
B113: 5000 | C113: 4001.75 | D113: 4060.58 | E113: 0.01470106828 | F113: 3345.078 | G113: 3408.55 | H113: 0.01897474439 | I113: =INDEX(CHOOSE(Base1_Billing2,$D10:$H10,$D20:$H20),$I$106) -> 0 | J113: =INDEX(CHOOSE(Base1_Billing2,$D32:$H32,$D42:$H42),$I$106) -> 0 | K113: =INDEX(CHOOSE(Base1_Billing2,$D10:$H10,$D20:$H20),$J$106) -> 0 | L113: =INDEX(CHOOSE(Base1_Billing2,$D32:$H32,$D42:$H42),$J$106) -> 0 | M113: =INDEX($L10:$P10,$I$106) -> 9999999 | N113: =INDEX($L32:$P32,$I$106) -> 9999999 | O113: =INDEX($L10:$P10,$J$106) -> 9999999 | P113: =INDEX($L32:$P32,$J$106) -> 9999999
B114: 6000 | C114: 4800.9 | D114: 4871.83 | E114: 0.01477431315 | F114: 3995.758 | G114: 4072.22 | H114: 0.01913579351
B115: 7000 | C115: 5600.05 | D115: 5683.08 | E115: 0.01482665333 | F115: 4646.438 | G115: 4735.89 | H115: 0.01925173649
B116: 8000 | C116: 6399.2 | D116: 6494.33 | E116: 0.01486592074 | F116: 5297.118 | G116: 5399.56 | H116: 0.01933919539
B117: 9000 | C117: 7198.35 | D117: 7305.58 | E117: 0.01489646933 | F117: 5947.798 | G117: 6063.23 | H117: 0.01940751855
B118: 10000 | C118: 7997.5 | D118: 8116.83 | E118: 0.01492091279 | F118: 6598.478 | G118: 6726.9 | H118: 0.01946236693
B119: 11000 | C119: 8796.65 | D119: 8928.08 | E119: 0.01494091501 | F119: 7249.158 | G119: 7390.57 | H119: 0.01950736899
B120: 12000 | C120: 9595.8 | D120: 9739.33 | E120: 0.01495758561 | F120: 7899.838 | G120: 8054.24 | H120: 0.01954495776
B121: 13000 | C121: 10394.95 | D121: 10550.58 | E121: 0.01497169299 | F121: 8550.518 | G121: 8717.91 | H121: 0.01957682564
B122: 14000 | C122: 11194.1 | D122: 11361.83 | E122: 0.0149837861 | F122: 9201.198 | G122: 9381.58 | H122: 0.01960418632

Sheet ROR (hidden)
B1: AVISTA UTILITIES
B2: WASHINGTON GAS
B3: PRESENT & PROPOSED RATE OF RETURN BY RATE SCHEDULE
B4: 12 MONTHS ENDED DECEMBER 31, 2011
C7: Total | D7: Sch 101 | E7: Sch 111 | F7: Sch 121 | G7: Sch 131 | H7: Sch 146
B8: Total Rate Base | C8: =SUM(D8:H8) -> 189089000 | D8: 145155168.2 | E8: 31871255.88 | F8: 2839833.911 | G8: 394552.0614 | H8: 8828189.966 | I8: from COS
B10: Revenue From Retail Rates | C10: =SUM(D10:H10) -> 144083000 | D10: 105607336.8 | E10: 32015273.8 | F10: 3894069.703 | G10: 365057.5347 | H10: 2201262.135 | I10: from COS
B11: Other Operating Revenues | C11: =SUM(D11:H11) -> 1635000 | D11: 1255342.556 | E11: 275375.1996 | F11: 24521.89706 | G11: 3408.527106 | H11: 76351.82006 | I11: from COS
B12: Total Revenues | C12: =IF(ROUND(C10+C11,0)<>ROUND(SUM(D12:H12),0),#VALUE!,SUM(D12:H12)) -> 145718000 | D12: =D10+D11 -> 106862679.4 | E12: =E10+E11 -> 32290649 | F12: =F10+F11 -> 3918591.6 | G12: =G10+G11 -> 368466.0619 | H12: =H10+H11 -> 2277613.955
B14: Total Operating Exp b4 conv items & taxes | C14: =SUM(D14:H14) -> 120827000 | D14: =D17-D15-D16 -> 88230805.84 | E14: =E17-E15-E16 -> 26943341.18 | F14: =F17-F15-F16 -> 3366156.625 | G14: =G17-G15-G16 -> 345611.6945 | H14: =H17-H15-H16 -> 1941084.68
B15: Revenue Related conversion items | C15: =SUM(D15:H15) -> 6715000 | D15: 4932830.241 | E15: 1480422.84 | F15: 180066.2323 | G15: 17245.30014 | H15: 104435.387 | I15: from COS
B16: Income Taxes | C16: =SUM(D16:H16) -> 5228000 | D16: 3903807.955 | E16: 1227661.28 | F16: 121386.4313 | G16: -3030.118895 | H16: -21825.54775 | I16: from COS
B17: Total Expenses | C17: =IF(ROUND(SUM(C14:C16),0)<>ROUND(SUM(D17:H17),0),#VALUE!,SUM(D17:H17)) -> 132770000 | D17: 97067444.04 | E17: 29651425.3 | F17: 3667609.288 | G17: 359826.8757 | H17: 2023694.519 | I17: from COS
B19: Net Operating Income | C19: =IF(ROUND(C12-C17,0)<>ROUND(SUM(D19:H19),0),#VALUE!,SUM(D19:H19)) -> 12947999.98 | D19: =D12-D17 -> 9795235.347 | E19: =E12-E17 -> 2639223.703 | F19: =F12-F17 -> 250982.3118 | G19: =G12-G17 -> 8639.186134 | H19: =H12-H17 -> 253919.4355
B20: Present Rate of Return | C20: =C19/C8 -> 0.06847569125 | D20: =D19/D8 -> 0.06748113395 | E20: 0.08280890194 | F20: 0.08837922208 | G20: 0.02189618806 | H20: =H19/H8 -> 0.02876234386
B21: Present Return Ratio | C21: =C20/$C20 -> 1 | D21: =D20/$C20 -> 0.985475761 | E21: 1.209318233 | F21: 1.290665643 | G21: 0.3197658564 | H21: =H20/$C20 -> 0.4200372911
B23: Interest Expense | C23: =SUM(D23:H23) -> 6055000 | D23: 4648152.686 | E23: 1020580.015 | F23: 90937.04197 | G23: 12634.3295 | H23: 282695.9276 | I23: from COS
B25: Proposed Misc Revenue Increase | C25: 0
B26: Proposed Rate Revenue Increase | C26: =G26*1000 -> 3972000 | D26: =C26/C10 -> 0.02756744377 | G26: 3972 | H26: 1134 | I26: bc
B27: Proposed Rev Increase | C27: =C25+C26 -> 3972000 | H27: 4055 | I27: att
D28: change | H28: 10880 | I28: co
B29: Proposed Rate Revenues | C29: =C10+C26 -> 148055000 | D29: =C29-C10 -> 3972000 | F29: Uncollectibles | G29: 0.004338
B30: incremental conversion expenses | C30: =ROUND(C27*G29,-3)+ROUND(C27*G30,-3)+ROUND(C27*G31,-3) -> 177000 | F30: Commiss Fees | G30: 0.002
B31: incremental Income Taxes | C31: =ROUND(C27*G32,-3) -> 1328000 | F31: Excise Tax | G31: 0.038353
B32: Proposed Return | C32: =C19+C27-C30-C31 -> 15414999.98 | D32: =C32-C19 -> 2467000 | F32: Federal Inc Tax | G32: 0.334358
B33: Proposed Return % | C33: =C32/C8 -> 0.08152245759
B35: Allocation of incremental Misc Rev | C35: =SUM(D35:H35) -> 0 | D35: 0 | E35: 0 | F35: 0 | G35: 0 | H35: 0 | I35: from COS
G36: 3 | H36: =G36*1.5 -> 4.5
B37: Target Relative Return | C37: =C38/C33 -> 1 | D37: =D39/D8/C33 -> 0.9959226704 | E37: 1.152410429 | F37: 1.2294608 | G37: 0.4723275285 | H37: 0.4665834536 | I37: Input | K37: =D26 -> 0.02756744377
B38: Target Return % | C38: =C39/C8 -> 0.08152245759 | D38: =D39/D8 -> 0.08119006366 | E38: =E39/E8 -> 0.09394733029 | F38: =F39/F8 -> 0.100228666 | G38: =G39/G8 -> 0.03850530091 | H38: =H39/H8 -> 0.03803702981
B39: Target Return (NOI b4 Interest) | C39: =C32 -> 15414999.98 | D39: =$C$32-SUM(E39:H39) -> 11785157.35 | E39: =E8*E37*$C$32/$C$8 -> 2994219.403 | F39: =F8*F37*$C$32/$C$8 -> 284632.7644 | G39: =G8*G37*$C$32/$C$8 -> 15192.34585 | H39: =H8*H37*$C$32/$C$8 -> 335798.1249 | I39: =ROUND(C39-SUM(D39:H39),0) -> 0
B40: Target Return after Interest Expense | C40: =C39-C23 -> 9359999.984 | D40: 7137004.659 | E40: 1973639.389 | F40: 193695.7225 | G40: 2558.016345 | H40: 53102.19736 | I40: =ROUND(C40-SUM(D40:H40),0) -> 0
B41: Target Return b4 Income Taxes & Interest | C41: =C40+C16+C31+C23 -> 21970999.98 | D41: =D40+D23+D40/$C40*SUM($C$16,$C$31) -> 16784110.62 | E41: =E40+E23+E40/$C40*SUM($C$16,$C$31) -> 4376610.413 | F41: =F40+F23+F40/$C40*SUM($C$16,$C$31) -> 420302.5463 | G41: =G40+G23+G40/$C40*SUM($C$16,$C$31) -> 16984.05046 | H41: =H40+H23+H40/$C40*SUM($C$16,$C$31) -> 372992.3564 | I41: 0
B42: Target Return b4 Misc Rev | C42: =C41-C11-$C$25*C35 -> 20335999.98 | D42: =D41-D11-$C$25*D35 -> 15528768.06 | E42: 4101235.214 | F42: 395780.6493 | G42: =G41-G11-$C$25*G35 -> 13575.52336 | H42: =H41-H11-$C$25*H35 -> 296640.5363 | I42: 0
B43: =B14 -> Total Operating Exp b4 conv items & taxes | C43: 120827000 | D43: 88230805.84 | E43: 26943341.18 | F43: 3366156.625 | G43: =G14 -> 345611.6945 | H43: =H14 -> 1941084.68 | I43: 0
B44: Conversion Items | C44: =C15+C30 -> 6892000 | D44: =$C44*D46/$C46 -> 5065852.832 | E44: =$C44*E46/$C46 -> 1515689.1 | F44: =$C44*F46/$C46 -> 183669.0329 | G44: =$C44*G46/$C46 -> 17536.59461 | H44: =$C44*H46/$C46 -> 109252.44 | I44: 0
B45: Incremental Rate Revenue | C45: =C26 -> 3972000 | D45: =(D42-D10+D14+($C$44*D10)/$C$29)/(1-$C$44/$C$29) -> 3218089.906 | E45: =(E42-E10+E14+($C$44*E10)/$C$29)/(1-$C$44/$C$29) -> 544991.6908 | F45: =(F42-F10+F14+($C$44*F10)/$C$29)/(1-$C$44/$C$29) -> 51536.60378 | G45: =(G42-G10+G14+($C$44*G10)/$C$29)/(1-$C$44/$C$29) -> 11666.27769 | H45: =(H42-H10+H14+($C$44*H10)/$C$29)/(1-$C$44/$C$29) -> 145715.5217 | I45: 0 | K45: CM %
B46: Target Rate Revenue | C46: =C42+C43+C44 -> 148055000 | D46: =D10+D45 -> 108825426.7 | E46: =E10+E45 -> 32560265.49 | F46: =F10+F45 -> 3945606.307 | G46: =G10+G45 -> 376723.8124 | H46: =H10+H45 -> 2346977.656 | I46: 0
B47: Change in Rate Revenue | C47: =C46/C10-1 -> 0.02756744377 | D47: =D46/D10-1 -> 0.0304722191 | E47: 0.01702286522 | F47: 0.01323463824 | G47: 0.03195736722 | H47: 0.06619635137 | K47: 0.783839232 | L47: 0.1628078585 | M47: 0.01576619863 | N47: 0.00127684387 | O47: 0.03630986705
G48: =$C$47*G36 -> 0.0827023313 | H48: =$C$47*H36 -> 0.1240534969
B49: Incremental Rate Revenue - rounded | C49: =SUM(D49:H49) -> 3972000 | D49: =ROUND(D45,-3) -> 3218000 | E49: =ROUND(E45,-3)-1000 -> 544000 | F49: 52000 | G49: 12000 | H49: 146000 | K49: =$C$26*K47 -> 3113409.429 | L49: =$C$26*L47 -> 646672.8138 | M49: 62623.34096 | N49: 5071.623852 | O49: 144222.7919
B50: Target Rate Revenue - rounded | C50: =SUM(D50:H50) -> 148055000 | D50: 108825000 | E50: 32560000 | F50: 3946000 | G50: 377000 | H50: 2347000
B52: Billed Revenue | C52: =SUM(D52:H52) -> 146747056 | D52: 107720737 | E52: 32425363 | F52: 4010606 | G52: 387600 | H52: 2202750
B53: Billed Increase | C53: 0.007870463552 | D53: 0.01065606055 | E53: -0.01996989629 | F53: -0.02202504945 | G53: 0.09866311898 | H53: 0.3169694666
D55: =(D53/$C$53)-100% -> 0.3539304866 | E55: =(E53/$C$53)-100% -> -3.537321487 | F55: -3.798443739 | G55: 11.5358714 | H55: 39.2732907
D56: =(D47/$C$47)-100% -> 0.1053697744 | E56: =(E47/$C$47)-100% -> -0.3825011356 | F56: =(F47/$C$47)-100% -> -0.5199178296 | G56: 0.1592430365 | H56: 1.40125098
E58: 0 | F58: 0
E59: 1.152410429 | F59: 1.2294608
D62: bc | E62: 1.155313962 | F62: 1.232537816 | G62: 0.4053761219 | H62: 0.4282760681
G67: 1240 | H67: 4160
H68: =H67/G67 -> 3.35483871
G70: =G67%/G36 -> 4.133333333 | H70: =H67%/H36 -> 9.244444444

Sheet BFG (hidden)
A1: AVISTA UTILITIES
A2: GAS ANNUAL MINIMUM DEFICIENCY FOR B.F. GOODRICH
A3: STATE OF WASHINGTON
A4: BASED ON 2007 ANNUAL MINIMUM
F6: Gas
A7: Annual Minimum Usage Requirement(1) | F7: 10500000
A8: Less: Jan 09 - Dec 09 Usage(2) | F8: =SUMIF('Big Schedules'!$A$4:$A$43,"BF Goodrich",'Big Schedules'!$N$4:$N$43) -> 5275291
A9: Usage Deficiency | F9: =F7-F8 -> 5224709
A10: Deficiency Charge per therm(3) | F10: 0
A11: Annual Minimum Deficiency | F11: =F9*F10 -> 0
A16: (1) Per Contract - workpaper BJH-G-36
A17: (2) From workpaper BJH-G-9
A18: (3) From workpaper BJH-G-35
A21: ** Annual Minimum Ended in 2009
F24: =ROUND(F11-'Pres & Prop Rev'!J113,0) -> 0

Sheet Exh3 (hidden)
A1: AVISTA UTILITIES | L1: This worksheet pulls data from 'ROR' tab.
A2: WASHINGTON NATURAL GAS
A3: PRESENT & PROPOSED RATES OF RETURN BY RATE SCHEDULE
A4: 12 MONTHS ENDED DECEMBER 31, 2011
D9: Present Rates | G9: Base | I9: Proposed Rates
D10: Present | E10: Present | G10: Tariff | I10: Proposed | J10: Proposed
A11: Line | B11: Type of | C11: Sch. | D11: Rate of | E11: Relative | G11: Proposed | I11: Rate of | J11: Relative
A12: No. | B12: Service | C12: Number | D12: Return | E12: ROR | G12: Increase | I12: Return | J12: ROR
B13: (a) | C13: (b) | D13: (c) | E13: (d) | G13: (e) | I13: (f) | J13: (g)
A15: 1 | B15: General Service | C15: 101 | D15: =INDEX(ROR!$C$20:$H$20,$A15+1) -> 0.06748113395 | E15: =INDEX(ROR!$C$21:$H$21,$A15+1) -> 0.985475761 | G15: =INDEX(ROR!$C$47:$H$47,$A15+1) -> 0.0304722191 | I15: =INDEX(ROR!$C$38:$H$38,$A15+1) -> 0.08119006366 | J15: =INDEX(ROR!$C$37:$H$37,$A15+1) -> 0.9959226704
A16: 2 | B16: Large General Service | C16: 111 | D16: =INDEX(ROR!$C$20:$H$20,$A16+1) -> 0.08280890194 | E16: =INDEX(ROR!$C$21:$H$21,$A16+1) -> 1.209318233 | G16: =INDEX(ROR!$C$47:$H$47,$A16+1) -> 0.01702286522 | I16: =INDEX(ROR!$C$38:$H$38,$A16+1) -> 0.09394733029 | J16: =INDEX(ROR!$C$37:$H$37,$A16+1) -> 1.152410429
A17: 3 | B17: Large General Svc.-High Annual Load Factor | C17: 121 | D17: =INDEX(ROR!$C$20:$H$20,$A17+1) -> 0.08837922208 | E17: =INDEX(ROR!$C$21:$H$21,$A17+1) -> 1.290665643 | G17: =INDEX(ROR!$C$47:$H$47,$A17+1) -> 0.01323463824 | I17: =INDEX(ROR!$C$38:$H$38,$A17+1) -> 0.100228666 | J17: =INDEX(ROR!$C$37:$H$37,$A17+1) -> 1.2294608
A18: 4 | B18: Interruptible Service | C18: 131 | D18: =INDEX(ROR!$C$20:$H$20,$A18+1) -> 0.02189618806 | E18: =INDEX(ROR!$C$21:$H$21,$A18+1) -> 0.3197658564 | G18: =INDEX(ROR!$C$47:$H$47,$A18+1) -> 0.03195736722 | I18: =INDEX(ROR!$C$38:$H$38,$A18+1) -> 0.03850530091 | J18: =INDEX(ROR!$C$37:$H$37,$A18+1) -> 0.4723275285
A19: 5 | B19: Transportation Service | C19: 146 | D19: =INDEX(ROR!$C$20:$H$20,$A19+1) -> 0.02876234386 | E19: =INDEX(ROR!$C$21:$H$21,$A19+1) -> 0.4200372911 | G19: =INDEX(ROR!$C$47:$H$47,$A19+1) -> 0.06619635137 | I19: =INDEX(ROR!$C$38:$H$38,$A19+1) -> 0.03803702981 | J19: =INDEX(ROR!$C$37:$H$37,$A19+1) -> 0.4665834536
A20: 6 | B20: Total | D20: =INDEX(ROR!$C$20:$H$20,1) -> 0.06847569125 | E20: =INDEX(ROR!$C$21:$H$21,1) -> 1 | G20: =INDEX(ROR!$C$47:$H$47,1) -> 0.02756744377 | I20: =INDEX(ROR!$C$38:$H$38,1) -> 0.08152245759 | J20: =INDEX(ROR!$C$37:$H$37,1) -> 1

Sheet Bill Determ (hidden)
A1: AVISTA UTILITIES
A2: WASHINGTON GAS
A3: USAGE & BILLINGS BY RATE SCHEDULE
A4: 12 MONTHS ENDED DECEMBER 31, 2011
B5: Present | E5: Proposed
A6: Schedule 101 | B6: Total therms | C6: Total Billings | E6: 0-30 | F6: 31-70 | G6: >70 | H6: Total Therms
A7: therms per Revenue Run(1) | B7: ='Rev Runs CY'!J59 -> 123192356 | C7: ='Rev Runs CY'!I59*12 -> 1748256 | E7: =40503629+420615 -> 40924244 | F7: 34570303 | G7: 47697809 | H7: =SUM(E7:G7) -> 123192356 | K7: =G7/H7 -> 0.3871815634
A8: Revenue Runs | H8: ='Rev Runs CY'!J59 -> 123192356 | K8: =100%-K7 -> 0.6128184366
A9: Adjust. To Actual | H9: =H8-H7 -> 0
E13: Total
A14: Schedule 111,112 | B14: 0-200 thms | C14: 201-1000 thms | D14: > 1000 thms | E14: therms | F14: Total Billings
A15: therms by block(2) | B15: 5241853 | C15: 14630620 | D15: 29785967 | E15: =SUM(B15:D15) -> 49658440
A16: less: shifted to Sch 146 | B16: =-'Big Schedules'!P51-'Big Schedules'!P52-'Big Schedules'!P92-'Big Schedules'!P93-'Big Schedules'!P94 -> -10800 | C16: =-'Big Schedules'!Q51-'Big Schedules'!Q52-'Big Schedules'!Q92-'Big Schedules'!Q93-'Big Schedules'!Q94 -> -49200 | D16: =-'Big Schedules'!R51-'Big Schedules'!R52-'Big Schedules'!R92-'Big Schedules'!R93-'Big Schedules'!R94 -> -1989404 | E16: =SUM(B16:D16) -> -2049404
A17: Total therms by block | B17: =SUM(B15:B16) -> 5231053 | C17: =SUM(C15:C16) -> 14581420 | D17: =SUM(D15:D16) -> 27796563 | E17: =SUM(E15:E16) -> 47609036
A18: Per Rev. Run(1) | E18: =SUM('Rev Runs CY'!J60:J61) -> 49403582 | F18: =SUM('Rev Runs CY'!I60:I61)*12 -> 28837
A19: less: shifted to Sch. 146 (2) | B19: =-'Big Schedules'!P51-'Big Schedules'!P52-'Big Schedules'!P92-'Big Schedules'!P93-'Big Schedules'!P94 -> -10800 | C19: =-'Big Schedules'!Q51-'Big Schedules'!Q52-'Big Schedules'!Q92-'Big Schedules'!Q93-'Big Schedules'!Q94 -> -49200 | D19: =-'Big Schedules'!R51-'Big Schedules'!R52-'Big Schedules'!R92-'Big Schedules'!R93-'Big Schedules'!R94 -> -1989404 | E19: =SUM(B19:D19) -> -2049404 | F19: -54
A20: less: shifted from Sch. 121 | E20: 0 | F20: 0
A21: Total | E21: =E18+E19+E20 -> 47354178 | F21: =F18+F19+F20 -> 28783
A22: Adjust. To Actual | E22: =E21-E17 -> -254858
D24: 1001-10000 | E24: 10000- | G24: Total
A25: Schedule 121,122 | B25: 0-500 thms | C25: 501-1000 thms | D25: therms | E25: 25000 thms | F25: >25000 thms | G25: therms | H25: Total Billings
A26: therms by block(3) | B26: ='Big Schedules'!P87 -> 156000 | C26: ='Big Schedules'!Q87 -> 156000 | D26: ='Big Schedules'!R87 -> 2638873 | E26: ='Big Schedules'!S87 -> 1825796 | F26: ='Big Schedules'!T87 -> 1360194 | G26: =SUM(B26:F26) -> 6136863 | H26: =26*12 -> 312
B28: first | C28: next | D28: next | E28: over | F28: Total
A29: Schedule 131,132 | B29: 10000 thms | C29: 15000 thms | D29: 25000 thms | E29: 50000 thms | F29: therms | G29: Total Billings
A30: billed/pro forma therms(3) | B30: ='Big Schedules'!P105 -> 120000 | C30: ='Big Schedules'!Q105 -> 175338 | D30: ='Big Schedules'!R105 -> 211422 | E30: ='Big Schedules'!S105 -> 136145 | F30: =SUM(B30:E30) -> 642905 | G30: =12*1 -> 12
B32: first | C32: next | D32: next | E32: next | F32: over | G32: Total
A33: Schedule 146 | B33: 20000 thms | C33: 30000 thms | D33: 250000 thms | E33: 200000 thms | F33: 500000 thms | G33: therms | H33: Total Billings
A34: billed/pro forma therms(4) | B34: ='Big Schedules'!P43 -> 7725697.27 | C34: ='Big Schedules'!Q43 -> 7336427.73 | D34: ='Big Schedules'!R43 -> 11915987 | E34: ='Big Schedules'!S43 -> 2350212 | F34: ='Big Schedules'!T43 -> 120325 | G34: =SUM(B34:F34) -> 29448649 | H34: =37*12 -> 444
A36: Sch. 147-Interdepartmental(3) | B36: Total therms
A37: billed/pro forma therms | B37: ='Big Schedules'!N126 -> 986014
A39: Sch. 148-Sp. Contracts(3) | B39: Total therms | C39: Total Billings
A40: Kaiser -Trentwood | B40: ='Big Schedules'!N110 -> 20176537 | C40: 12
A41: Lamb-Weston | B41: ='Big Schedules'!N111 -> 7301077 | C41: 12
A42: Mutual Materials | B42: ='Big Schedules'!N112 -> 1613790 | C42: 12
A43: Washington Potato | B43: ='Big Schedules'!N113 -> 5924708 | C43: 12
A44: Total | B44: =SUM(B40:B43) -> 35016112 | C44: =SUM(C40:C43) -> 48
A46: Wash. State Univ. | B46: =MAX(8000000,'Big Schedules'!N114) -> 9679278 | C46: 12
A48: (1) shown on workpaper PDE-G-11
A49: (2) shown on workpaper PDE-G-28
A50: (3) shown on workpaper PDE-G-9
A51: (4) shown on workpaper PDE-G-8
A59: USAGE
A60: Revenue Run therms, this sheet | B60: =B7+E21+F30+G34+B37+B44+B46+G26 -> 252456355
A62: actual Revenue Run therms | B62: ='Rev Runs CY'!J76 -> 252593595
A63: less:
A64: Misc adjustment | B64: 0
A65: Sch 121/122 normalize | B65: ='Rev Runs CY'!J62+'Rev Runs CY'!J63-G26 -> -260956
A66: Sch 146 normalize | B66: ='Rev Runs CY'!J70-G34 -> -1651208
A67: Sch 11/12 Shifting | B67: =-E20-E19 -> 2049404
B68: =B62-SUM(B63:B67) -> 252456355
A69: Diff | B69: =B60-B68 -> 0
A71: from Present Rev tab | B71: =SUM('Pres & Prop Rev'!D20:J20) -> 252456355
A72: this sheet | B72: =B60 -> 252456355
A73: Diff | B73: =B71-B72 -> 0
A76: CUSTOMERS
A77: Customers from this sheet | B77: =C7+F21+G30+H34+C44+C46+H26 -> 1777867
A79: Rev. Run customers | B79: ='Rev Runs CY'!I76*12 -> 1777932
A80: less:
A81: Sch 111 | B81: =-F19 -> 54
A82: Sch 121/122 | B82: =-F20 -> 0
A83: Sch 131 normalize | B83: 0
A84: Stimson switching--reduce Sch 146 | B84: 0
A85: Sch 146 normalize | B85: ='Rev Runs CY'!I70*12-(H34+B84) -> -20
A86: Sch 147 customers not billed | B86: ='Rev Runs CY'!I71*12 -> 31
A87: Sch 148 normalize | B87: 0
B88: =B79-SUM(B80:B87) -> 1777867
A89: Diff | B89: =B77-B88 -> 0
A91: from Present Rev tab | B91: =SUM('Pres & Prop Rev'!D25:J26) -> 1777867
A92: Diff | B92: =B88-B91 -> 0

Sheet Big Schedules (hidden)
A1: Washington Gas Billing Determinants by Customer
P2: 1st | Q2: =P3 -> 20000 | R2: =Q3 -> 50000 | S2: =R3 -> 300000 | T2: =S3 -> 500000
A3: ANNUAL USAGE, Sch 146 | N3: 12-mo ended | P3: 20000 | Q3: 50000 | R3: 300000 | S3: 500000 | T3: 99999999
A4: Washington | B4: 2011-01-01 | C4: 2011-02-01 | D4: 2011-03-01 | E4: 2011-04-01 | F4: 2011-05-01 | G4: 2011-06-01 | H4: 2011-07-01 | I4: 2011-08-01 | J4: 2011-09-01 | K4: 2011-10-01 | L4: 2011-11-01 | M4: 2011-12-01 | N4: Total | P4: thms/mo | Q4: thms/mo | R4: thms/mo | S4: thms/mo | T4: thms/mo
A5: American Linen | B5: 32782 | C5: 31652 | D5: 30921 | E5: 36602 | F5: 32346 | G5: 24451 | H5: 31969 | I5: 27529 | J5: 29950 | K5: 27491 | L5: 29058 | M5: 29839 | N5: =SUM(B5:M5) -> 364590 | P5: =P$3*12-SUMPRODUCT(--($B5:$M5<=P$3),P$3-$B5:$M5) -> 240000 | Q5: =Q$3*12-SUM($P5:P5)-SUMPRODUCT(--($B5:$M5<=Q$3),Q$3-$B5:$M5) -> 124590 | R5: =R$3*12-SUM($P5:Q5)-SUMPRODUCT(--($B5:$M5<=R$3),R$3-$B5:$M5) -> 0 | S5: =S$3*12-SUM($P5:R5)-SUMPRODUCT(--($B5:$M5<=S$3),S$3-$B5:$M5) -> 0 | T5: =T$3*12-SUM($P5:S5)-SUMPRODUCT(--($B5:$M5<=T$3),T$3-$B5:$M5) -> 0
A6: Baker Commodities | B6: 86780 | C6: 91286 | D6: 75763 | E6: 73389 | F6: 21970 | G6: 24671 | H6: 35026 | I6: 20522 | J6: 38937 | K6: 60903 | L6: 68688 | M6: 78705 | N6: 676640 | P6: 240000 | Q6: =Q$3*12-SUM($P6:P6)-SUMPRODUCT(--($B6:$M6<=Q$3),Q$3-$B6:$M6) -> 251126 | R6: =R$3*12-SUM($P6:Q6)-SUMPRODUCT(--($B6:$M6<=R$3),R$3-$B6:$M6) -> 185514 | S6: =S$3*12-SUM($P6:R6)-SUMPRODUCT(--($B6:$M6<=S$3),S$3-$B6:$M6) -> 0 | T6: =T$3*12-SUM($P6:S6)-SUMPRODUCT(--($B6:$M6<=T$3),T$3-$B6:$M6) -> 0
A7: BF Goodrich | B7: 396323 | C7: 422825 | D7: 403945 | E7: 426380 | F7: 365026 | G7: 444676 | H7: 515821 | I7: 435106 | J7: 362940 | K7: 488893 | L7: 499421 | M7: 513935 | N7: 5275291 | P7: 240000 | Q7: =Q$3*12-SUM($P7:P7)-SUMPRODUCT(--($B7:$M7<=Q$3),Q$3-$B7:$M7) -> 360000 | R7: =R$3*12-SUM($P7:Q7)-SUMPRODUCT(--($B7:$M7<=R$3),R$3-$B7:$M7) -> 3000000 | S7: =S$3*12-SUM($P7:R7)-SUMPRODUCT(--($B7:$M7<=S$3),S$3-$B7:$M7) -> 1645535 | T7: =T$3*12-SUM($P7:S7)-SUMPRODUCT(--($B7:$M7<=T$3),T$3-$B7:$M7) -> 29756
A8: Boise Cascade | B8: 22666 | C8: 26949 | D8: 29973 | E8: 32726 | F8: 32229 | G8: 31575 | H8: 28245 | I8: 49120 | J8: 30063 | K8: 26509 | L8: 30397 | M8: 27969 | N8: 368421 | P8: 240000 | Q8: =Q$3*12-SUM($P8:P8)-SUMPRODUCT(--($B8:$M8<=Q$3),Q$3-$B8:$M8) -> 128421 | R8: =R$3*12-SUM($P8:Q8)-SUMPRODUCT(--($B8:$M8<=R$3),R$3-$B8:$M8) -> 0 | S8: =S$3*12-SUM($P8:R8)-SUMPRODUCT(--($B8:$M8<=S$3),S$3-$B8:$M8) -> 0 | T8: =T$3*12-SUM($P8:S8)-SUMPRODUCT(--($B8:$M8<=T$3),T$3-$B8:$M8) -> 0
A9: Boise Cascade (Stimson Plant) | B9: =-B50*0.59522817476 -> 23850.79296 | C9: =-C50*0.59522817476 -> 14139.05006 | D9: 29062.01563 | E9: 28592.3806 | F9: 13078.94868 | G9: 21514.52238 | H9: 16919.36087 | I9: 10077.80823 | J9: 17790.77492 | K9: 4674.326856 | L9: 44861.15708 | M9: 25438.86173 | N9: =SUM(B9:M9) -> 250000 | P9: 196680.2696 | Q9: =Q$3*12-SUM($P9:P9)-SUMPRODUCT(--($B9:$M9<=Q$3),Q$3-$B9:$M9) -> 53319.73038 | R9: =R$3*12-SUM($P9:Q9)-SUMPRODUCT(--($B9:$M9<=R$3),R$3-$B9:$M9) -> 0 | S9: =S$3*12-SUM($P9:R9)-SUMPRODUCT(--($B9:$M9<=S$3),S$3-$B9:$M9) -> 0 | T9: =T$3*12-SUM($P9:S9)-SUMPRODUCT(--($B9:$M9<=T$3),T$3-$B9:$M9) -> 0
A10: Central Premix | B10: 45587 | C10: 36484 | D10: 31021 | E10: 34177 | F10: 38302 | G10: 38777 | H10: 29950 | I10: 21518 | J10: 20009 | K10: 18524 | L10: 20420 | M10: 31037 | N10: =SUM(B10:M10) -> 365806 | P10: 238524 | Q10: =Q$3*12-SUM($P10:P10)-SUMPRODUCT(--($B10:$M10<=Q$3),Q$3-$B10:$M10) -> 127282 | R10: =R$3*12-SUM($P10:Q10)-SUMPRODUCT(--($B10:$M10<=R$3),R$3-$B10:$M10) -> 0 | S10: =S$3*12-SUM($P10:R10)-SUMPRODUCT(--($B10:$M10<=S$3),S$3-$B10:$M10) -> 0 | T10: =T$3*12-SUM($P10:S10)-SUMPRODUCT(--($B10:$M10<=T$3),T$3-$B10:$M10) -> 0
A11: Community Colleges of Spokane - SCC | B11: 93609 | C11: 118387 | D11: 96585 | E11: 66234 | F11: 61700 | G11: 27939 | H11: 16026 | I11: 9031 | J11: 6845 | K11: 13524 | L11: 42489 | M11: 71975 | N11: =SUM(B11:M11) -> 624344 | P11: 205426 | Q11: =Q$3*12-SUM($P11:P11)-SUMPRODUCT(--($B11:$M11<=Q$3),Q$3-$B11:$M11) -> 210428 | R11: =R$3*12-SUM($P11:Q11)-SUMPRODUCT(--($B11:$M11<=R$3),R$3-$B11:$M11) -> 208490 | S11: =S$3*12-SUM($P11:R11)-SUMPRODUCT(--($B11:$M11<=S$3),S$3-$B11:$M11) -> 0 | T11: =T$3*12-SUM($P11:S11)-SUMPRODUCT(--($B11:$M11<=T$3),T$3-$B11:$M11) -> 0
A12: Community Colleges of Spokane - SFCC | B12: 58731 | C12: 61375 | D12: 52249 | E12: 46867 | F12: 33627 | G12: 17594 | H12: 18373 | I12: 6921 | J12: 4826 | K12: 7845 | L12: 20801 | M12: 46644 | N12: 375853 | P12: 195559 | Q12: =Q$3*12-SUM($P12:P12)-SUMPRODUCT(--($B12:$M12<=Q$3),Q$3-$B12:$M12) -> 157939 | R12: =R$3*12-SUM($P12:Q12)-SUMPRODUCT(--($B12:$M12<=R$3),R$3-$B12:$M12) -> 22355 | S12: =S$3*12-SUM($P12:R12)-SUMPRODUCT(--($B12:$M12<=S$3),S$3-$B12:$M12) -> 0 | T12: =T$3*12-SUM($P12:S12)-SUMPRODUCT(--($B12:$M12<=T$3),T$3-$B12:$M12) -> 0
A13: Creach Greenhouse | B13: 37928 | C13: 39980 | D13: 48209 | E13: 37091 | F13: 26597 | G13: 14315 | H13: 6479 | I13: 2232 | J13: 2681 | K13: 6879 | L13: 18750 | M13: 33357 | N13: =SUM(B13:M13) -> 274498 | P13: 171336 | Q13: =Q$3*12-SUM($P13:P13)-SUMPRODUCT(--($B13:$M13<=Q$3),Q$3-$B13:$M13) -> 103162 | R13: =R$3*12-SUM($P13:Q13)-SUMPRODUCT(--($B13:$M13<=R$3),R$3-$B13:$M13) -> 0 | S13: =S$3*12-SUM($P13:R13)-SUMPRODUCT(--($B13:$M13<=S$3),S$3-$B13:$M13) -> 0 | T13: =T$3*12-SUM($P13:S13)-SUMPRODUCT(--($B13:$M13<=T$3),T$3-$B13:$M13) -> 0
A14: Deaconess Medical Ctr | B14: 148554 | C14: 153010 | D14: 125557 | E14: 106610 | F14: 99225 | G14: 83610 | H14: 68114 | I14: 67914 | J14: 67275 | K14: 71139 | L14: 84735 | M14: 113302 | N14: 1189045 | P14: 240000 | Q14: =Q$3*12-SUM($P14:P14)-SUMPRODUCT(--($B14:$M14<=Q$3),Q$3-$B14:$M14) -> 360000 | R14: =R$3*12-SUM($P14:Q14)-SUMPRODUCT(--($B14:$M14<=R$3),R$3-$B14:$M14) -> 589045 | S14: =S$3*12-SUM($P14:R14)-SUMPRODUCT(--($B14:$M14<=S$3),S$3-$B14:$M14) -> 0 | T14: =T$3*12-SUM($P14:S14)-SUMPRODUCT(--($B14:$M14<=T$3),T$3-$B14:$M14) -> 0
A15: Eastern State Hospital | B15: 63755 | C15: 60859 | D15: 56014 | E15: 46652 | F15: 40253 | G15: 28060 | H15: 21411 | I15: 16702 | J15: 14754 | K15: 15680 | L15: 32454 | M15: 46131 | N15: 442725 | P15: 227136 | Q15: =Q$3*12-SUM($P15:P15)-SUMPRODUCT(--($B15:$M15<=Q$3),Q$3-$B15:$M15) -> 184961 | R15: =R$3*12-SUM($P15:Q15)-SUMPRODUCT(--($B15:$M15<=R$3),R$3-$B15:$M15) -> 30628 | S15: =S$3*12-SUM($P15:R15)-SUMPRODUCT(--($B15:$M15<=S$3),S$3-$B15:$M15) -> 0 | T15: =T$3*12-SUM($P15:S15)-SUMPRODUCT(--($B15:$M15<=T$3),T$3-$B15:$M15) -> 0
A16: Eastern Washington Univ | B16: 309271 | C16: 322792 | D16: 288763 | E16: 238450 | F16: 209652 | G16: 157645 | H16: 114147 | I16: 99125 | J16: 94641 | K16: 106355 | L16: 180779 | M16: 272027 | N16: 2393647 | P16: 240000 | Q16: =Q$3*12-SUM($P16:P16)-SUMPRODUCT(--($B16:$M16<=Q$3),Q$3-$B16:$M16) -> 360000 | R16: =R$3*12-SUM($P16:Q16)-SUMPRODUCT(--($B16:$M16<=R$3),R$3-$B16:$M16) -> 1761584 | S16: =S$3*12-SUM($P16:R16)-SUMPRODUCT(--($B16:$M16<=S$3),S$3-$B16:$M16) -> 32063 | T16: =T$3*12-SUM($P16:S16)-SUMPRODUCT(--($B16:$M16<=T$3),T$3-$B16:$M16) -> 0
A17: Franz Bakery | B17: 41530 | C17: 37540 | D17: 40222 | E17: 39179 | F17: 40085 | G17: 38343 | H17: 33662 | I17: 35342 | J17: 32754 | K17: 35489 | L17: 31183 | M17: 38660 | N17: =SUM(B17:M17) -> 443989 | P17: 240000 | Q17: =Q$3*12-SUM($P17:P17)-SUMPRODUCT(--($B17:$M17<=Q$3),Q$3-$B17:$M17) -> 203989 | R17: =R$3*12-SUM($P17:Q17)-SUMPRODUCT(--($B17:$M17<=R$3),R$3-$B17:$M17) -> 0 | S17: =S$3*12-SUM($P17:R17)-SUMPRODUCT(--($B17:$M17<=S$3),S$3-$B17:$M17) -> 0 | T17: =T$3*12-SUM($P17:S17)-SUMPRODUCT(--($B17:$M17<=T$3),T$3-$B17:$M17) -> 0
A18: Fairchild A.F.B. | B18: 566410 | C18: 524159 | D18: 403526 | E18: 321119 | F18: 246320 | G18: 106659 | H18: 18618 | I18: 2110 | J18: 11235 | K18: 25578 | L18: 177341 | M18: 447969 | N18: 2851044 | P18: 211963 | Q18: =Q$3*12-SUM($P18:P18)-SUMPRODUCT(--($B18:$M18<=Q$3),Q$3-$B18:$M18) -> 245578 | R18: =R$3*12-SUM($P18:Q18)-SUMPRODUCT(--($B18:$M18<=R$3),R$3-$B18:$M18) -> 1630320 | S18: =S$3*12-SUM($P18:R18)-SUMPRODUCT(--($B18:$M18<=S$3),S$3-$B18:$M18) -> 672614 | T18: =T$3*12-SUM($P18:S18)-SUMPRODUCT(--($B18:$M18<=T$3),T$3-$B18:$M18) -> 90569
A19: Gonzaga University | B19: 98682 | C19: 103316 | D19: 93944 | E19: 76399 | F19: 66229 | G19: 31886 | H19: 15525 | I19: 6931 | J19: 5817 | K19: 10005 | L19: 52724 | M19: 86232 | N19: 647690 | P19: 198278 | Q19: =Q$3*12-SUM($P19:P19)-SUMPRODUCT(--($B19:$M19<=Q$3),Q$3-$B19:$M19) -> 221886 | R19: =R$3*12-SUM($P19:Q19)-SUMPRODUCT(--($B19:$M19<=R$3),R$3-$B19:$M19) -> 227526 | S19: =S$3*12-SUM($P19:R19)-SUMPRODUCT(--($B19:$M19<=S$3),S$3-$B19:$M19) -> 0 | T19: =T$3*12-SUM($P19:S19)-SUMPRODUCT(--($B19:$M19<=T$3),T$3-$B19:$M19) -> 0
A20: Holy Family Hospital | B20: 67618 | C20: 68756 | D20: 59054 | E20: 50756 | F20: 46598 | G20: 41831 | H20: 37886 | I20: 35583 | J20: 31048 | K20: 30859 | L20: 43715 | M20: 56145 | N20: 569849 | P20: 240000 | Q20: =Q$3*12-SUM($P20:P20)-SUMPRODUCT(--($B20:$M20<=Q$3),Q$3-$B20:$M20) -> 277520 | R20: =R$3*12-SUM($P20:Q20)-SUMPRODUCT(--($B20:$M20<=R$3),R$3-$B20:$M20) -> 52329 | S20: =S$3*12-SUM($P20:R20)-SUMPRODUCT(--($B20:$M20<=S$3),S$3-$B20:$M20) -> 0 | T20: =T$3*12-SUM($P20:S20)-SUMPRODUCT(--($B20:$M20<=T$3),T$3-$B20:$M20) -> 0
A21: Huntwood Industries | B21: 71199 | C21: 75117 | D21: 63678 | E21: 69364 | F21: 58399 | G21: 42929 | H21: 37883 | I21: 31410 | J21: 34200 | K21: 30640 | L21: 45068 | M21: 64040 | N21: 623927 | P21: 240000 | Q21: =Q$3*12-SUM($P21:P21)-SUMPRODUCT(--($B21:$M21<=Q$3),Q$3-$B21:$M21) -> 282130 | R21: =R$3*12-SUM($P21:Q21)-SUMPRODUCT(--($B21:$M21<=R$3),R$3-$B21:$M21) -> 101797 | S21: =S$3*12-SUM($P21:R21)-SUMPRODUCT(--($B21:$M21<=S$3),S$3-$B21:$M21) -> 0 | T21: =T$3*12-SUM($P21:S21)-SUMPRODUCT(--($B21:$M21<=T$3),T$3-$B21:$M21) -> 0
A22: Inland Asphalt (Sullivan) | B22: 0 | C22: 13 | D22: 0 | E22: 0 | F22: 27145 | G22: 26002 | H22: 23893 | I22: 26313 | J22: 24226 | K22: 17959 | L22: 22586 | M22: 20962 | N22: 189099 | P22: 157972 | Q22: =Q$3*12-SUM($P22:P22)-SUMPRODUCT(--($B22:$M22<=Q$3),Q$3-$B22:$M22) -> 31127 | R22: =R$3*12-SUM($P22:Q22)-SUMPRODUCT(--($B22:$M22<=R$3),R$3-$B22:$M22) -> 0 | S22: =S$3*12-SUM($P22:R22)-SUMPRODUCT(--($B22:$M22<=S$3),S$3-$B22:$M22) -> 0 | T22: =T$3*12-SUM($P22:S22)-SUMPRODUCT(--($B22:$M22<=T$3),T$3-$B22:$M22) -> 0
A23: Inland Asphalt (Perry) | B23: 3 | C23: 2 | D23: 3 | E23: 1 | F23: 5362 | G23: 19075 | H23: 61296 | I23: 38553 | J23: 85256 | K23: 68219 | L23: 34547 | M23: 8296 | N23: 320613 | P23: 132742 | Q23: =Q$3*12-SUM($P23:P23)-SUMPRODUCT(--($B23:$M23<=Q$3),Q$3-$B23:$M23) -> 123100 | R23: =R$3*12-SUM($P23:Q23)-SUMPRODUCT(--($B23:$M23<=R$3),R$3-$B23:$M23) -> 64771 | S23: =S$3*12-SUM($P23:R23)-SUMPRODUCT(--($B23:$M23<=S$3),S$3-$B23:$M23) -> 0 | T23: =T$3*12-SUM($P23:S23)-SUMPRODUCT(--($B23:$M23<=T$3),T$3-$B23:$M23) -> 0
A24: Inland Empire Paper Co. | B24: 86885 | C24: 112582 | D24: 0 | E24: 0 | F24: 0 | G24: 0 | H24: 52584 | I24: 118954 | J24: 0 | K24: 0 | L24: 0 | M24: 0 | N24: 371005 | P24: 80000 | Q24: =Q$3*12-SUM($P24:P24)-SUMPRODUCT(--($B24:$M24<=Q$3),Q$3-$B24:$M24) -> 120000 | R24: =R$3*12-SUM($P24:Q24)-SUMPRODUCT(--($B24:$M24<=R$3),R$3-$B24:$M24) -> 171005 | S24: =S$3*12-SUM($P24:R24)-SUMPRODUCT(--($B24:$M24<=S$3),S$3-$B24:$M24) -> 0 | T24: =T$3*12-SUM($P24:S24)-SUMPRODUCT(--($B24:$M24<=T$3),T$3-$B24:$M24) -> 0
A25: Inland NW Dairies, LLC | B25: 34085 | C25: 33917 | D25: 30848 | E25: 33270 | F25: 31333 | G25: 27712 | H25: 23830 | I25: 23175 | J25: 23931 | K25: 24369 | L25: 30409 | M25: 33553 | N25: 350432 | P25: 240000 | Q25: =Q$3*12-SUM($P25:P25)-SUMPRODUCT(--($B25:$M25<=Q$3),Q$3-$B25:$M25) -> 110432 | R25: =R$3*12-SUM($P25:Q25)-SUMPRODUCT(--($B25:$M25<=R$3),R$3-$B25:$M25) -> 0 | S25: =S$3*12-SUM($P25:R25)-SUMPRODUCT(--($B25:$M25<=S$3),S$3-$B25:$M25) -> 0 | T25: =T$3*12-SUM($P25:S25)-SUMPRODUCT(--($B25:$M25<=T$3),T$3-$B25:$M25) -> 0
A26: Lakeland Village | B26: 67852 | C26: 76937 | D26: 73259 | E26: 59867 | F26: 54745 | G26: 40762 | H26: 31283 | I26: 28433 | J26: 27492 | K26: 25492 | L26: 41697 | M26: 40164 | N26: 567983 | P26: 240000 | Q26: =Q$3*12-SUM($P26:P26)-SUMPRODUCT(--($B26:$M26<=Q$3),Q$3-$B26:$M26) -> 245323 | R26: =R$3*12-SUM($P26:Q26)-SUMPRODUCT(--($B26:$M26<=R$3),R$3-$B26:$M26) -> 82660 | S26: =S$3*12-SUM($P26:R26)-SUMPRODUCT(--($B26:$M26<=S$3),S$3-$B26:$M26) -> 0 | T26: =T$3*12-SUM($P26:S26)-SUMPRODUCT(--($B26:$M26<=T$3),T$3-$B26:$M26) -> 0
A27: Lamb-Weston | B27: 87485 | C27: 77728 | D27: 64184 | E27: 46071 | F27: 29568 | G27: 13317 | H27: 3617 | I27: 257 | J27: 0 | K27: 127 | L27: 8947 | M27: 51045 | N27: 382346 | P27: 146265 | Q27: =Q$3*12-SUM($P27:P27)-SUMPRODUCT(--($B27:$M27<=Q$3),Q$3-$B27:$M27) -> 155639 | R27: =R$3*12-SUM($P27:Q27)-SUMPRODUCT(--($B27:$M27<=R$3),R$3-$B27:$M27) -> 80442 | S27: =S$3*12-SUM($P27:R27)-SUMPRODUCT(--($B27:$M27<=S$3),S$3-$B27:$M27) -> 0 | T27: =T$3*12-SUM($P27:S27)-SUMPRODUCT(--($B27:$M27<=T$3),T$3-$B27:$M27) -> 0
A28: Lane Mt Silica | B28: 116179 | C28: 106718 | D28: 106813 | E28: 111463 | F28: 112102 | G28: 113237 | H28: 112690 | I28: 114353 | J28: 109814 | K28: 113156 | L28: 110126 | M28: 104718 | N28: 1331369 | P28: 240000 | Q28: =Q$3*12-SUM($P28:P28)-SUMPRODUCT(--($B28:$M28<=Q$3),Q$3-$B28:$M28) -> 360000 | R28: =R$3*12-SUM($P28:Q28)-SUMPRODUCT(--($B28:$M28<=R$3),R$3-$B28:$M28) -> 731369 | S28: =S$3*12-SUM($P28:R28)-SUMPRODUCT(--($B28:$M28<=S$3),S$3-$B28:$M28) -> 0 | T28: =T$3*12-SUM($P28:S28)-SUMPRODUCT(--($B28:$M28<=T$3),T$3-$B28:$M28) -> 0
A29: Purina Mills | B29: 15287 | C29: 14695 | D29: 15765 | E29: 15967 | F29: 13926 | G29: 11398 | H29: 10435 | I29: 9014 | J29: 9950 | K29: 9609 | L29: 12316 | M29: 14235 | N29: 152597 | P29: 152597 | Q29: =Q$3*12-SUM($P29:P29)-SUMPRODUCT(--($B29:$M29<=Q$3),Q$3-$B29:$M29) -> 0 | R29: =R$3*12-SUM($P29:Q29)-SUMPRODUCT(--($B29:$M29<=R$3),R$3-$B29:$M29) -> 0 | S29: =S$3*12-SUM($P29:R29)-SUMPRODUCT(--($B29:$M29<=S$3),S$3-$B29:$M29) -> 0 | T29: =T$3*12-SUM($P29:S29)-SUMPRODUCT(--($B29:$M29<=T$3),T$3-$B29:$M29) -> 0
A30: Quarry Tile | B30: 36578 | C30: 36303 | D30: 36506 | E30: 34447 | F30: 32310 | G30: 33841 | H30: 30781 | I30: 32099 | J30: 34371 | K30: 31844 | L30: 38999 | M30: 37632 | N30: =SUM(B30:M30) -> 415711 | P30: 240000 | Q30: =Q$3*12-SUM($P30:P30)-SUMPRODUCT(--($B30:$M30<=Q$3),Q$3-$B30:$M30) -> 175711 | R30: =R$3*12-SUM($P30:Q30)-SUMPRODUCT(--($B30:$M30<=R$3),R$3-$B30:$M30) -> 0 | S30: =S$3*12-SUM($P30:R30)-SUMPRODUCT(--($B30:$M30<=S$3),S$3-$B30:$M30) -> 0 | T30: =T$3*12-SUM($P30:S30)-SUMPRODUCT(--($B30:$M30<=T$3),T$3-$B30:$M30) -> 0
A31: Sacred Heart Medical Ctr | B31: 221792 | C31: 224834 | D31: 202683 | E31: 181009 | F31: 163692 | G31: 136941 | H31: 123164 | I31: 122292 | J31: 118450 | K31: 120087 | L31: 149059 | M31: 194140 | N31: 1958143 | P31: 240000 | Q31: =Q$3*12-SUM($P31:P31)-SUMPRODUCT(--($B31:$M31<=Q$3),Q$3-$B31:$M31) -> 360000 | R31: =R$3*12-SUM($P31:Q31)-SUMPRODUCT(--($B31:$M31<=R$3),R$3-$B31:$M31) -> 1358143 | S31: =S$3*12-SUM($P31:R31)-SUMPRODUCT(--($B31:$M31<=S$3),S$3-$B31:$M31) -> 0 | T31: =T$3*12-SUM($P31:S31)-SUMPRODUCT(--($B31:$M31<=T$3),T$3-$B31:$M31) -> 0
A32: Shamrock Paving | B32: 0 | C32: 0 | D32: 1 | E32: 5 | F32: 8996 | G32: 31989 | H32: 63712 | I32: 54967 | J32: 49849 | K32: 35934 | L32: 39911 | M32: 19111 | N32: 304475 | P32: 148113 | Q32: =Q$3*12-SUM($P32:P32)-SUMPRODUCT(--($B32:$M32<=Q$3),Q$3-$B32:$M32) -> 137683 | R32: =R$3*12-SUM($P32:Q32)-SUMPRODUCT(--($B32:$M32<=R$3),R$3-$B32:$M32) -> 18679 | S32: =S$3*12-SUM($P32:R32)-SUMPRODUCT(--($B32:$M32<=S$3),S$3-$B32:$M32) -> 0 | T32: =T$3*12-SUM($P32:S32)-SUMPRODUCT(--($B32:$M32<=T$3),T$3-$B32:$M32) -> 0
A33: Spokane Rock Products | B33: 0 | C33: 39 | D33: 0 | E33: 136 | F33: 14273 | G33: 19357 | H33: 41265 | I33: 34176 | J33: 43263 | K33: 41672 | L33: 42599 | M33: 23059 | N33: 259839 | P33: 153805 | Q33: =Q$3*12-SUM($P33:P33)-SUMPRODUCT(--($B33:$M33<=Q$3),Q$3-$B33:$M33) -> 106034 | R33: =R$3*12-SUM($P33:Q33)-SUMPRODUCT(--($B33:$M33<=R$3),R$3-$B33:$M33) -> 0 | S33: =S$3*12-SUM($P33:R33)-SUMPRODUCT(--($B33:$M33<=S$3),S$3-$B33:$M33) -> 0 | T33: =T$3*12-SUM($P33:S33)-SUMPRODUCT(--($B33:$M33<=T$3),T$3-$B33:$M33) -> 0
A34: Spokane Steel | B34: 40512 | C34: 52350 | D34: 50026 | E34: 55316 | F34: 48105 | G34: 48244 | H34: 50625 | I34: 47412 | J34: 53445 | K34: 48092 | L34: 56193 | M34: 53891 | N34: 604211 | P34: 240000 | Q34: =Q$3*12-SUM($P34:P34)-SUMPRODUCT(--($B34:$M34<=Q$3),Q$3-$B34:$M34) -> 342365 | R34: =R$3*12-SUM($P34:Q34)-SUMPRODUCT(--($B34:$M34<=R$3),R$3-$B34:$M34) -> 21846 | S34: =S$3*12-SUM($P34:R34)-SUMPRODUCT(--($B34:$M34<=S$3),S$3-$B34:$M34) -> 0 | T34: =T$3*12-SUM($P34:S34)-SUMPRODUCT(--($B34:$M34<=T$3),T$3-$B34:$M34) -> 0
A35: Travis Pattern | B35: 119360 | C35: 164714 | D35: 156305 | E35: 180277 | F35: 163462 | G35: 165411 | H35: 144940 | I35: 127249 | J35: 137951 | K35: 133526 | L35: 157264 | M35: 159727 | N35: 1810186 | P35: 240000 | Q35: =Q$3*12-SUM($P35:P35)-SUMPRODUCT(--($B35:$M35<=Q$3),Q$3-$B35:$M35) -> 360000 | R35: =R$3*12-SUM($P35:Q35)-SUMPRODUCT(--($B35:$M35<=R$3),R$3-$B35:$M35) -> 1210186 | S35: =S$3*12-SUM($P35:R35)-SUMPRODUCT(--($B35:$M35<=S$3),S$3-$B35:$M35) -> 0 | T35: =T$3*12-SUM($P35:S35)-SUMPRODUCT(--($B35:$M35<=T$3),T$3-$B35:$M35) -> 0
A36: Triumph Composite | B36: 71329 | C36: 77166 | D36: 75169 | E36: 59222 | F36: 56335 | G36: 32682 | H36: 25417 | I36: 20545 | J36: 24131 | K36: 23666 | L36: 44469 | M36: 77058 | N36: 587189 | P36: 240000 | Q36: =Q$3*12-SUM($P36:P36)-SUMPRODUCT(--($B36:$M36<=Q$3),Q$3-$B36:$M36) -> 230910 | R36: =R$3*12-SUM($P36:Q36)-SUMPRODUCT(--($B36:$M36<=R$3),R$3-$B36:$M36) -> 116279 | S36: =S$3*12-SUM($P36:R36)-SUMPRODUCT(--($B36:$M36<=S$3),S$3-$B36:$M36) -> 0 | T36: =T$3*12-SUM($P36:S36)-SUMPRODUCT(--($B36:$M36<=T$3),T$3-$B36:$M36) -> 0
A37: Valley Hosp & Medical Ctr | B37: 32687 | C37: 33653 | D37: 31585 | E37: 28546 | F37: 26624 | G37: 20905 | H37: 17348 | I37: 15833 | J37: 15317 | K37: 16724 | L37: 22582 | M37: 29312 | N37: 291116 | P37: 225222 | Q37: =Q$3*12-SUM($P37:P37)-SUMPRODUCT(--($B37:$M37<=Q$3),Q$3-$B37:$M37) -> 65894 | R37: =R$3*12-SUM($P37:Q37)-SUMPRODUCT(--($B37:$M37<=R$3),R$3-$B37:$M37) -> 0 | S37: =S$3*12-SUM($P37:R37)-SUMPRODUCT(--($B37:$M37<=S$3),S$3-$B37:$M37) -> 0 | T37: =T$3*12-SUM($P37:S37)-SUMPRODUCT(--($B37:$M37<=T$3),T$3-$B37:$M37) -> 0
A38: Veterans Adm Hospital | B38: 61842 | C38: 62242 | D38: 53752 | E38: 52483 | F38: 49562 | G38: 42797 | H38: 18955 | I38: 28222 | J38: 29349 | K38: 33704 | L38: 44596 | M38: 57235 | N38: 534739 | P38: 238955 | Q38: =Q$3*12-SUM($P38:P38)-SUMPRODUCT(--($B38:$M38<=Q$3),Q$3-$B38:$M38) -> 258230 | R38: =R$3*12-SUM($P38:Q38)-SUMPRODUCT(--($B38:$M38<=R$3),R$3-$B38:$M38) -> 37554 | S38: =S$3*12-SUM($P38:R38)-SUMPRODUCT(--($B38:$M38<=S$3),S$3-$B38:$M38) -> 0 | T38: =T$3*12-SUM($P38:S38)-SUMPRODUCT(--($B38:$M38<=T$3),T$3-$B38:$M38) -> 0
A39: Western State Asphalt/Thor. | B39: 3804 | C39: 20458 | D39: 46505 | E39: 68719 | F39: 70375 | G39: 71007 | H39: 69606 | I39: 67880 | J39: 67190 | K39: 75242 | L39: 72335 | M39: 59276 | N39: 692397 | P39: 223804 | Q39: =Q$3*12-SUM($P39:P39)-SUMPRODUCT(--($B39:$M39<=Q$3),Q$3-$B39:$M39) -> 296963 | R39: =R$3*12-SUM($P39:Q39)-SUMPRODUCT(--($B39:$M39<=R$3),R$3-$B39:$M39) -> 171630 | S39: =S$3*12-SUM($P39:R39)-SUMPRODUCT(--($B39:$M39<=S$3),S$3-$B39:$M39) -> 0 | T39: =T$3*12-SUM($P39:S39)-SUMPRODUCT(--($B39:$M39<=T$3),T$3-$B39:$M39) -> 0
A40: Western State Asphalt/Euclid | B40: 673 | C40: 753 | D40: 595 | E40: 453 | F40: 20468 | G40: 13187 | H40: 17403 | I40: 19827 | J40: 25027 | K40: 14828 | L40: 11517 | M40: 2367 | N40: 127098 | P40: 121603 | Q40: =Q$3*12-SUM($P40:P40)-SUMPRODUCT(--($B40:$M40<=Q$3),Q$3-$B40:$M40) -> 5495 | R40: =R$3*12-SUM($P40:Q40)-SUMPRODUCT(--($B40:$M40<=R$3),R$3-$B40:$M40) -> 0 | S40: =S$3*12-SUM($P40:R40)-SUMPRODUCT(--($B40:$M40<=S$3),S$3-$B40:$M40) -> 0 | T40: =T$3*12-SUM($P40:S40)-SUMPRODUCT(--($B40:$M40<=T$3),T$3-$B40:$M40) -> 0
A41: Whitworth University | B41: 62473 | C41: 65726 | D41: 59712 | E41: 49044 | F41: 44660 | G41: 28046 | H41: 16366 | I41: 13476 | J41: 11867 | K41: 18008 | L41: 37440 | M41: 53924 | N41: 460742 | P41: 219717 | Q41: =Q$3*12-SUM($P41:P41)-SUMPRODUCT(--($B41:$M41<=Q$3),Q$3-$B41:$M41) -> 199190 | R41: =R$3*12-SUM($P41:Q41)-SUMPRODUCT(--($B41:$M41<=R$3),R$3-$B41:$M41) -> 41835 | S41: =S$3*12-SUM($P41:R41)-SUMPRODUCT(--($B41:$M41<=S$3),S$3-$B41:$M41) -> 0 | T41: =T$3*12-SUM($P41:S41)-SUMPRODUCT(--($B41:$M41<=T$3),T$3-$B41:$M41) -> 0
A43: Total WA Sch 146 | B43: =SUM(B5:B42) -> 3224101.793 | C43: 3349456.05 | D43: 2932197.016 | E43: 2706883.381 | F43: 2404679.949 | G43: 2072385.522 | H43: =SUM(H5:H42) -> 1985264.361 | I43: 1820203.808 | J43: 1696644.775 | K43: 1833245.327 | L43: 2400476.157 | M43: 3023110.862 | N43: =IF(ROUND(SUM(N5:N42),3)<>ROUND(SUM(B43:M43),3),#VALUE!,SUM(B43:M43)) -> 29448649 | P43: =SUM(P5:P42) -> 7725697.27 | Q43: =SUM(Q5:Q42) -> 7336427.73 | R43: =SUM(R5:R42) -> 11915987 | S43: =SUM(S5:S42) -> 2350212 | T43: =SUM(T5:T42) -> 120325
T44: =SUM(P43:T43) -> 29448649
A45: Revenue Runs | B45: 3009873 | C45: 3105466 | D45: 2726398 | E45: 2539600 | F45: 2245852 | G45: 1969299 | H45: 1897928 | I45: 1743664 | J45: 1629947 | K45: 1747722 | L45: 2297511 | M45: 2884181 | N45: =SUM(B45:M45) -> 27797441 | P45: 500 | Q45: 1000 | R45: 10000 | S45: 25000 | T45: 99999999 | U45: Schedule 121/122
N46: 0 | P46: 200 | Q46: 1000 | R46: 99999999 | S46: =S$57*12-SUM($P46:R46)-SUMPRODUCT(--($B46:$M46<=S$57),S$57-$B46:$M46) -> -100001199 | T46: =T$57*12-SUM($P46:S46)-SUMPRODUCT(--($B46:$M46<=T$57),T$57-$B46:$M46) -> 0 | U46: Schedule 111/112
A47: Franz Bakery (from 122) | B47: =B17 -> 41530 | C47: =C17 -> 37540 | D47: 40222 | E47: 39179 | F47: 40085 | G47: 38343 | H47: 33662 | I47: 35342 | J47: 32754 | K47: 35489 | L47: 31183 | N47: 405329 | P47: =P$57*12-SUMPRODUCT(--($B47:$M47<=P$57),P$57-$B47:$M47) -> 5500 | Q47: =Q$57*12-SUM($P47:P47)-SUMPRODUCT(--($B47:$M47<=Q$57),Q$57-$B47:$M47) -> 5500 | R47: =R$57*12-SUM($P47:Q47)-SUMPRODUCT(--($B47:$M47<=R$57),R$57-$B47:$M47) -> 99000 | S47: =S$57*12-SUM($P47:R47)-SUMPRODUCT(--($B47:$M47<=S$57),S$57-$B47:$M47) -> 165000 | T47: =T$57*12-SUM($P47:S47)-SUMPRODUCT(--($B47:$M47<=T$57),T$57-$B47:$M47) -> 130329
A48: Quarry Tile (switched Feb 2012) (from 122) | B48: =B30 -> 36578 | C48: =C30 -> 36303 | D48: 36506 | E48: 34447 | F48: 32310 | G48: 33841 | H48: 30781 | I48: 32099 | J48: 34371 | K48: 31844 | L48: 38999 | M48: 37632 | N48: 415711 | P48: =P$57*12-SUMPRODUCT(--($B48:$M48<=P$57),P$57-$B48:$M48) -> 6000 | Q48: =Q$57*12-SUM($P48:P48)-SUMPRODUCT(--($B48:$M48<=Q$57),Q$57-$B48:$M48) -> 6000 | R48: =R$57*12-SUM($P48:Q48)-SUMPRODUCT(--($B48:$M48<=R$57),R$57-$B48:$M48) -> 108000 | S48: =S$57*12-SUM($P48:R48)-SUMPRODUCT(--($B48:$M48<=S$57),S$57-$B48:$M48) -> 180000 | T48: =T$57*12-SUM($P48:S48)-SUMPRODUCT(--($B48:$M48<=T$57),T$57-$B48:$M48) -> 115711
A49: Boise Cascade | B49: =B9 -> 23850.79296 | C49: =C9 -> 14139.05006 | D49: 29062.01563 | E49: 28592.3806 | F49: 13078.94868 | G49: 21514.52238 | H49: 16919.36087 | I49: 10077.80823 | J49: 17790.77492 | K49: 4674.326856 | L49: 44861.15708 | M49: 25438.86173 | N49: 250000
A50: Stimson | B50: -40070 | C50: -23754 | D50: -48825 | E50: -48036 | F50: -21973 | G50: -36145 | H50: -28425 | I50: -16931 | J50: -29889 | K50: -7853 | L50: -75368 | M50: -42738 | N50: -420007 | P50: =P$57*12-SUMPRODUCT(--($B50:$M50<=P$57),P$57-$B50:$M50) -> -420007 | Q50: =Q$57*12-SUM($P50:P50)-SUMPRODUCT(--($B50:$M50<=Q$57),Q$57-$B50:$M50) -> 0 | R50: =R$57*12-SUM($P50:Q50)-SUMPRODUCT(--($B50:$M50<=R$57),R$57-$B50:$M50) -> 0
A51: SCC (from 112) | B51: =B11 -> 93609 | C51: =C11 -> 118387 | D51: 96585 | E51: 66234 | F51: 61700 | G51: 27939 | H51: 16026 | I51: 9031 | J51: 6845 | K51: 13524 | L51: 42489 | M51: 71975 | N51: =SUM(B51:M51) -> 624344 | P51: =P$46*12-SUMPRODUCT(--($B51:$M51<=P$45),P$45-$B51:$M51) -> 2400 | Q51: =Q$46*12-SUM($P51:P51)-SUMPRODUCT(--($B51:$M51<=Q$46),Q$46-$B51:$M51) -> 9600 | R51: =R$46*12-SUM($P51:Q51)-SUMPRODUCT(--($B51:$M51<=R$46),R$46-$B51:$M51) -> 612344
A52: SFCC (from 112) | B52: =B12 -> 58731 | C52: =C12 -> 61375 | D52: 52249 | E52: 46867 | F52: 33627 | G52: 17594 | H52: 18373 | I52: 6921 | J52: 4826 | K52: 7845 | L52: 20801 | M52: 46644 | N52: =SUM(B52:M52) -> 375853 | P52: =P$46*12-SUMPRODUCT(--($B52:$M52<=P$46),P$46-$B52:$M52) -> 2400 | Q52: =Q$46*12-SUM($P52:P52)-SUMPRODUCT(--($B52:$M52<=Q$46),Q$46-$B52:$M52) -> 9600 | R52: =R$46*12-SUM($P52:Q52)-SUMPRODUCT(--($B52:$M52<=R$46),R$46-$B52:$M52) -> 363853
A53: Adjustments | M53: -22 | N53: -22
A54: Total Sch 146 | B54: =SUM(B45:B53) -> 3224101.793 | C54: =SUM(C45:C53) -> 3349456.05 | D54: =SUM(D45:D53) -> 2932197.016 | E54: 2706883.381 | F54: 2404679.949 | G54: 2072385.522 | H54: 1985264.361 | I54: 1820203.808 | J54: 1696644.775 | K54: 1833245.327 | L54: 2400476.157 | M54: 3023110.862 | N54: =SUM(N45:N53) -> 29448649 | P54: =SUM(P47:P50) -> -408507 | Q54: =SUM(Q47:Q50) -> 11500 | R54: =SUM(R47:R50) -> 207000 | S54: 345000 | T54: 246040 | U54: =SUM(P54:T54) -> 401033
B55: =B43-B54 -> 0 | C55: 0 | D55: =D43-D54 -> 0 | E55: 0 | F55: 0 | G55: 0 | H55: 0 | I55: 0 | J55: 0 | K55: 0 | L55: 0 | M55: 0 | N55: 0 | P55: =SUM(P51:P52) -> 4800 | Q55: =SUM(Q51:Q52) -> 19200 | R55: 976197
P56: 1st | Q56: =P57 -> 500 | R56: =Q57 -> 1000 | S56: =R57 -> 10000 | T56: =S57 -> 25000
A57: ANNUAL USAGE, Sch 121/122 | P57: 500 | Q57: 1000 | R57: 10000 | S57: 25000 | T57: 99999999
A58: Washington | B58: =B4 -> 2011-01-01 | C58: =C4 -> 2011-02-01 | D58: 2011-03-01 | E58: 2011-04-01 | F58: 2011-05-01 | G58: 2011-06-01 | H58: 2011-07-01 | I58: 2011-08-01 | J58: 2011-09-01 | K58: 2011-10-01 | L58: 2011-11-01 | M58: 2011-12-01 | N58: Total | P58: thms/mo | Q58: thms/mo | R58: thms/mo | S58: thms/mo | T58: thms/mo
A59: Gonzaga University | N59: =SUM(B59:M59) -> 0 | P59: =P$57*12-SUMPRODUCT(--($B59:$M59<=P$57),P$57-$B59:$M59) -> 0 | Q59: =Q$57*12-SUM($P59:P59)-SUMPRODUCT(--($B59:$M59<=Q$57),Q$57-$B59:$M59) -> 0 | R59: =R$57*12-SUM($P59:Q59)-SUMPRODUCT(--($B59:$M59<=R$57),R$57-$B59:$M59) -> 0 | S59: =S$57*12-SUM($P59:R59)-SUMPRODUCT(--($B59:$M59<=S$57),S$57-$B59:$M59) -> 0 | T59: =T$57*12-SUM($P59:S59)-SUMPRODUCT(--($B59:$M59<=T$57),T$57-$B59:$M59) -> 0
A60: Airway Heights Correction Center (122) | B60: 55681 | C60: 53675 | D60: 61973 | E60: 43985 | F60: 42935 | G60: 30879 | H60: 23228 | I60: 20001 | J60: 17947 | K60: 22142 | L60: 30487 | M60: 53221 | N60: 456154 | P60: 6000 | Q60: =Q$57*12-SUM($P60:P60)-SUMPRODUCT(--($B60:$M60<=Q$57),Q$57-$B60:$M60) -> 6000 | R60: =R$57*12-SUM($P60:Q60)-SUMPRODUCT(--($B60:$M60<=R$57),R$57-$B60:$M60) -> 108000 | S60: =S$57*12-SUM($P60:R60)-SUMPRODUCT(--($B60:$M60<=S$57),S$57-$B60:$M60) -> 163318 | T60: =T$57*12-SUM($P60:S60)-SUMPRODUCT(--($B60:$M60<=T$57),T$57-$B60:$M60) -> 172836
A61: Camelback Hotel Corp | B61: =12214 -> 12214 | C61: 8593 | D61: 9599 | E61: 7903 | F61: 7997 | G61: 7650 | H61: 6125 | I61: 6714 | J61: 5140 | K61: 6477 | L61: 6082 | M61: 8300 | N61: =SUM(B61:M61) -> 92794 | P61: 6000 | Q61: =Q$57*12-SUM($P61:P61)-SUMPRODUCT(--($B61:$M61<=Q$57),Q$57-$B61:$M61) -> 6000 | R61: =R$57*12-SUM($P61:Q61)-SUMPRODUCT(--($B61:$M61<=R$57),R$57-$B61:$M61) -> 78580 | S61: =S$57*12-SUM($P61:R61)-SUMPRODUCT(--($B61:$M61<=S$57),S$57-$B61:$M61) -> 2214 | T61: =T$57*12-SUM($P61:S61)-SUMPRODUCT(--($B61:$M61<=T$57),T$57-$B61:$M61) -> 0
A62: Coyote Ridge Correction | B62: 91536 | C62: 80268 | D62: 83371 | E62: 64934 | F62: 53104 | G62: 49198 | H62: 39094 | I62: 39279 | J62: 40021 | K62: 43408 | L62: =70143 -> 70143 | M62: =101055 -> 101055 | N62: =SUM(B62:M62) -> 755411 | P62: 6000 | Q62: =Q$57*12-SUM($P62:P62)-SUMPRODUCT(--($B62:$M62<=Q$57),Q$57-$B62:$M62) -> 6000 | R62: =R$57*12-SUM($P62:Q62)-SUMPRODUCT(--($B62:$M62<=R$57),R$57-$B62:$M62) -> 108000 | S62: =S$57*12-SUM($P62:R62)-SUMPRODUCT(--($B62:$M62<=S$57),S$57-$B62:$M62) -> 180000 | T62: =T$57*12-SUM($P62:S62)-SUMPRODUCT(--($B62:$M62<=T$57),T$57-$B62:$M62) -> 455411
A63: Double Tree Hotel | B63: 18389 | C63: 16303 | D63: 17628 | E63: 14628 | F63: 21728 | G63: =12123+14248-21728 -> 4643 | H63: 10717 | I63: 8376 | J63: 10163 | K63: 10838 | L63: 16575 | M63: 20312 | N63: 170300 | P63: 6000 | Q63: =Q$57*12-SUM($P63:P63)-SUMPRODUCT(--($B63:$M63<=Q$57),Q$57-$B63:$M63) -> 6000 | R63: =R$57*12-SUM($P63:Q63)-SUMPRODUCT(--($B63:$M63<=R$57),R$57-$B63:$M63) -> 101019 | S63: =S$57*12-SUM($P63:R63)-SUMPRODUCT(--($B63:$M63<=S$57),S$57-$B63:$M63) -> 57281 | T63: =T$57*12-SUM($P63:S63)-SUMPRODUCT(--($B63:$M63<=T$57),T$57-$B63:$M63) -> 0
A64: Ecolite | B64: 13153 | C64: 13011 | D64: 13656 | E64: 11658 | F64: 14437 | G64: 12353 | H64: 11100 | I64: 12853 | J64: 12302 | K64: 12489 | L64: 12984 | M64: 13197 | N64: 153193 | P64: 6000 | Q64: =Q$57*12-SUM($P64:P64)-SUMPRODUCT(--($B64:$M64<=Q$57),Q$57-$B64:$M64) -> 6000 | R64: =R$57*12-SUM($P64:Q64)-SUMPRODUCT(--($B64:$M64<=R$57),R$57-$B64:$M64) -> 108000 | S64: =S$57*12-SUM($P64:R64)-SUMPRODUCT(--($B64:$M64<=S$57),S$57-$B64:$M64) -> 33193 | T64: =T$57*12-SUM($P64:S64)-SUMPRODUCT(--($B64:$M64<=T$57),T$57-$B64:$M64) -> 0
A65: Good Samaritan Village | B65: 10853 | C65: 9992 | D65: 9877 | E65: 8520 | F65: 8642 | G65: 6456 | H65: 4473 | I65: 4124 | J65: 4095 | K65: 5342 | L65: 9193 | M65: 10440 | N65: 92007 | P65: 6000 | Q65: =Q$57*12-SUM($P65:P65)-SUMPRODUCT(--($B65:$M65<=Q$57),Q$57-$B65:$M65) -> 6000 | R65: =R$57*12-SUM($P65:Q65)-SUMPRODUCT(--($B65:$M65<=R$57),R$57-$B65:$M65) -> 78714 | S65: =S$57*12-SUM($P65:R65)-SUMPRODUCT(--($B65:$M65<=S$57),S$57-$B65:$M65) -> 1293 | T65: =T$57*12-SUM($P65:S65)-SUMPRODUCT(--($B65:$M65<=T$57),T$57-$B65:$M65) -> 0
A66: Greenacres Gypsum & Lime Co | B66: 10387 | C66: 12196 | D66: 16540 | E66: 22530 | F66: 16641 | G66: 17115 | H66: 15623 | I66: 11485 | J66: 13413 | K66: =11428-3267 -> 8161 | L66: 12195 | M66: 9990 | N66: 166276 | P66: 6000 | Q66: =Q$57*12-SUM($P66:P66)-SUMPRODUCT(--($B66:$M66<=Q$57),Q$57-$B66:$M66) -> 6000 | R66: =R$57*12-SUM($P66:Q66)-SUMPRODUCT(--($B66:$M66<=R$57),R$57-$B66:$M66) -> 106151 | S66: =S$57*12-SUM($P66:R66)-SUMPRODUCT(--($B66:$M66<=S$57),S$57-$B66:$M66) -> 48125 | T66: =T$57*12-SUM($P66:S66)-SUMPRODUCT(--($B66:$M66<=T$57),T$57-$B66:$M66) -> 0
A67: Hollister-Stier Laboratories | B67: 51692 | C67: 43340 | D67: 51520 | E67: 40466 | F67: 41364 | G67: 41763 | H67: 35757 | I67: 35570 | J67: 34318 | K67: 41552 | L67: 37020 | M67: 52162 | N67: 506524 | P67: 6000 | Q67: =Q$57*12-SUM($P67:P67)-SUMPRODUCT(--($B67:$M67<=Q$57),Q$57-$B67:$M67) -> 6000 | R67: =R$57*12-SUM($P67:Q67)-SUMPRODUCT(--($B67:$M67<=R$57),R$57-$B67:$M67) -> 108000 | S67: =S$57*12-SUM($P67:R67)-SUMPRODUCT(--($B67:$M67<=S$57),S$57-$B67:$M67) -> 180000 | T67: =T$57*12-SUM($P67:S67)-SUMPRODUCT(--($B67:$M67<=T$57),T$57-$B67:$M67) -> 206524
A68: Johanna Beverage Co | B68: 18539 | C68: 17136 | D68: 16987 | E68: 15514 | F68: 17535 | G68: 14110 | H68: 9473 | I68: 9659 | J68: 10648 | K68: 12758 | L68: 14691 | M68: 18419 | N68: 175469 | P68: 6000 | Q68: =Q$57*12-SUM($P68:P68)-SUMPRODUCT(--($B68:$M68<=Q$57),Q$57-$B68:$M68) -> 6000 | R68: =R$57*12-SUM($P68:Q68)-SUMPRODUCT(--($B68:$M68<=R$57),R$57-$B68:$M68) -> 107132 | S68: =S$57*12-SUM($P68:R68)-SUMPRODUCT(--($B68:$M68<=S$57),S$57-$B68:$M68) -> 56337 | T68: =T$57*12-SUM($P68:S68)-SUMPRODUCT(--($B68:$M68<=T$57),T$57-$B68:$M68) -> 0
A69: Mirabeau Park Hotel | B69: 16294 | C69: 13863 | D69: 14545 | E69: 12890 | F69: 10743 | G69: 9144 | H69: 7621 | I69: 8377 | J69: 6825 | K69: 7809 | L69: 11634 | M69: 13990 | N69: 133735 | P69: 6000 | Q69: =Q$57*12-SUM($P69:P69)-SUMPRODUCT(--($B69:$M69<=Q$57),Q$57-$B69:$M69) -> 6000 | R69: =R$57*12-SUM($P69:Q69)-SUMPRODUCT(--($B69:$M69<=R$57),R$57-$B69:$M69) -> 97776 | S69: =S$57*12-SUM($P69:R69)-SUMPRODUCT(--($B69:$M69<=S$57),S$57-$B69:$M69) -> 23959 | T69: =T$57*12-SUM($P69:S69)-SUMPRODUCT(--($B69:$M69<=T$57),T$57-$B69:$M69) -> 0
A70: Mount Carmel Hospital | B70: 17465 | C70: 16960 | D70: 15190 | E70: 12812 | F70: 11259 | G70: 8584 | H70: 7131 | I70: 7189 | J70: 6350 | K70: 7286 | L70: 10599 | M70: 15709 | N70: 136534 | P70: 6000 | Q70: =Q$57*12-SUM($P70:P70)-SUMPRODUCT(--($B70:$M70<=Q$57),Q$57-$B70:$M70) -> 6000 | R70: =R$57*12-SUM($P70:Q70)-SUMPRODUCT(--($B70:$M70<=R$57),R$57-$B70:$M70) -> 94540 | S70: =S$57*12-SUM($P70:R70)-SUMPRODUCT(--($B70:$M70<=S$57),S$57-$B70:$M70) -> 29994 | T70: =T$57*12-SUM($P70:S70)-SUMPRODUCT(--($B70:$M70<=T$57),T$57-$B70:$M70) -> 0
A71: Northern Quest Casino | B71: 53756 | C71: 50484 | D71: 59212 | E71: 38684 | F71: 35651 | G71: 23835 | H71: 17930 | I71: 12656 | J71: 11083 | K71: 14921 | L71: 23636 | M71: 51038 | N71: 392886 | P71: 6000 | Q71: =Q$57*12-SUM($P71:P71)-SUMPRODUCT(--($B71:$M71<=Q$57),Q$57-$B71:$M71) -> 6000 | R71: =R$57*12-SUM($P71:Q71)-SUMPRODUCT(--($B71:$M71<=R$57),R$57-$B71:$M71) -> 108000 | S71: =S$57*12-SUM($P71:R71)-SUMPRODUCT(--($B71:$M71<=S$57),S$57-$B71:$M71) -> 134061 | T71: =T$57*12-SUM($P71:S71)-SUMPRODUCT(--($B71:$M71<=T$57),T$57-$B71:$M71) -> 138825
A72: Northern Quest Casino | B72: 23139 | C72: 22067 | D72: 23246 | E72: 16517 | F72: 15626 | G72: 11752 | H72: 10158 | I72: 8044 | J72: 7163 | K72: 9070 | L72: 11469 | M72: 21254 | N72: 179505 | P72: 6000 | Q72: =Q$57*12-SUM($P72:P72)-SUMPRODUCT(--($B72:$M72<=Q$57),Q$57-$B72:$M72) -> 6000 | R72: =R$57*12-SUM($P72:Q72)-SUMPRODUCT(--($B72:$M72<=R$57),R$57-$B72:$M72) -> 102277 | S72: =S$57*12-SUM($P72:R72)-SUMPRODUCT(--($B72:$M72<=S$57),S$57-$B72:$M72) -> 65228 | T72: =T$57*12-SUM($P72:S72)-SUMPRODUCT(--($B72:$M72<=T$57),T$57-$B72:$M72) -> 0
A73: Pizza Crust Inc | B73: 8072 | C73: 9647 | D73: 8855 | E73: 9632 | F73: 8520 | G73: 8427 | H73: 6833 | I73: 6589 | J73: 7598 | K73: 8955 | L73: 8487 | M73: 9001 | N73: 100616 | P73: 6000 | Q73: =Q$57*12-SUM($P73:P73)-SUMPRODUCT(--($B73:$M73<=Q$57),Q$57-$B73:$M73) -> 6000 | R73: =R$57*12-SUM($P73:Q73)-SUMPRODUCT(--($B73:$M73<=R$57),R$57-$B73:$M73) -> 88616 | S73: =S$57*12-SUM($P73:R73)-SUMPRODUCT(--($B73:$M73<=S$57),S$57-$B73:$M73) -> 0 | T73: =T$57*12-SUM($P73:S73)-SUMPRODUCT(--($B73:$M73<=T$57),T$57-$B73:$M73) -> 0
A74: Pullman Regional Hospital | B74: 16510 | C74: 14976 | D74: 17359 | E74: 12826 | F74: 13286 | G74: 9100 | H74: 7169 | I74: 5736 | J74: 6963 | K74: 7821 | L74: 10810 | M74: 14092 | N74: 136648 | P74: 6000 | Q74: =Q$57*12-SUM($P74:P74)-SUMPRODUCT(--($B74:$M74<=Q$57),Q$57-$B74:$M74) -> 6000 | R74: =R$57*12-SUM($P74:Q74)-SUMPRODUCT(--($B74:$M74<=R$57),R$57-$B74:$M74) -> 94789 | S74: =S$57*12-SUM($P74:R74)-SUMPRODUCT(--($B74:$M74<=S$57),S$57-$B74:$M74) -> 29859 | T74: =T$57*12-SUM($P74:S74)-SUMPRODUCT(--($B74:$M74<=T$57),T$57-$B74:$M74) -> 0
A75: Red Lion Hotel at the Park | B75: 18657 | C75: 15233 | D75: 16344 | E75: 12319 | F75: 12877 | G75: 14687 | H75: 11410 | I75: 10545 | J75: 13020 | K75: 10764 | L75: 14144 | M75: 17686 | N75: 167686 | P75: 6000 | Q75: =Q$57*12-SUM($P75:P75)-SUMPRODUCT(--($B75:$M75<=Q$57),Q$57-$B75:$M75) -> 6000 | R75: =R$57*12-SUM($P75:Q75)-SUMPRODUCT(--($B75:$M75<=R$57),R$57-$B75:$M75) -> 108000 | S75: =S$57*12-SUM($P75:R75)-SUMPRODUCT(--($B75:$M75<=S$57),S$57-$B75:$M75) -> 47686 | T75: =T$57*12-SUM($P75:S75)-SUMPRODUCT(--($B75:$M75<=T$57),T$57-$B75:$M75) -> 0
A76: Sacred Heart Medical Center | B76: 20758 | C76: 19543 | D76: 19865 | E76: 20514 | F76: 22469 | G76: 21240 | H76: 20202 | I76: 20347 | J76: 23956 | K76: 21587 | L76: 20694 | M76: 22198 | N76: 253373 | P76: 6000 | Q76: =Q$57*12-SUM($P76:P76)-SUMPRODUCT(--($B76:$M76<=Q$57),Q$57-$B76:$M76) -> 6000 | R76: =R$57*12-SUM($P76:Q76)-SUMPRODUCT(--($B76:$M76<=R$57),R$57-$B76:$M76) -> 108000 | S76: =S$57*12-SUM($P76:R76)-SUMPRODUCT(--($B76:$M76<=S$57),S$57-$B76:$M76) -> 133373 | T76: =T$57*12-SUM($P76:S76)-SUMPRODUCT(--($B76:$M76<=T$57),T$57-$B76:$M76) -> 0
A77: Saint Lukes Rehab Institute (122) | B77: 27959 | C77: 23019 | D77: 25050 | E77: 19191 | F77: 17882 | G77: 14351 | H77: 12533 | I77: 12302 | J77: 12253 | K77: 16823 | L77: 20821 | M77: 25448 | N77: 227632 | P77: 6000 | Q77: =Q$57*12-SUM($P77:P77)-SUMPRODUCT(--($B77:$M77<=Q$57),Q$57-$B77:$M77) -> 6000 | R77: =R$57*12-SUM($P77:Q77)-SUMPRODUCT(--($B77:$M77<=R$57),R$57-$B77:$M77) -> 108000 | S77: =S$57*12-SUM($P77:R77)-SUMPRODUCT(--($B77:$M77<=S$57),S$57-$B77:$M77) -> 104175 | T77: =T$57*12-SUM($P77:S77)-SUMPRODUCT(--($B77:$M77<=T$57),T$57-$B77:$M77) -> 3457
A78: Shriners Hospital | B78: 18149 | C78: 16923 | D78: 15278 | E78: 14720 | F78: 13772 | G78: 13859 | H78: 11759 | I78: 11695 | J78: 6625 | K78: 14751 | L78: 12486 | M78: 17023 | N78: 167040 | P78: 6000 | Q78: =Q$57*12-SUM($P78:P78)-SUMPRODUCT(--($B78:$M78<=Q$57),Q$57-$B78:$M78) -> 6000 | R78: =R$57*12-SUM($P78:Q78)-SUMPRODUCT(--($B78:$M78<=R$57),R$57-$B78:$M78) -> 104625 | S78: =S$57*12-SUM($P78:R78)-SUMPRODUCT(--($B78:$M78<=S$57),S$57-$B78:$M78) -> 50415 | T78: =T$57*12-SUM($P78:S78)-SUMPRODUCT(--($B78:$M78<=T$57),T$57-$B78:$M78) -> 0
A79: Skamania Lodge | B79: 16317 | C79: 14372 | D79: 13908 | E79: 13453 | F79: 14332 | G79: 12736 | H79: 10156 | I79: 11873 | J79: 13536 | K79: 11511 | L79: 14478 | M79: 13460 | N79: 160132 | P79: 6000 | Q79: =Q$57*12-SUM($P79:P79)-SUMPRODUCT(--($B79:$M79<=Q$57),Q$57-$B79:$M79) -> 6000 | R79: =R$57*12-SUM($P79:Q79)-SUMPRODUCT(--($B79:$M79<=R$57),R$57-$B79:$M79) -> 108000 | S79: =S$57*12-SUM($P79:R79)-SUMPRODUCT(--($B79:$M79<=S$57),S$57-$B79:$M79) -> 40132 | T79: =T$57*12-SUM($P79:S79)-SUMPRODUCT(--($B79:$M79<=T$57),T$57-$B79:$M79) -> 0
A80: Spokane Club | B80: 17986 | C80: 15195 | D80: 15362 | E80: 13799 | F80: 13429 | G80: 12868 | H80: 11065 | I80: 11477 | J80: 10314 | K80: 11048 | L80: 17355 | M80: 19076 | N80: 168974 | P80: 6000 | Q80: =Q$57*12-SUM($P80:P80)-SUMPRODUCT(--($B80:$M80<=Q$57),Q$57-$B80:$M80) -> 6000 | R80: =R$57*12-SUM($P80:Q80)-SUMPRODUCT(--($B80:$M80<=R$57),R$57-$B80:$M80) -> 108000 | S80: =S$57*12-SUM($P80:R80)-SUMPRODUCT(--($B80:$M80<=S$57),S$57-$B80:$M80) -> 48974 | T80: =T$57*12-SUM($P80:S80)-SUMPRODUCT(--($B80:$M80<=T$57),T$57-$B80:$M80) -> 0
A81: Spokane County Courthouse (122) | B81: 63384 | C81: 66044 | D81: 71267 | E81: 64933 | F81: 58894 | G81: 48886 | H81: 41156 | I81: 35406 | J81: 35858 | K81: 40916 | L81: 58692 | M81: 72981 | N81: 658417 | P81: 6000 | Q81: =Q$57*12-SUM($P81:P81)-SUMPRODUCT(--($B81:$M81<=Q$57),Q$57-$B81:$M81) -> 6000 | R81: =R$57*12-SUM($P81:Q81)-SUMPRODUCT(--($B81:$M81<=R$57),R$57-$B81:$M81) -> 108000 | S81: =S$57*12-SUM($P81:R81)-SUMPRODUCT(--($B81:$M81<=S$57),S$57-$B81:$M81) -> 180000 | T81: =T$57*12-SUM($P81:S81)-SUMPRODUCT(--($B81:$M81<=T$57),T$57-$B81:$M81) -> 358417
A82: Spokane Galvanizing Inc | B82: 9129 | C82: 10191 | D82: 10975 | E82: 9161 | F82: 9015 | G82: 9079 | H82: 7748 | I82: 7564 | J82: 6037 | K82: 8050 | L82: 7631 | M82: 11220 | N82: 105800 | P82: 6000 | Q82: =Q$57*12-SUM($P82:P82)-SUMPRODUCT(--($B82:$M82<=Q$57),Q$57-$B82:$M82) -> 6000 | R82: =R$57*12-SUM($P82:Q82)-SUMPRODUCT(--($B82:$M82<=R$57),R$57-$B82:$M82) -> 91414 | S82: =S$57*12-SUM($P82:R82)-SUMPRODUCT(--($B82:$M82<=S$57),S$57-$B82:$M82) -> 2386 | T82: =T$57*12-SUM($P82:S82)-SUMPRODUCT(--($B82:$M82<=T$57),T$57-$B82:$M82) -> 0
A83: Tri State Memorial Hospital | B83: 15065 | C83: 12891 | D83: 11971 | E83: 9880 | F83: 10246 | G83: 9402 | H83: 7092 | I83: 7443 | J83: 6421 | K83: 8832 | L83: 11593 | M83: 12337 | N83: 123173 | P83: 6000 | Q83: =Q$57*12-SUM($P83:P83)-SUMPRODUCT(--($B83:$M83<=Q$57),Q$57-$B83:$M83) -> 6000 | R83: =R$57*12-SUM($P83:Q83)-SUMPRODUCT(--($B83:$M83<=R$57),R$57-$B83:$M83) -> 97070 | S83: =S$57*12-SUM($P83:R83)-SUMPRODUCT(--($B83:$M83<=S$57),S$57-$B83:$M83) -> 14103 | T83: =T$57*12-SUM($P83:S83)-SUMPRODUCT(--($B83:$M83<=T$57),T$57-$B83:$M83) -> 0
A84: Wagstaff Inc | B84: 18493 | C84: 16228 | D84: 21617 | E84: 21243 | F84: 17649 | G84: 21575 | H84: 13296 | I84: 17997 | J84: 21539 | K84: 16646 | L84: 19620 | M84: 11132 | N84: 217035 | P84: 6000 | Q84: =Q$57*12-SUM($P84:P84)-SUMPRODUCT(--($B84:$M84<=Q$57),Q$57-$B84:$M84) -> 6000 | R84: =R$57*12-SUM($P84:Q84)-SUMPRODUCT(--($B84:$M84<=R$57),R$57-$B84:$M84) -> 108000 | S84: =S$57*12-SUM($P84:R84)-SUMPRODUCT(--($B84:$M84<=S$57),S$57-$B84:$M84) -> 97035 | T84: =T$57*12-SUM($P84:S84)-SUMPRODUCT(--($B84:$M84<=T$57),T$57-$B84:$M84) -> 0
A85: WSU Housing | B85: 29549 | C85: 35392 | D85: 28195 | E85: 29654 | F85: 25409 | G85: 16044 | H85: 12349 | I85: 7833 | J85: 6049 | K85: 8288 | L85: 14262 | M85: 26525 | N85: 239549 | P85: 6000 | Q85: =Q$57*12-SUM($P85:P85)-SUMPRODUCT(--($B85:$M85<=Q$57),Q$57-$B85:$M85) -> 6000 | R85: =R$57*12-SUM($P85:Q85)-SUMPRODUCT(--($B85:$M85<=R$57),R$57-$B85:$M85) -> 100170 | S85: =S$57*12-SUM($P85:R85)-SUMPRODUCT(--($B85:$M85<=S$57),S$57-$B85:$M85) -> 102655 | T85: =T$57*12-SUM($P85:S85)-SUMPRODUCT(--($B85:$M85<=T$57),T$57-$B85:$M85) -> 24724
N86: 0 | P86: 0 | Q86: =Q$57*12-SUM($P86:P86)-SUMPRODUCT(--($B86:$M86<=Q$57),Q$57-$B86:$M86) -> 0 | R86: =R$57*12-SUM($P86:Q86)-SUMPRODUCT(--($B86:$M86<=R$57),R$57-$B86:$M86) -> 0 | S86: =S$57*12-SUM($P86:R86)-SUMPRODUCT(--($B86:$M86<=S$57),S$57-$B86:$M86) -> 0 | T86: =T$57*12-SUM($P86:S86)-SUMPRODUCT(--($B86:$M86<=T$57),T$57-$B86:$M86) -> 0
A87: Total WA Sch 121/122 | B87: =SUM(B59:B86) -> 673126 | C87: =SUM(C59:C86) -> 627542 | D87: 669390 | E87: 562366 | F87: 535442 | G87: =SUM(G60:G86) -> 449736 | H87: 371198 | I87: 351134 | J87: 349637 | K87: 388245 | L87: 497781 | M87: 661266 | N87: =IF(ROUND(SUM(N59:N86),3)<>ROUND(SUM(B87:M87),3),#VALUE!,SUM(B87:M87)) -> 6136863 | P87: =SUM(P59:P86) -> 156000 | Q87: =SUM(Q59:Q86) -> 156000 | R87: =SUM(R59:R86) -> 2638873 | S87: =SUM(S59:S86) -> 1825796 | T87: =SUM(T59:T86) -> 1360194
T88: =SUM(P87:T87) -> 6136863
A89: Revenue Runs | B89: =303760+225132 -> 528892 | C89: =353379+216581 -> 569960 | D89: =353131+235018 -> 588149 | E89: =315980+201735 -> 517715 | F89: =311350+192106 -> 503456 | G89: =270835+166300 -> 437135 | H89: =227099+141360 -> 368459 | I89: =223446+135150 -> 358596 | J89: =225312+133183 -> 358495 | K89: =240965+147214 -> 388179 | L89: =282533+180182 -> 462715 | M89: =604874+189282 -> 794156 | N89: =SUM(B89:M89) -> 5875907
A90: Franz Bakery (122 to 146) | B90: =-B47 -> -41530 | C90: =-C47 -> -37540 | D90: -40222 | E90: -39179 | F90: -40085 | G90: -38343 | H90: -33662 | I90: -35342 | J90: -32754 | K90: -35489 | L90: -31183 | M90: 0 | N90: =SUM(B90:M90) -> -405329
A91: Quarry Tile (122 to 146) | B91: -36578 | C91: -36303 | D91: -36506 | E91: -34447 | F91: -32310 | G91: -33841 | H91: -30781 | I91: -32099 | J91: -34371 | K91: -31844 | L91: -38999 | M91: -37632 | N91: =SUM(B91:M91) -> -415711
A92: Coyote Ridge Correction (from 111) | B92: =B62 -> 91536 | C92: =C62 -> 80268 | D92: 83371 | E92: 64934 | F92: 53104 | G92: 49198 | H92: 39094 | I92: 39279 | J92: 40021 | K92: 43408 | L92: 0 | M92: 0 | N92: =SUM(B92:M92) -> 584213 | P92: =P$46*12-SUMPRODUCT(--($B92:$M92<=P$46),P$46-$B92:$M92) -> 2000 | Q92: =Q$46*12-SUMPRODUCT(--($B92:$M92<=Q$46),Q$46-$B92:$M92) -> 10000 | R92: =R$46*12-SUM($P92:Q92)-SUMPRODUCT(--($B92:$M92<=R$46),R$46-$B92:$M92) -> 572213
A93: Northern Quest Casino (from 111) | B93: =B71 -> 53756 | C93: =C71 -> 50484 | D93: 59212 | E93: 38684 | F93: 35651 | G93: 23835 | H93: 17930 | I93: 12656 | J93: 11083 | K93: 14921 | N93: =SUM(B93:M93) -> 318212 | P93: 2000 | Q93: 10000 | R93: =R$46*12-SUM($P93:Q93)-SUMPRODUCT(--($B93:$M93<=R$46),R$46-$B93:$M93) -> 306212
A94: Northern Quest Casino (from111) | B94: =B72 -> 23139 | C94: =C72 -> 22067 | D94: 23246 | E94: 16517 | F94: 15626 | G94: 11752 | H94: 10158 | I94: 8044 | J94: 7163 | K94: 9070 | L94: 0 | M94: 0 | N94: =SUM(B94:M94) -> 146782 | P94: 2000 | Q94: 10000 | R94: =R$46*12-SUM($P94:Q94)-SUMPRODUCT(--($B94:$M94<=R$46),R$46-$B94:$M94) -> 134782
A95: Greenacres Gypsum & Lime Co | B95: 0 | M95: 9990 | N95: 9990
A96: Camelback Hotel Corp | B96: -7961 | N96: -7961
A97: Prior period adjustments | B97: 61872 | C97: -21394 | D97: -7860 | E97: -1858 | F97: =F86 -> 0 | G97: 0 | H97: 0 | I97: 0 | J97: 0 | K97: 0 | L97: =70143+35105 -> 105248 | M97: =-70143-35105 -> -105248 | N97: 30760
A98: Total WA Sch 121/122 | B98: =SUM(B89:B97) -> 673126 | C98: =SUM(C89:C97) -> 627542 | D98: =SUM(D89:D97) -> 669390 | E98: 562366 | F98: 535442 | G98: 449736 | H98: 371198 | I98: 351134 | J98: 349637 | K98: 388245 | L98: 497781 | M98: 661266 | N98: =IF(ROUND(SUM(N89:N97),3)<>ROUND(SUM(B98:M98),3),#VALUE!,SUM(B98:M98)) -> 6136863
B99: =B87-B98 -> 0 | C99: 0 | D99: 0 | E99: 0 | F99: 0 | G99: 0 | H99: 0 | I99: 0 | J99: 0 | K99: 0 | L99: 0 | M99: 0 | N99: =N87-N98 -> 0
P100: 1st | Q100: =P101 -> 10000 | R100: =Q101 -> 25000 | S100: =R101 -> 50000
A101: ANNUAL USAGE, Sch 131/132 | B101: =B99-B100 -> 0 | N101: 12-mo ended | P101: 10000 | Q101: 25000 | R101: 50000 | S101: 99999999
A102: Washington | B102: =B4 -> 2011-01-01 | C102: =C4 -> 2011-02-01 | D102: 2011-03-01 | E102: 2011-04-01 | F102: 2011-05-01 | G102: 2011-06-01 | H102: 2011-07-01 | I102: 2011-08-01 | J102: 2011-09-01 | K102: 2011-10-01 | L102: 2011-11-01 | M102: 2011-12-01 | N102: Total | P102: thms/mo | Q102: thms/mo | R102: thms/mo | S102: thms/mo
A103: Airway Hts Corr | B103: 75617 | C103: 73677 | D103: 81893 | E103: 62438 | F103: 61271 | G103: 46787 | H103: 37486 | I103: 25688 | J103: 20338 | K103: 29404 | L103: 47057 | M103: 81249 | N103: =SUM(B103:M103) -> 642905 | P103: =P$101*12-SUMPRODUCT(--($B103:$M103<=P$101),P$101-$B103:$M103) -> 120000 | Q103: =Q$101*12-SUM($P103:P103)-SUMPRODUCT(--($B103:$M103<=Q$101),Q$101-$B103:$M103) -> 175338 | R103: =R$101*12-SUM($P103:Q103)-SUMPRODUCT(--($B103:$M103<=R$101),R$101-$B103:$M103) -> 211422 | S103: =S$101*12-SUM($P103:R103)-SUMPRODUCT(--($B103:$M103<=S$101),S$101-$B103:$M103) -> 136145
B105: =SUM(B103:B104) -> 75617 | C105: 73677 | D105: 81893 | E105: 62438 | F105: 61271 | G105: 46787 | H105: 37486 | I105: 25688 | J105: 20338 | K105: 29404 | L105: 47057 | M105: 81249 | N105: =IF(ROUND(SUM(N103:N104),3)<>ROUND(SUM(B105:M105),3),#VALUE!,SUM(B105:M105)) -> 642905 | P105: =SUM(P103:P104) -> 120000 | Q105: =SUM(Q103:Q104) -> 175338 | R105: =SUM(R103:R104) -> 211422 | S105: =SUM(S103:S104) -> 136145
S106: =SUM(P105:S105) -> 642905
A108: ANNUAL USAGE, Sch 148 | N108: 12-mo ended
A109: Washington | B109: =B4 -> 2011-01-01 | C109: =C4 -> 2011-02-01 | D109: 2011-03-01 | E109: 2011-04-01 | F109: 2011-05-01 | G109: 2011-06-01 | H109: 2011-07-01 | I109: 2011-08-01 | J109: 2011-09-01 | K109: 2011-10-01 | L109: 2011-11-01 | M109: 2011-12-01 | N109: Total
A110: Kaiser Trentwood (2500068) | B110: 1757432 | C110: 1916015 | D110: 1730749 | E110: 1807710 | F110: 1618663 | G110: 1678769 | H110: 1623294 | I110: 1508848 | J110: 1532056 | K110: 1548144 | L110: 1666586 | M110: 1788271 | N110: =SUM(B110:M110) -> 20176537
A111: Lamb-Weston | B111: 478543 | C111: 635752 | D111: 637815 | E111: 692984 | F111: 634684 | G111: 570471 | H111: 655951 | I111: 475500 | J111: 651342 | K111: 601104 | L111: 663662 | M111: 603269 | N111: =SUM(B111:M111) -> 7301077
A112: Mutual Material Corp | B112: 126631 | C112: 129206 | D112: 123024 | E112: 127153 | F112: 131985 | G112: 123292 | H112: 128819 | I112: 131938 | J112: 142443 | K112: 154232 | L112: 152818 | M112: 142249 | N112: =SUM(B112:M112) -> 1613790
A113: Washington Potato | B113: 468675 | C113: 483331 | D113: 461977 | E113: 488420 | F113: 499797 | G113: 458927 | H113: 471474 | I113: 520191 | J113: 526177 | K113: 507007 | L113: 506320 | M113: 532412 | N113: =SUM(B113:M113) -> 5924708
A114: Washington State Univ (2200044) | B114: 1229283 | C114: 1229856 | D114: 1131930 | E114: 982905 | F114: 928616 | G114: 701307 | H114: 500438 | I114: 404046 | J114: 368913 | K114: 418485 | L114: 722826 | M114: 1060673 | N114: =SUM(B114:M114) -> 9679278
A116: Total WA Sch 148 | B116: =SUM(B110:B115) -> 4060564 | C116: 4394160 | D116: 4085495 | E116: 4099172 | F116: 3813745 | G116: 3532766 | H116: 3379976 | I116: 3040523 | J116: 3220931 | K116: 3228972 | L116: 3712212 | M116: 4126874 | N116: =IF(ROUND(SUM(N110:N115),3)<>ROUND(SUM(B116:M116),3),#VALUE!,SUM(B116:M116)) -> 44695390
A118: Revenue Runs | B118: 4060564 | C118: 4394160 | D118: 4085495 | E118: 4099172 | F118: 3813745 | G118: 3532766 | H118: 3379976 | I118: 3040523 | J118: 3220931 | K118: 3228972 | L118: 3712212 | M118: 4126874 | N118: =SUM(B118:M118) -> 44695390
B119: =B116-B118 -> 0 | C119: =C116-C118 -> 0 | D119: 0 | E119: 0 | F119: 0 | G119: 0 | H119: 0 | I119: 0 | J119: 0 | K119: 0 | L119: 0 | M119: 0 | N119: 0
A121: ANNUAL USAGE, Sch 147 | N121: 12-mo ended
A122: Washington | B122: =B4 -> 2011-01-01 | C122: =C4 -> 2011-02-01 | D122: 2011-03-01 | E122: 2011-04-01 | F122: 2011-05-01 | G122: 2011-06-01 | H122: 2011-07-01 | I122: 2011-08-01 | J122: 2011-09-01 | K122: 2011-10-01 | L122: 2011-11-01 | M122: 2011-12-01 | N122: Total
A123: WWP-Boulder Park | B123: 124 | C123: 85762 | D123: 30181 | E123: 25294 | F123: 72187 | G123: 126806 | H123: 122908 | I123: 101216 | J123: 175778 | K123: 0 | L123: 1654 | M123: 64468 | N123: =SUM(B123:M123) -> 806378
A124: WWP-Kettle Falls | B124: 329 | C124: =1454+3259 -> 4713 | D124: 5037 | E124: 13664 | F124: =2413+5278 -> 7691 | G124: =290+13925 -> 14215 | H124: =19448+20061 -> 39509 | I124: =10991+27389 -> 38380 | J124: =2698+35716 -> 38414 | K124: 3615 | L124: 773 | M124: =3776+9520 -> 13296 | N124: =SUM(B124:M124) -> 179636
A126: Total WA Sch 147 | B126: =SUM(B123:B125) -> 453 | C126: 90475 | D126: =SUM(D123:D125) -> 35218 | E126: 38958 | F126: 79878 | G126: 141021 | H126: 162417 | I126: 139596 | J126: 214192 | K126: 3615 | L126: 2427 | M126: 77764 | N126: =IF(ROUND(SUM(N123:N125),3)<>ROUND(SUM(B126:M126),3),#VALUE!,SUM(B126:M126)) -> 986014
A128: Revenue Runs | B128: 453 | C128: 90475 | D128: 35218 | E128: 38958 | F128: 79878 | G128: 141021 | H128: 162417 | I128: 139596 | J128: 214192 | K128: 3615 | L128: 2427 | M128: 77764 | N128: =SUM(B128:M128) -> 986014
B129: =B126-B128 -> 0 | C129: 0 | D129: 0 | E129: 0 | F129: 0 | G129: 0 | H129: 0 | I129: 0 | J129: 0 | K129: 0 | L129: 0 | M129: 0 | N129: 0
A131: Sch 147 Revenue from Rev. Runs | B131: 9 | C131: 1892 | D131: 736 | E131: 815 | F131: 1670 | G131: 2949 | H131: 3396 | I131: 2919 | J131: 4479 | K131: 76 | L131: 51 | M131: 1626 | N131: =SUM(B131:M131) -> 20618
A132: check | B132: =B126*0.02091 -> 9.47223 | C132: =C126*0.02091 -> 1891.83225 | D132: 736.40838 | E132: 814.61178 | F132: 1670.24898 | G132: 2948.74911 | H132: 3396.13947 | I132: 2918.95236 | J132: 4478.75472 | K132: 75.58965 | L132: 50.74857 | M132: 1626.04524 | N132: =SUM(B132:M132) -> 20617.55274

Sheet Rev Runs CY (hidden)
A1: Revenue Report Twelve Months Ended for Report Date : '12/31/2011'
F4: 201112 | I4: TME
A5: Service | B5: State Cde | C5: Rate Schedule Num | D5: Rate Schedule Desc | E5: RevClsDesc | F5: Meters | G5: Usage | H5: Revenue | I5: Avg Meters | J5: Usage | K5: Revenue | T5: Meters | U5: Usage | V5: Revenue
A6: Gas | B6: WA | C6: 101 | D6: 101 FIRM AND GENERAL SERVICE | E6: 01 RESIDENTIAL | F6: 134611 | G6: 14935586 | H6: 13491857.43 | I6: 133686.25 | J6: 104729043 | K6: 99176326.85 | M6: G | N6: WA | O6: 101 | P6: 01 | Q6: GWA10101 | R6: =M6&N6&O6 -> GWA101 | S6: =N6&P6 -> WA01 | T6: =F6/$F$10 -> 0.9181069173 | U6: =G6/$G$10 -> 0.841777844 | V6: =H6/$H$10 -> 0.8460514237
E7: 21 FIRM COMMERCIAL | F7: 11890 | G7: 2765262 | H7: 2418610.07 | I7: 11887.75 | J7: 18193151 | K7: 16410682.36 | M7: G | N7: WA | O7: 101 | P7: 21 | Q7: GWA10121 | R7: GWA101 | S7: WA21 | T7: =F7/$F$10 -> 0.08109509064 | U7: =G7/$G$10 -> 0.1558516877 | V7: =H7/$H$10 -> 0.1516669223
E8: 31 FIRM- INDUSTRIAL | F8: 88 | G8: 31991 | H8: 27678.85 | I8: 84 | J8: 185938 | K8: 164990.31 | M8: G | N8: WA | O8: 101 | P8: 31 | Q8: GWA10131 | R8: GWA101 | S8: WA31 | T8: 0.000600199157 | U8: 0.00180303036 | V8: 0.001735693589
E9: 80 INTERDEPARTMENT REVENUE | F9: 29 | G9: 10068 | H9: 8706.35 | I9: 30 | J9: 84224 | K9: 74166 | M9: G | N9: WA | O9: 101 | P9: 80 | Q9: GWA10180 | R9: GWA101 | S9: WA80 | T9: 0.000197792904 | U9: 0.000567438019 | V9: 0.0005459603951
E10: Sum | F10: 146618 | G10: 17742907 | H10: 15946852.7 | I10: 145688 | J10: 123192356 | K10: 115826165.5 | M10: G | N10: WA | O10: 101 | Q10: GWA101 | R10: GWA101 | S10: WA | T10: 1 | U10: 1 | V10: 1
C11: 111 | D11: 111 FIRM-LARGE GENERAL SERVICE | E11: 01 RESIDENTIAL | F11: 247 | G11: 400356 | H11: 300596.53 | I11: 237.5 | J11: 3128531 | K11: 2415235.6 | M11: G | N11: WA | O11: 111 | P11: 01 | Q11: GWA11101 | R11: GWA111 | S11: WA01 | T11: =F11/$F$15 -> 0.1 | U11: =G11/$G$15 -> 0.06435174246 | V11: =H11/$H$15 -> 0.06549478027
E12: 21 FIRM COMMERCIAL | F12: 2169 | G12: 5591554 | H12: 4122493.11 | I12: 2110.583333 | J12: 43334993 | K12: 32769137.73 | M12: G | N12: WA | O12: 111 | P12: 21 | Q12: GWA11121 | R12: GWA111 | S12: WA21 | T12: =F12/$F$15 -> 0.8781376518 | U12: =G12/$G$15 -> 0.8987657059 | V12: =H12/$H$15 -> 0.8982198843
E13: 31 FIRM- INDUSTRIAL | F13: 44 | G13: 189946 | H13: 137864.1 | I13: 43.08333333 | J13: 1698129 | K13: 1249248.7 | M13: G | N13: WA | O13: 111 | P13: 31 | Q13: GWA11131 | R13: GWA111 | S13: WA31 | T13: 0.01781376518 | U13: 0.0305312174 | V13: 0.03003820083
E14: 80 INTERDEPARTMENT REVENUE | F14: 10 | G14: 39514 | H14: 28672.01 | I14: 9.916666667 | J14: 300463 | K14: 223828.39 | M14: G | N14: WA | O14: 111 | P14: 80 | Q14: GWA11180 | R14: GWA111 | S14: WA80 | T14: 0.004048582996 | U14: 0.006351334192 | V14: 0.006247134638
E15: Sum | F15: 2470 | G15: 6221370 | H15: 4589625.75 | I15: 2401.083333 | J15: 48462116 | K15: 36657450.42 | M15: G | N15: WA | O15: 111 | Q15: GWA111 | R15: GWA111 | S15: WA | T15: 1 | U15: 1 | V15: 1
C16: 112 | D16: 112 FIRM-LARGE GENERAL SERVICE | E16: 21 FIRM COMMERCIAL | F16: 2 | G16: 118619 | H16: 87513.83 | I16: 2 | J16: 941466 | K16: 739921.87 | M16: G | N16: WA | O16: 112 | P16: 21 | Q16: GWA11221 | R16: GWA112 | S16: WA21
E17: Sum | F17: 2 | G17: 118619 | H17: 87513.83 | I17: 2 | J17: 941466 | K17: 739921.87 | M17: G | N17: WA | O17: 112 | Q17: GWA112 | R17: GWA112 | S17: WA
C18: 121 | D18: 121 FIRM-HIGH ANNUAL LOAD | E18: 21 FIRM COMMERCIAL | F18: 19 | G18: 593654 | H18: 398575.39 | I18: 18.5 | J18: 3450488 | K18: 2383956.13 | M18: G | N18: WA | O18: 121 | P18: 21 | Q18: GWA12121 | R18: GWA121 | S18: WA21
E19: 31 FIRM- INDUSTRIAL | F19: 1 | G19: 11220 | H19: 7921.7 | I19: 2 | J19: 262176 | K19: 185919.73 | M19: G | N19: WA | O19: 121 | P19: 31 | Q19: GWA12131 | R19: GWA121 | S19: WA31
E20: Sum | F20: 20 | G20: 604874 | H20: 406497.09 | I20: 20.5 | J20: 3712664 | K20: 2569875.86 | M20: G | N20: WA | O20: 121 | Q20: GWA121 | R20: GWA121 | S20: WA
C21: 122 | D21: 122 FIRM-HIGH ANNUAL LOAD | E21: 21 FIRM COMMERCIAL | F21: 3 | G21: 151650 | H21: 103895.51 | I21: 3 | J21: 1342203 | K21: 988534.5 | M21: G | N21: WA | O21: 122 | P21: 21 | Q21: GWA12221 | R21: GWA122 | S21: WA21
E22: 31 FIRM- INDUSTRIAL | F22: 1 | G22: 37632 | H22: 26038.93 | I22: 2 | J22: 821040 | K22: 607887.2 | M22: G | N22: WA | O22: 122 | P22: 31 | Q22: GWA12231 | R22: GWA122 | S22: WA31
E23: Sum | F23: 4 | G23: 189282 | H23: 129934.44 | I23: 5 | J23: 2163243 | K23: 1596421.7 | M23: G | N23: WA | O23: 122 | Q23: GWA122 | R23: GWA122 | S23: WA
C24: 132 | D24: 132 INTERRUPTIBLE SERVICE | E24: 22 INTERRUPTIBLE COMMERCIAL | F24: 1 | G24: 81249 | H24: 52959.86 | I24: 1 | J24: 642905 | K24: 450177.75 | M24: G | N24: WA | O24: 132 | P24: 22 | Q24: GWA13222 | R24: GWA132 | S24: WA22
E25: Sum | F25: 1 | G25: 81249 | H25: 52959.86 | I25: 1 | J25: 642905 | K25: 450177.75 | M25: G | N25: WA | O25: 132 | Q25: GWA132 | R25: GWA132 | S25: WA
C26: 146 | D26: 146 TRANSPORTATION SERVICE FOR CUST OWNED GAS | E26: 91 COMMERCIAL-TRANS OF GAS FOR OTHERS | F26: 15 | G26: 1468598 | H26: 100898.23 | I26: 13.08333333 | J26: 12219881 | K26: 857597.01 | M26: G | N26: WA | O26: 146 | P26: 91 | Q26: GWA14691 | R26: GWA146 | S26: WA91
E27: 92 INDUSTIAL-TRANS OF GAS FOR OTHERS | F27: 24 | G27: 1415583 | H27: 100533.84 | I27: 22.25 | J27: 15577560 | K27: 1126893.15 | M27: G | N27: WA | O27: 146 | P27: 92 | Q27: GWA14692 | R27: GWA146 | S27: WA92
E28: Total 146 TRANSPORTATION SERVICE FOR CUST OWNED GAS | F28: 39 | G28: 2884181 | H28: 201432.07 | I28: 35.33333333 | J28: 27797441 | K28: 1984490.16 | M28: G | N28: WA | O28: 146 | Q28: GWA146 | R28: GWA146 | S28: WA
C29: 147 | D29: 147 TRANSPORTATION SERVICE SPECIAL CONTRACT | E29: 93 INTERDEPARTMENT- REV FROM TRANSP OF GAS | F29: 2 | G29: 77764 | H29: 1626.05 | I29: 2.583333333 | J29: 986014 | K29: 20617.55 | M29: G | N29: WA | O29: 147 | P29: 93 | Q29: GWA14793 | R29: GWA147 | S29: WA93
E30: Sum | F30: 2 | G30: 77764 | H30: 1626.05 | I30: 2.583333333 | J30: 986014 | K30: 20617.55 | M30: G | N30: WA | O30: 147 | Q30: GWA147 | R30: GWA147 | S30: WA
C31: 148 | D31: 148 HIGH VOLUME/BANDED RATE TRANSPORTATION SVC | E31: 91 COMMERCIAL-TRANS OF GAS FOR OTHERS | F31: 1 | G31: 1060673 | H31: 10806.73 | I31: 1.25 | J31: 9679278 | K31: 99132.78 | M31: G | N31: WA | O31: 148 | P31: 91 | Q31: GWA14891 | R31: GWA148 | S31: WA91
E32: 92 INDUSTIAL-TRANS OF GAS FOR OTHERS | F32: 4 | G32: 3066201 | H32: 89802.76 | I32: 4.25 | J32: 35016112 | K32: 1029335.35 | M32: G | N32: WA | O32: 148 | P32: 92 | Q32: GWA14892 | R32: GWA148 | S32: WA92
E33: Total 148 HIGH VOLUME/BANDED RATE TRANSPORTATION SVC | F33: 5 | G33: 4126874 | H33: 100609.49 | I33: 5.5 | J33: 44695390 | K33: 1128468.13 | M33: G | N33: WA | O33: 148 | Q33: GWA148 | R33: GWA148 | S33: WA
C34: 158 | D34: 158 TAX ADJUSTMENT | E34: 01 RESIDENTIAL | F34: 0 | G34: 0 | H34: 508902.24 | I34: 0 | J34: 0 | K34: 3721864.19 | M34: G | N34: WA | O34: 158 | P34: 01 | Q34: GWA15801 | R34: GWA158 | S34: WA01
E35: 16 LARGE CUSTOMER PGA-COMMERCIAL | F35: 0 | G35: 0 | H35: -3832.56 | I35: 0 | J35: 0 | K35: -7873.8 | M35: G | N35: WA | O35: 158 | P35: 16 | Q35: GWA15816 | R35: GWA158 | S35: WA16
E36: 21 FIRM COMMERCIAL | F36: 0 | G36: 0 | H36: 294269.22 | I36: 0 | J36: 0 | K36: 2193476.35 | M36: G | N36: WA | O36: 158 | P36: 21 | Q36: GWA15821 | R36: GWA158 | S36: WA21
E37: 22 INTERRUPTIBLE COMMERCIAL | F37: 0 | G37: 0 | H37: 3177.59 | I37: 0 | J37: 0 | K37: 27010.65 | M37: G | N37: WA | O37: 158 | P37: 22 | Q37: GWA15822 | R37: GWA158 | S37: WA22
E38: 31 FIRM- INDUSTRIAL | F38: 0 | G38: 0 | H38: 4329.44 | I38: 0 | J38: 0 | K38: 28221.74 | M38: G | N38: WA | O38: 158 | P38: 31 | Q38: GWA15831 | R38: GWA158 | S38: WA31
E39: 80 INTERDEPARTMENT REVENUE | F39: 0 | G39: 0 | H39: -2.36 | I39: 0 | J39: 0 | K39: 7.16 | M39: G | N39: WA | O39: 158 | P39: 80 | Q39: GWA15880 | R39: GWA158 | S39: WA80
E40: 91 COMMERCIAL-TRANS OF GAS FOR OTHERS | F40: 0 | G40: 0 | H40: 6178.76 | I40: 0 | J40: 0 | K40: 58524.32 | M40: G | N40: WA | O40: 158 | P40: 91 | Q40: GWA15891 | R40: GWA158 | S40: WA91
E41: 92 INDUSTIAL-TRANS OF GAS FOR OTHERS | F41: 0 | G41: 0 | H41: 2868.34 | I41: 0 | J41: 0 | K41: 31826.63 | M41: G | N41: WA | O41: 158 | P41: 92 | Q41: GWA15892 | R41: GWA158 | S41: WA92
E42: Sum | F42: 0 | G42: 0 | H42: 815890.67 | I42: 0 | J42: 0 | K42: 6053057.24 | M42: G | N42: WA | O42: 158 | Q42: GWA158 | R42: GWA158 | S42: WA
C43: 158A | D43: 158A TAX ADJUSTMENT - INDIAN RESERVATION | E43: 01 RESIDENTIAL | F43: 0 | G43: 0 | H43: -11.65 | I43: 0 | J43: 0 | K43: -46.2 | M43: G | N43: WA | O43: 158A | P43: 01 | Q43: GWA158A01 | R43: GWA158A | S43: WA01
E44: 21 FIRM COMMERCIAL | F44: 0 | G44: 0 | H44: -96.76 | I44: 0 | J44: 0 | K44: -823.23 | M44: G | N44: WA | O44: 158A | P44: 21 | Q44: GWA158A21 | R44: GWA158A | S44: WA21
E45: Sum | F45: 0 | G45: 0 | H45: -108.41 | I45: 0 | J45: 0 | K45: -869.43 | M45: G | N45: WA | O45: 158A | Q45: GWA158A | R45: GWA158A | S45: WA
C46: 199 | D46: 199 REPORTING SCH NUMBER FOR MISC GAS REVENUE | E46: 16 LARGE CUSTOMER PGA-COMMERCIAL | F46: 0 | G46: 0 | H46: -63875.94 | I46: 0 | J46: 0 | K46: -127218.24 | M46: G | N46: WA | O46: 199 | P46: 16 | Q46: GWA19916 | R46: GWA199 | S46: WA16
E47: 17 LARGE CUSTOMER PGA-INDUSTRIAL | F47: 0 | G47: 0 | H47: 0 | I47: 0 | J47: 0 | K47: -90047.13 | M47: G | N47: WA | O47: 199 | P47: 17 | Q47: GWA19917 | R47: GWA199 | S47: WA17
E48: 19 THEFT OF SERVICE-GAS | F48: 0 | G48: 0 | H48: 0 | I48: 0 | J48: 0 | K48: 373.35 | M48: G | N48: WA | O48: 199 | P48: 19 | Q48: GWA19919 | R48: GWA199 | S48: WA19
E49: 88 MISC-SERVICING CUSTOMER INSTALLS | F49: 0 | G49: 0 | H49: 1109 | I49: 0 | J49: 0 | K49: 15266 | M49: G | N49: WA | O49: 199 | P49: 88 | Q49: GWA19988 | R49: GWA199 | S49: WA88
E50: Sum | F50: 0 | G50: 0 | H50: -62766.94 | I50: 0 | J50: 0 | K50: -201626.02 | M50: G | N50: WA | O50: 199 | Q50: GWA199 | R50: GWA199 | S50: WA
C51: Total WA | F51: 149161 | G51: 32047120 | H51: 22270066.6 | I51: 148161 | J51: 252593595 | K51: 166824150.8 | M51: G | N51: WA | O51: Sum | Q51: GWASum | R51: GWASum | S51: WA
A57: Summary by Rate Schedule | M57: Summary by Rate Class - 12 Mos.
O58: Meters | P58: Usage | Q58: Revenue
A59: Total 101 FIRM AND GENERAL SERVICE | E59: GWA101 | F59: =SUMIF($Q$5:$Q$53,$E59,F$5:F$53) -> 146618 | G59: 17742907 | H59: 15946852.7 | I59: =SUMIF($Q$5:$Q$53,$E59,$I$5:$I$53) -> 145688 | J59: =SUMIF($Q$5:$Q$53,$E59,J$5:J$53) -> 123192356 | K59: 115826165.5 | M59: Res | N59: WA01 | O59: =SUMIF($S$4:$S$53,$N59,I$4:I$53) -> 133923.75 | P59: =SUMIF($S$4:$S$53,$N59,J$4:J$53) -> 107857574 | Q59: =SUMIF($S$4:$S$53,$N59,K$4:K$53) -> 105313380.4 | R59: =MID(N59,3,4) -> 01
A60: Total 111 FIRM-LARGE GENERAL SERVICE | E60: GWA111 | F60: 2470 | G60: 6221370 | H60: 4589625.75 | I60: 2401.083333 | J60: 48462116 | K60: 36657450.42 | M60: Comm-PGA | N60: WA16 | O60: 0 | P60: 0 | Q60: -135092.04 | R60: 16
A61: Total 112 FIRM-LARGE GENERAL SERVICE | E61: GWA112 | F61: 2 | G61: 118619 | H61: 87513.83 | I61: 2 | J61: 941466 | K61: 739921.87 | M61: Ind-PGA | N61: WA17 | O61: 0 | P61: 0 | Q61: -90047.13 | R61: 17
A62: Total 121 FIRM-HIGH ANNUAL LOAD | E62: GWA121 | F62: 20 | G62: 604874 | H62: 406497.09 | I62: 20.5 | J62: 3712664 | K62: 2569875.86 | M62: Theft | N62: WA19 | O62: 0 | P62: 0 | Q62: 373.35 | R62: 19
A63: Total 122 FIRM-HIGH ANNUAL LOAD | E63: GWA122 | F63: 4 | G63: 189282 | H63: 129934.44 | I63: 5 | J63: 2163243 | K63: 1596421.7 | M63: Comm | N63: WA21 | O63: 14021.83333 | P63: 67262301 | Q63: 55484885.71 | R63: 21
A64: Total 122G FIRM-HIGH ANNUAL LOAD - GONZAGA | E64: GWA122G | F64: 0 | G64: 0 | H64: 0 | I64: 0 | J64: 0 | K64: 0 | M64: Comm-Int | N64: WA22 | O64: 1 | P64: 642905 | Q64: 477188.4 | R64: 22
A65: Total 122L FIRM-HIGH ANNUAL LOAD - ST LUKES | E65: GWA122L | F65: 0 | G65: 0 | H65: 0 | I65: 0 | J65: 0 | K65: 0 | M65: Ind | N65: WA31 | O65: 131.0833333 | P65: 2967283 | Q65: 2236267.68 | R65: 31
A66: Total 122W FIRM-HIGH ANNUAL LOAD - AIRWAY HTS CORR | E66: GWA122W | F66: 0 | G66: 0 | H66: 0 | I66: 0 | J66: 0 | K66: 0 | M66: Ind-Int | N66: WA41 | O66: 0 | P66: 0 | Q66: 0 | R66: 41
A67: Total 131 INTERRUPTIBLE SERVICE | E67: GWA131 | F67: 0 | G67: 0 | H67: 0 | I67: 0 | J67: 0 | K67: 0 | M67: Intdpt | N67: WA80 | O67: 39.91666667 | P67: 384687 | Q67: 298001.55 | R67: 80
A68: Total 132 INTERRUPTIBLE SERVICE | E68: GWA132 | F68: 1 | G68: 81249 | H68: 52959.86 | I68: 1 | J68: 642905 | K68: 450177.75 | M68: Misc | N68: WA88 | O68: 0 | P68: 0 | Q68: 15266 | R68: 88
A69: Total 132W INTERRUPTIBLE SERVICE - AIRWAY HTS CORR | E69: GWA132W | F69: 0 | G69: 0 | H69: 0 | I69: 0 | J69: 0 | K69: 0 | M69: Comm-Tra | N69: WA91 | O69: 14.33333333 | P69: 21899159 | Q69: 1015254.11 | R69: 91
A70: Total 146 TRANSPORTATION SERVICE FOR CUST OWNED GAS | E70: GWA146 | F70: 39 | G70: 2884181 | H70: 201432.07 | I70: 35.33333333 | J70: 27797441 | K70: 1984490.16 | M70: Ind-Tra | N70: WA92 | O70: 26.5 | P70: 50593672 | Q70: 2188055.13 | R70: 92
A71: Total 147 TRANSPORTATION SERVICE SPECIAL CONTRACT | E71: GWA147 | F71: 2 | G71: 77764 | H71: 1626.05 | I71: 2.583333333 | J71: 986014 | K71: 20617.55 | M71: Intdpt-Tra | N71: WA93 | O71: 2.583333333 | P71: 986014 | Q71: 20617.55 | R71: 93
A72: Total 148 HIGH VOLUME/BANDED RATE TRANSPORTATION SVC | E72: GWA148 | F72: 5 | G72: 4126874 | H72: 100609.49 | I72: 5.5 | J72: 44695390 | K72: 1128468.13 | M72: Total WA | O72: =SUM(O59:O71) -> 148161 | P72: =SUM(P59:P71) -> 252593595 | Q72: =SUM(Q59:Q71) -> 166824150.8
A73: Total 158 TAX ADJUSTMENT | E73: GWA158 | F73: 0 | G73: 0 | H73: 815890.67 | I73: 0 | J73: 0 | K73: 6053057.24 | M73: Misc (no Revenue Class)
A74: Total 158A TAX ADJUSTMENT - INDIAN RESERVATION | E74: GWA158A | F74: 0 | G74: 0 | H74: -108.41 | I74: 0 | J74: 0 | K74: -869.43 | M74: Total WA excl Unbilled | O74: =O72+O73 -> 148161 | P74: =P72+P73 -> 252593595 | Q74: =Q72+Q73 -> 166824150.8
A75: Total 199 REPORTING SCH NUMBER FOR MISC GAS REVENUE | E75: GWA199 | F75: 0 | G75: 0 | H75: -62766.94 | I75: 0 | J75: 0 | K75: -201626.02 | O75: =O74-I77 -> 0 | P75: =P74-J77 -> 0 | Q75: =Q72-K77 -> 0
E76: Total | F76: =SUM(F59:F75) -> 149161 | G76: 32047120 | H76: 22270066.6 | I76: 148161 | J76: 252593595 | K76: 166824150.8
E77: GWASum | F77: =SUMIF($Q$5:$Q$53,$E77,F$5:F$53) -> 149161 | G77: 32047120 | H77: 22270066.6 | I77: 148161 | J77: 252593595 | K77: 166824150.8 | M77: Retail | O77: =SUM(O59:O61,O63:O67,O69:O71,O73) -> 148161 | P77: =SUM(P59:P61,P63:P67,P69:P71,P73) -> 252593595 | Q77: =SUM(Q59:Q61,Q63:Q67,Q69:Q71,Q73) -> 166808511.4
E78: Diff | F78: =F76-F77 -> 0 | G78: 0 | H78: 0 | I78: 0 | J78: 0 | K78: 0 | M78: Unbilled
M79: Total WA | O79: =O77+O78 -> 148161 | P79: =P77+P78 -> 252593595 | Q79: =Q77+Q78 -> 166808511.4
I82: =(I60+I61)*12 -> 28837 | M82: diff

Sheet Rev Run LY (hidden)
A1: Revenue Report Twelve Months Ended for Report Date : '12/31/2010'
F4: 201012 | I4: TME
A5: Service | B5: State Cde | C5: Rate Schedule Num | D5: Rate Schedule Desc | E5: RevClsDesc | F5: Meters | G5: Usage | H5: Revenue | I5: Avg Meters | J5: Usage | K5: Revenue
A6: Gas | B6: WA | C6: 101 | D6: 101 FIRM AND GENERAL SERVICE | E6: 01 RESIDENTIAL | F6: 133761 | G6: 15593513 | H6: 13834590.48 | I6: 132657.1667 | J6: 97371891 | K6: 85897166.94 | M6: G | N6: WA | O6: 101 | P6: 01 | Q6: GWA10101 | R6: =M6&N6&O6 -> GWA101 | S6: =N6&P6 -> WA01
E7: 21 FIRM COMMERCIAL | F7: 11965 | G7: 3044387 | H7: 2618847.97 | I7: 11906.33333 | J7: 16705670 | K7: 13951123.02 | M7: G | N7: WA | O7: 101 | P7: 21 | Q7: GWA10121 | R7: GWA101 | S7: WA21
E8: 31 FIRM- INDUSTRIAL | F8: 83 | G8: 34989 | H8: 29889.89 | I8: 84.41666667 | J8: 174018 | K8: 142630.15 | M8: G | N8: WA | O8: 101 | P8: 31 | Q8: GWA10131 | R8: GWA101 | S8: WA31
E9: 80 INTERDEPARTMENT REVENUE | F9: 28 | G9: 12763 | H9: 10812.52 | I9: 27.08333333 | J9: 66457 | K9: 53955.83 | M9: G | N9: WA | O9: 101 | P9: 80 | Q9: GWA10180 | R9: GWA101 | S9: WA80
E10: Sum | F10: 145837 | G10: 18685652 | H10: 16494140.86 | I10: 144675 | J10: 114318036 | K10: 100044875.9 | M10: G | N10: WA | O10: 101 | Q10: GWA101 | R10: GWA101 | S10: WA
C11: 111 | D11: 111 FIRM-LARGE GENERAL SERVICE | E11: 01 RESIDENTIAL | F11: 226 | G11: 379217 | H11: 283222.45 | I11: 225.3333333 | J11: 3840473 | K11: 2690075.65 | M11: G | N11: WA | O11: 111 | P11: 01 | Q11: GWA11101 | R11: GWA111 | S11: WA01
E12: 21 FIRM COMMERCIAL | F12: 2058 | G12: 6121699 | H12: 4489286.05 | I12: 2040 | J12: 40044185 | K12: 28267833.32 | M12: G | N12: WA | O12: 111 | P12: 21 | Q12: GWA11121 | R12: GWA111 | S12: WA21
E13: 31 FIRM- INDUSTRIAL | F13: 43 | G13: 183502 | H13: 133380.79 | I13: 42.91666667 | J13: 1971767 | K13: 1389614.2 | M13: G | N13: WA | O13: 111 | P13: 31 | Q13: GWA11131 | R13: GWA111 | S13: WA31
E14: 80 INTERDEPARTMENT REVENUE | F14: 9 | G14: 38846 | H14: 28023.44 | I14: 9 | J14: 267200 | K14: 184316.71 | M14: G | N14: WA | O14: 111 | P14: 80 | Q14: GWA11180 | R14: GWA111 | S14: WA80
E15: Sum | F15: 2336 | G15: 6723264 | H15: 4933912.73 | I15: 2317.25 | J15: 46123625 | K15: 32531839.88 | M15: G | N15: WA | O15: 111 | Q15: GWA111 | R15: GWA111 | S15: WA
C16: 112 | D16: 112 FIRM-LARGE GENERAL SERVICE | E16: 21 FIRM COMMERCIAL | F16: 4 | G16: 226336 | H16: 179002.13 | I16: 2.333333333 | J16: 848654 | K16: 673952.97 | M16: G | N16: WA | O16: 112 | P16: 21 | Q16: GWA11221 | R16: GWA112 | S16: WA21
E17: Sum | F17: 4 | G17: 226336 | H17: 179002.13 | I17: 2.333333333 | J17: 848654 | K17: 673952.97 | M17: G | N17: WA | O17: 112 | Q17: GWA112 | R17: GWA112 | S17: WA
C18: 121 | D18: 121 FIRM-HIGH ANNUAL LOAD | E18: 21 FIRM COMMERCIAL | F18: 20 | G18: 364745 | H18: 249334.6 | I18: 19.75 | J18: 3285290 | K18: 2092956.4 | M18: G | N18: WA | O18: 121 | P18: 21 | Q18: GWA12121 | R18: GWA121 | S18: WA21
E19: 31 FIRM- INDUSTRIAL | F19: 3 | G19: 41355 | H19: 28575.64 | I19: 2.166666667 | J19: 105293 | K19: 26816.24 | M19: G | N19: WA | O19: 121 | P19: 31 | Q19: GWA12131 | R19: GWA121 | S19: WA31
E20: Sum | F20: 23 | G20: 406100 | H20: 277910.24 | I20: 21.91666667 | J20: 3390583 | K20: 2119772.64 | M20: G | N20: WA | O20: 121 | Q20: GWA121 | R20: GWA121 | S20: WA
C21: 122 | D21: 122 FIRM-HIGH ANNUAL LOAD | E21: 21 FIRM COMMERCIAL | F21: 3 | G21: 139418 | H21: 102885.56 | I21: 3.083333333 | J21: 1148181 | K21: 866693 | M21: G | N21: WA | O21: 122 | P21: 21 | Q21: GWA12221 | R21: GWA122 | S21: WA21
E22: 31 FIRM- INDUSTRIAL | F22: 2 | G22: 84476 | H22: 62567.37 | I22: 2 | J22: 884215 | K22: 667490.87 | M22: G | N22: WA | O22: 122 | P22: 31 | Q22: GWA12231 | R22: GWA122 | S22: WA31
E23: Sum | F23: 5 | G23: 223894 | H23: 165452.93 | I23: 5.083333333 | J23: 2032396 | K23: 1534183.87 | M23: G | N23: WA | O23: 122 | Q23: GWA122 | R23: GWA122 | S23: WA
C24: 132 | D24: 132 INTERRUPTIBLE SERVICE | E24: 22 INTERRUPTIBLE COMMERCIAL | F24: 1 | G24: 78031 | H24: 54333.29 | I24: 1 | J24: 641660 | K24: 457632.56 | M24: G | N24: WA | O24: 132 | P24: 22 | Q24: GWA13222 | R24: GWA132 | S24: WA22
E25: Sum | F25: 1 | G25: 78031 | H25: 54333.29 | I25: 1 | J25: 641660 | K25: 457632.56 | M25: G | N25: WA | O25: 132 | Q25: GWA132 | R25: GWA132 | S25: WA
C26: 146 | D26: 146 TRANSPORTATION SERVICE FOR CUST OWNED GAS | E26: 91 COMMERCIAL-TRANS OF GAS FOR OTHERS | F26: 12 | G26: 1531407 | H26: 99770.41 | I26: 12.16666667 | J26: 11200801 | K26: 761974.87 | M26: G | N26: WA | O26: 146 | P26: 91 | Q26: GWA14691 | R26: GWA146 | S26: WA91
E27: 92 INDUSTIAL-TRANS OF GAS FOR OTHERS | F27: 21 | G27: 1188743 | H27: 83555.38 | I27: 21.66666667 | J27: 13304479 | K27: 950845.77 | M27: G | N27: WA | O27: 146 | P27: 92 | Q27: GWA14692 | R27: GWA146 | S27: WA92
E28: 93 INTERDEPARTMENT- REV FROM TRANSP OF GAS | F28: 0 | G28: 0 | H28: 0 | I28: -0.08333333333 | J28: 0 | K28: 0 | M28: G | N28: WA | O28: 146 | P28: 93 | Q28: GWA14693 | R28: GWA146 | S28: WA93
E29: Sum | F29: 33 | G29: 2720150 | H29: 183325.79 | I29: 33.75 | J29: 24505280 | K29: 1712820.64 | M29: G | N29: WA | O29: 146 | Q29: GWA146 | R29: GWA146 | S29: WA
C30: 147 | D30: 147 TRANSPORTATION SERVICE SPECIAL CONTRACT | E30: 93 INTERDEPARTMENT- REV FROM TRANSP OF GAS | F30: 3 | G30: 193601 | H30: 4048.2 | I30: 2.333333333 | J30: 1943878 | K30: 40646.48 | M30: G | N30: WA | O30: 147 | P30: 93 | Q30: GWA14793 | R30: GWA147 | S30: WA93
E31: Sum | F31: 3 | G31: 193601 | H31: 4048.2 | I31: 2.333333333 | J31: 1943878 | K31: 40646.48 | M31: G | N31: WA | O31: 147 | Q31: GWA147 | R31: GWA147 | S31: WA
C32: 148 | D32: 148 HIGH VOLUME/BANDED RATE TRANSPORTATION SVC | E32: 91 COMMERCIAL-TRANS OF GAS FOR OTHERS | F32: 1 | G32: 1082027 | H32: 11020.27 | I32: 1 | J32: 9188587 | K32: 83905.77 | M32: G | N32: WA | O32: 148 | P32: 91 | Q32: GWA14891 | R32: GWA148 | S32: WA91
E33: 92 INDUSTIAL-TRANS OF GAS FOR OTHERS | F33: 4 | G33: 2965200 | H33: 86573.33 | I33: 4 | J33: 34234056 | K33: 1004639.22 | M33: G | N33: WA | O33: 148 | P33: 92 | Q33: GWA14892 | R33: GWA148 | S33: WA92
E34: Sum | F34: 5 | G34: 4047227 | H34: 97593.6 | I34: 5 | J34: 43422643 | K34: 1088544.99 | M34: G | N34: WA | O34: 148 | Q34: GWA148 | R34: GWA148 | S34: WA
C35: 158 | D35: 158 TAX ADJUSTMENT | E35: 01 RESIDENTIAL | F35: 0 | G35: 0 | H35: 504028.82 | I35: 0 | J35: 0 | K35: 3140061.41 | M35: G | N35: WA | O35: 158 | P35: 01 | Q35: GWA15801 | R35: GWA158 | S35: WA01
E36: 16 LARGE CUSTOMER PGA-COMMERCIAL | F36: 0 | G36: 0 | H36: 0 | I36: 0 | J36: 0 | K36: -14485.83 | M36: G | N36: WA | O36: 158 | P36: 16 | Q36: GWA15816 | R36: GWA158 | S36: WA16
E37: 17 LARGE CUSTOMER PGA-INDUSTRIAL | F37: 0 | G37: 0 | H37: 0 | I37: 0 | J37: 0 | K37: -30.1 | M37: G | N37: WA | O37: 158 | P37: 17 | Q37: GWA15817 | R37: GWA158 | S37: WA17
E38: 21 FIRM COMMERCIAL | F38: 0 | G38: 0 | H38: 302844.88 | I38: 0 | J38: 0 | K38: 1851564.01 | M38: G | N38: WA | O38: 158 | P38: 21 | Q38: GWA15821 | R38: GWA158 | S38: WA21
E39: 22 INTERRUPTIBLE COMMERCIAL | F39: 0 | G39: 0 | H39: 3260 | I39: 0 | J39: 0 | K39: 27457.96 | M39: G | N39: WA | O39: 158 | P39: 22 | Q39: GWA15822 | R39: GWA158 | S39: WA22
E40: 31 FIRM- INDUSTRIAL | F40: 0 | G40: 0 | H40: 3956.67 | I40: 0 | J40: 0 | K40: 22183.09 | M40: G | N40: WA | O40: 158 | P40: 31 | Q40: GWA15831 | R40: GWA158 | S40: WA31
E41: 80 INTERDEPARTMENT REVENUE | F41: 0 | G41: 0 | H41: 86.35 | I41: 0 | J41: 0 | K41: 86.37 | M41: G | N41: WA | O41: 158 | P41: 80 | Q41: GWA15880 | R41: GWA158 | S41: WA80
E42: 91 COMMERCIAL-TRANS OF GAS FOR OTHERS | F42: 0 | G42: 0 | H42: 6281.79 | I42: 0 | J42: 0 | K42: 65761.86 | M42: G | N42: WA | O42: 158 | P42: 91 | Q42: GWA15891 | R42: GWA158 | S42: WA91
E43: 92 INDUSTIAL-TRANS OF GAS FOR OTHERS | F43: 0 | G43: 0 | H43: 2114.71 | I43: 0 | J43: 0 | K43: 24068.85 | M43: G | N43: WA | O43: 158 | P43: 92 | Q43: GWA15892 | R43: GWA158 | S43: WA92
E44: Sum | F44: 0 | G44: 0 | H44: 822573.22 | I44: 0 | J44: 0 | K44: 5116667.62 | M44: G | N44: WA | O44: 158 | Q44: GWA158 | R44: GWA158 | S44: WA
C45: 158A | D45: 158A TAX ADJUSTMENT - INDIAN RESERVATION | E45: 01 RESIDENTIAL | F45: 0 | G45: 0 | H45: -4.22 | I45: 0 | J45: 0 | K45: -20.69 | M45: G | N45: WA | O45: 158A | P45: 01 | Q45: GWA158A01 | R45: GWA158A | S45: WA01
E46: 21 FIRM COMMERCIAL | F46: 0 | G46: 0 | H46: -122.36 | I46: 0 | J46: 0 | K46: -646.6 | M46: G | N46: WA | O46: 158A | P46: 21 | Q46: GWA158A21 | R46: GWA158A | S46: WA21
E47: Sum | F47: 0 | G47: 0 | H47: -126.58 | I47: 0 | J47: 0 | K47: -667.29 | M47: G | N47: WA | O47: 158A | Q47: GWA158A | R47: GWA158A | S47: WA
C48: 199 | D48: 199 REPORTING SCH NUMBER FOR MISC GAS REVENUE | E48: 16 LARGE CUSTOMER PGA-COMMERCIAL | F48: 0 | G48: 0 | H48: 0 | I48: 0 | J48: 0 | K48: -233696.9 | M48: G | N48: WA | O48: 199 | P48: 16 | Q48: GWA19916 | R48: GWA199 | S48: WA16
E49: 17 LARGE CUSTOMER PGA-INDUSTRIAL | F49: 0 | G49: 0 | H49: 0 | I49: 0 | J49: 0 | K49: -148855.99 | M49: G | N49: WA | O49: 199 | P49: 17 | Q49: GWA19917 | R49: GWA199 | S49: WA17
E50: 19 THEFT OF SERVICE-GAS | F50: 0 | G50: 0 | H50: 0 | I50: 0 | J50: 0 | K50: 665.76 | M50: G | N50: WA | O50: 199 | P50: 19 | Q50: GWA19919 | R50: GWA199 | S50: WA19
E51: 88 MISC-SERVICING CUSTOMER INSTALLS | F51: 0 | G51: 0 | H51: 878 | I51: 0 | J51: 0 | K51: 15152 | M51: G | N51: WA | O51: 199 | P51: 88 | Q51: GWA19988 | R51: GWA199 | S51: WA88
E52: Sum | F52: 0 | G52: 0 | H52: 878 | I52: 0 | J52: 0 | K52: -366735.13 | M52: G | N52: WA | O52: 199 | Q52: GWA199 | R52: GWA199 | S52: WA
C53: Total WA | F53: 148247 | G53: 33304255 | H53: 23213044.41 | I53: 147063.6667 | J53: 237226755 | K53: 144953535.2 | M53: G | N53: WA | O53: Sum | Q53: GWASum | R53: GWASum | S53: WA
A59: Summary by Rate Schedule | M59: Summary by Rate Class - 12 Mos. | S59: ALL STATES | V59: IDAHO | Y59: OREGON
O60: Meters | P60: Usage | Q60: Revenue | S60: Usage | T60: Revenue | V60: Usage | W60: Revenue | Y60: Usage | Z60: Revenue
A61: Total 101 FIRM AND GENERAL SERVICE | E61: GWA101 | F61: =SUMIF($Q$5:$Q$55,$E61,F$5:F$55) -> 145837 | G61: 18685652 | H61: 16494140.86 | I61: =SUMIF($Q$5:$Q$55,$E61,$I$5:$I$55) -> 144675 | J61: =SUMIF($Q$5:$Q$55,$E61,J$5:J$55) -> 114318036 | K61: 100044875.9 | M61: Res | N61: WA01 | O61: =SUMIF($S$4:$S$55,$N61,I$4:I$55) -> 132882.5 | P61: 101212364 | Q61: 91727283.31 | R61: =MID(N61,3,4) -> 01 | S61: =P61+V61+Y61 -> 193417840 | T61: =Q61+W61+Z61 -> 195254248.3 | V61: 44765135 | W61: 41727914 | Y61: 47440341 | Z61: 61799051
A62: Total 111 FIRM-LARGE GENERAL SERVICE | E62: GWA111 | F62: 2336 | G62: 6723264 | H62: 4933912.73 | I62: 2317.25 | J62: 46123625 | K62: 32531839.88 | M62: Comm-PGA | N62: WA16 | O62: 0 | P62: 0 | Q62: -248182.73 | R62: 16 | S62: =P62+V62+Y62 -> 0 | T62: -311224.73 | V62: 0 | W62: -63042 | Y62: 0 | Z62: 0
A63: Total 112 FIRM-LARGE GENERAL SERVICE | E63: GWA112 | F63: 4 | G63: 226336 | H63: 179002.13 | I63: 2.333333333 | J63: 848654 | K63: 673952.97 | M63: Ind-PGA | N63: WA17 | O63: 0 | P63: 0 | Q63: -148886.09 | R63: 17 | S63: 0 | T63: -171973.09 | V63: 0 | W63: -23087 | Y63: 0 | Z63: 0
A64: Total 121 FIRM-HIGH ANNUAL LOAD | E64: GWA121 | F64: 23 | G64: 406100 | H64: 277910.24 | I64: 21.91666667 | J64: 3390583 | K64: 2119772.64 | M64: Theft | N64: WA19 | O64: 0 | P64: 0 | Q64: 665.76 | R64: 19 | S64: 0 | T64: 12592.76 | V64: 0 | W64: 558 | Y64: 0 | Z64: 11369
A65: Total 122 FIRM-HIGH ANNUAL LOAD | E65: GWA122 | F65: 5 | G65: 223894 | H65: 165452.93 | I65: 5.083333333 | J65: 2032396 | K65: 1534183.87 | M65: Comm | N65: WA21 | O65: 13971.5 | P65: 62031980 | Q65: 47703476.12 | R65: 21 | S65: 116272017 | T65: 99754908.12 | V65: 25133235 | W65: 20074368 | Y65: 29106802 | Z65: 31977064
A66: Total 122G FIRM-HIGH ANNUAL LOAD - GONZAGA | E66: GWA122G | F66: 0 | G66: 0 | H66: 0 | I66: 0 | J66: 0 | K66: 0 | M66: Comm-Int | N66: WA22 | O66: 1 | P66: 641660 | Q66: 485090.52 | R66: 22 | S66: 3377997 | T66: 2117466.52 | V66: 437628 | W66: 300217 | Y66: 2298709 | Z66: 1332159
A67: Total 122L FIRM-HIGH ANNUAL LOAD - ST LUKES | E67: GWA122L | F67: 0 | G67: 0 | H67: 0 | I67: 0 | J67: 0 | K67: 0 | M67: Ind | N67: WA31 | O67: 131.5 | P67: 3135293 | Q67: 2248734.55 | R67: 31 | S67: 5312061 | T67: 3928322.55 | V67: 1680842 | W67: 1214003 | Y67: 495926 | Z67: 465585
A68: Total 122W FIRM-HIGH ANNUAL LOAD - AIRWAY HTS CORR | E68: GWA122W | F68: 0 | G68: 0 | H68: 0 | I68: 0 | J68: 0 | K68: 0 | M68: Ind-Int | N68: WA41 | O68: 0 | P68: 0 | Q68: 0 | R68: 41 | S68: 1119411 | T68: 658693 | V68: 0 | W68: 0 | Y68: 1119411 | Z68: 658693
A69: Total 131 INTERRUPTIBLE SERVICE | E69: GWA131 | F69: 0 | G69: 0 | H69: 0 | I69: 0 | J69: 0 | K69: 0 | M69: Intdpt | N69: WA80 | O69: 36.08333333 | P69: 333657 | Q69: 238358.91 | R69: 80 | S69: 392719 | T69: 288881.91 | V69: 44965 | W69: 34485 | Y69: 14097 | Z69: 16038
A70: Total 132 INTERRUPTIBLE SERVICE | E70: GWA132 | F70: 1 | G70: 78031 | H70: 54333.29 | I70: 1 | J70: 641660 | K70: 457632.56 | M70: Misc | N70: WA88 | O70: 0 | P70: 0 | Q70: 15152 | R70: 88 | S70: 0 | T70: 155726 | V70: 0 | W70: 13216 | Y70: 0 | Z70: 127358
A71: Total 132W INTERRUPTIBLE SERVICE - AIRWAY HTS CORR | E71: GWA132W | F71: 0 | G71: 0 | H71: 0 | I71: 0 | J71: 0 | K71: 0 | M71: Comm-Tra | N71: WA91 | O71: 13.16666667 | P71: 20389388 | Q71: 911642.5 | R71: 91 | S71: 27261245 | T71: 1591831.5 | V71: 1391477 | W71: 170297 | Y71: 5480380 | Z71: 509892
A72: Total 146 TRANSPORTATION SERVICE FOR CUST OWNED GAS | E72: GWA146 | F72: 33 | G72: 2720150 | H72: 183325.79 | I72: 33.75 | J72: 24505280 | K72: 1712820.64 | M72: Ind-Tra | N72: WA92 | O72: 25.66666667 | P72: 47538535 | Q72: 1979553.84 | R72: 92 | S72: 113037802 | T72: 4512633.84 | V72: 39400918 | W72: 283379 | Y72: 26098349 | Z72: 2249701
A73: Total 147 TRANSPORTATION SERVICE SPECIAL CONTRACT | E73: GWA147 | F73: 3 | G73: 193601 | H73: 4048.2 | I73: 2.333333333 | J73: 1943878 | K73: 40646.48 | M73: Intdpt-Tra | N73: WA93 | O73: 2.25 | P73: 1943878 | Q73: 40646.48 | R73: 93 | S73: 1943878 | T73: 40646.48 | V73: 0 | W73: 0 | Y73: 0 | Z73: 0
A74: Total 148 HIGH VOLUME/BANDED RATE TRANSPORTATION SVC | E74: GWA148 | F74: 5 | G74: 4047227 | H74: 97593.6 | I74: 5 | J74: 43422643 | K74: 1088544.99 | M74: Total WA | O74: =SUM(O61:O73) -> 147063.6667 | P74: =SUM(P61:P73) -> 237226755 | Q74: =SUM(Q61:Q73) -> 144953535.2 | S74: =SUM(S61:S73) -> 462134970 | T74: =SUM(T61:T73) -> 307832753.2 | V74: =SUM(V61:V73) -> 112854200 | W74: =SUM(W61:W73) -> 63732308 | Y74: =SUM(Y61:Y73) -> 112054015 | Z74: =SUM(Z61:Z73) -> 99146910
A75: Total 158 TAX ADJUSTMENT | E75: GWA158 | F75: 0 | G75: 0 | H75: 822573.22 | I75: 0 | J75: 0 | K75: 5116667.62 | M75: Misc (no Revenue Class) | Q75: 299894 | S75: =P75+V75+Y75 -> 0 | T75: =Q75+W75+Z75 -> 160789 | W75: 0 | Z75: -139105
A76: Total 158A TAX ADJUSTMENT - INDIAN RESERVATION | E76: GWA158A | F76: 0 | G76: 0 | H76: -126.58 | I76: 0 | J76: 0 | K76: -667.29 | M76: Total WA excl Unbilled | O76: =O74+O75 -> 147063.6667 | P76: =P74+P75 -> 237226755 | Q76: =Q74+Q75 -> 145253429.2 | S76: =S74+S75 -> 462134970 | T76: =T74+T75 -> 307993542.2 | V76: =V74+V75 -> 112854200 | W76: =W74+W75 -> 63732308 | Y76: =Y74+Y75 -> 112054015 | Z76: =Z74+Z75 -> 99007805
A77: Total 199 REPORTING SCH NUMBER FOR MISC GAS REVENUE | E77: GWA199 | F77: 0 | G77: 0 | H77: 878 | I77: 0 | J77: 0 | K77: -366735.13 | O77: =O76-I79 -> 0 | P77: =P76-J79 -> 0 | Q77: =Q74-K79 -> 0
E78: Total | F78: =SUM(F61:F77) -> 148247 | G78: 33304255 | H78: 23213044.41 | I78: 147063.6667 | J78: 237226755 | K78: 144953535.2
E79: GWASum | F79: =SUMIF($Q$5:$Q$55,$E79,F$5:F$55) -> 148247 | G79: 33304255 | H79: 23213044.41 | I79: 147063.6667 | J79: 237226755 | K79: 144953535.2 | M79: Retail | O79: =SUM(O61:O63,O65:O69,O71:O73,O75) -> 147063.6667 | P79: =SUM(P61:P63,P65:P69,P71:P73,P75) -> 237226755 | Q79: =SUM(Q61:Q63,Q65:Q69,Q71:Q73,Q75) -> 145237611.4 | S79: =P79+V79+Y79 -> 462134970 | T79: =Q79+W79+Z79 -> 307977724.4 | V79: =SUM(V61:V63,V65:V69,V71:V73,V75) -> 112854200 | W79: =SUM(W61:W73) -> 63732308 | Y79: =SUM(Y61:Y63,Y65:Y69,Y71:Y73,Y75) -> 112054015 | Z79: =SUM(Z61:Z64,Z65:Z70,Z71:Z73,Z75) -> 99007805
E80: Diff | F80: =F78-F79 -> 0 | G80: 0 | H80: 0 | I80: -3.492459655e-10 | J80: 0 | K80: 0 | M80: Unbilled | P80: -4808828 | Q80: -1417397 | S80: =P80+V80+Y80 -> -7926127 | T80: =Q80+W80+Z80 -> -3298724 | V80: -1402985 | W80: -386763 | Y80: -1714314 | Z80: -1494564
M81: Total WA | O81: =O79+O80 -> 147063.6667 | P81: =P79+P80 -> 232417927 | Q81: =Q79+Q80 -> 143820214.4 | S81: =S79+S80 -> 454208843 | T81: =T79+T80 -> 304679000.4 | V81: =V79+V80 -> 111451215 | W81: =W79+W80 -> 63345545 | Y81: =Y79+Y80 -> 110339701 | Z81: =Z79+Z80 -> 97513241
M83: F&O, 12-mo ended 12/31/2010 | S83: 454208843 | T83: =298209000+6470000 -> 304679000
I84: =(I62+I63)*12 -> 27835 | M84: diff | S84: =S81-S83 -> 0 | T84: =T81-T83 -> 0.4099999666
